Workbook

Sheet Notice
B2: DISCLAIMER
B4: 1. This workbook is the property of Fonterra Co-operative Group Limited (Fonterra).
B5: 2. The workbook contains the higher level inputs and calculations underpinning the calculation of the Farmgate Milk Price for the 2016/17 season.
B6: To protect the commercial confidentiality of certain information derived from Fonterra's actual performance data, a number of inputs have been aggregated for the purposes of this workbook.
B7: The workbook does not contain all the intermediate calculations required to calculate the Farmgate Milk Price. For example, the workbook does not contain the calculations required to convert contracted prices into 'shipment month' prices, or the
B8: 'tilted annuity' calculations used to calculate the WACC charge and depreciation inputs.
B9: 3. Fonterra does not warrant that the workbook is free from error, and explicitly disclaims any liability to any third party with respect to any use they may make of the workbook.
B10: 4. Third party recipients of this workbook use it entirely at their own risk. Fonterra will not accept any responsibility any loss which may result from use of the workbook including the direct or indirect consequences of computer viruses.
B11: 5. The workbook was not designed for use by third parties and Fonterra provides no assurance that third parties will be able to be readily operate the workbook.
B12: 6. The workbook was updated on 4 October 2017 to correct a minor input error. This update did not have any impact on any calculations or outputs.

Sheet Global
K1: F18 Milk Price | N1: =Summary!L104 -> 6.745628631
K2: Average FX conversion rate (Sales) | N2: =Summary!L20 -> 0.7073886873
F7: Period Ended | O7: =K34 -> 2018-05-31 | Q7: =EOMONTH(T7,-1) -> 2017-05-31 | R7: =EOMONTH(S7,-1) -> 2017-04-30 | S7: =EOMONTH(T7,-1) -> 2017-05-31 | T7: =K32 -> 2017-06-30 | U7: =EOMONTH(T7,1) -> 2017-07-31 | V7: 2017-08-31 | W7: 2017-09-30 | X7: 2017-10-31 | Y7: 2017-11-30 | Z7: 2017-12-31 | AA7: 2018-01-31 | AB7: 2018-02-28 | AC7: 2018-03-31 | AD7: 2018-04-30 | AE7: 2018-05-31 | AF7: 2018-06-30 | AG7: 2018-07-31 | AH7: 2018-08-31 | AI7: 2018-09-30 | AJ7: 2018-10-31 | AK7: 2018-11-30 | AL7: 2018-12-31 | AM7: 2019-01-31 | AN7: 2019-02-28 | AO7: 2019-03-31 | AP7: =EOMONTH(AO7,1) -> 2019-04-30 | AQ7: =EOMONTH(AP7,1) -> 2019-05-31 | AR7: =EOMONTH(AQ7,1) -> 2019-06-30
D8: Calendar Year | T8: =YEAR(T7) -> 2017 | U8: 2017 | V8: 2017 | W8: 2017 | X8: 2017 | Y8: 2017 | Z8: 2017 | AA8: 2018 | AB8: 2018 | AC8: 2018 | AD8: 2018 | AE8: 2018 | AF8: 2018 | AG8: 2018 | AH8: 2018 | AI8: 2018 | AJ8: 2018 | AK8: 2018 | AL8: 2018 | AM8: 2019 | AN8: 2019 | AO8: 2019
D9: Month Number | T9: 1 | U9: =T9+1 -> 2 | V9: 3 | W9: 4 | X9: 5 | Y9: 6 | Z9: 7 | AA9: 8 | AB9: 9 | AC9: 10 | AD9: 11 | AE9: 12 | AF9: 13 | AG9: 14 | AH9: 15 | AI9: 16 | AJ9: 17 | AK9: 18 | AL9: 19 | AM9: 20 | AN9: 21 | AO9: 22
D10: Days in Period | R10: =R7-EOMONTH(R7,-1) -> 30 | S10: =S7-R7 -> 31 | T10: =T7-S7 -> 30 | U10: =U7-T7 -> 31 | V10: 31 | W10: 30 | X10: 31 | Y10: 30 | Z10: 31 | AA10: 31 | AB10: 28 | AC10: 31 | AD10: 30 | AE10: 31 | AF10: 30 | AG10: 31 | AH10: 31 | AI10: 30 | AJ10: 31 | AK10: 30 | AL10: 31 | AM10: 31 | AN10: 28 | AO10: 31
D11: Year to Go flag | O11: =INDEX(LookupTables!E11:E28,LookupTables!I11) -> 2018-11-30 | P11: =LookupTables!I11 -> 18 | T11: =IF(T9<=$P$11,1,0) -> 1 | U11: 1 | V11: 1 | W11: 1 | X11: 1 | Y11: 1 | Z11: 1 | AA11: 1 | AB11: 1 | AC11: 1 | AD11: 1 | AE11: 1 | AF11: 1 | AG11: 1 | AH11: 1 | AI11: 1 | AJ11: 1 | AK11: 1 | AL11: 0 | AM11: 0 | AN11: 0 | AO11: 0
C13: GENERAL MODEL INPUTS
C15: MODEL INFORMATION
C17: This model contains circular logic relating to the calculation of tax expense and net working capital. It is therefore necessary to set the calculation approach to 'iterative calculations.'
C20: INPUT KEY
F22: Colour Key: | K22: Description
K23: General Input Cells
K24: Calculation cell with different logic to adjacent cells
K25: Normal general input cells where inputs have been 'bundled' into a higher level / different input for purposes of this simplified model.
K26: Additional input cells added for purpose of this public model
K27: Cells intentionally left blank in 'Calculations' Tab
C29: DATE AND TIME DATA
A31: 7 | F31: First Day of the season | K31: 2017-06-01
F32: End Date of First Period | K32: =EOMONTH(K31,0) -> 2017-06-30
F34: End of season | K34: =EOMONTH(K31,11) -> 2018-05-31
C36: GLOBAL TIME DEPENDENT INPUTS | R36: =R7 -> 2017-04-30 | S36: 2017-05-31 | T36: 2017-06-30 | U36: 2017-07-31 | V36: 2017-08-31 | W36: 2017-09-30 | X36: 2017-10-31 | Y36: 2017-11-30 | Z36: 2017-12-31 | AA36: 2018-01-31 | AB36: 2018-02-28 | AC36: 2018-03-31 | AD36: 2018-04-30 | AE36: 2018-05-31 | AF36: 2018-06-30 | AG36: 2018-07-31 | AH36: 2018-08-31 | AI36: 2018-09-30 | AJ36: 2018-10-31 | AK36: 2018-11-30 | AL36: 2018-12-31 | AM36: 2019-01-31 | AN36: 2019-02-28 | AO36: 2019-03-31
F38: WACC - Annual | O38: 0.054
F39: WACC - monthly | O39: =(1+$O$38)^(1/12)-1 -> 0.004392322271
C41: SUMMARY OF ERROR CHECKS
F43: Worksheet name:
F44: Data Input | K44: ='Data Input'!J4 -> Okay
F45: Calculations | K45: =Calculations!J5 -> Okay
F46: Summary | K46: =Summary!L141 -> Okay | L46: If the 'Summary' sheet error check returns 'error', press F9 for more iterations until the figure (right) is close to zero. | U46: =SUM(Summary!Q141:AJ141) -> -6.076703307e-05
F47: Overall model | K47: =IF(COUNTA(K44:K46)=COUNTIF(K44:K46,"Okay"),"Okay","Error") -> Okay
F49: Calculations Worksheet:
F50: Debtor Reconciliation Check | K50: =Calculations!B907 -> Okay
F51: Closing Inventory Check | K51: =Calculations!B977 -> Okay
F52: FIFO Production Volume Check | K52: =Calculations!B1011 -> Okay
F53: Milk Solids Volume Check | K53: =Calculations!B1030 -> Okay
F54: Milk Price Calculation Check | K54: =Calculations!B1255 -> Okay
F55: PV of Cash Flow Check | K55: =Calculations!B1269 -> Okay
F57: Summary Worksheet
F58: Operating Cash Flow Check | K58: =Summary!L141 -> Okay

Sheet Data Input
F4: =Calculations!F5 -> Overall error check | J4: =IF(COUNTA(B:B)=COUNTIF(B:B,"Okay"),"Okay","Error") -> Okay | M4: Annual | T4: Monthly
J6: Units | K6: Input | N6: =Global!O7 -> 2018-05-31 | Q6: Date | R6: =Global!R7 -> 2017-04-30 | S6: =Global!S7 -> 2017-05-31 | T6: =Global!T7 -> 2017-06-30 | U6: =Global!U7 -> 2017-07-31 | V6: =Global!V7 -> 2017-08-31 | W6: =Global!W7 -> 2017-09-30 | X6: =Global!X7 -> 2017-10-31 | Y6: =Global!Y7 -> 2017-11-30 | Z6: =Global!Z7 -> 2017-12-31 | AA6: =Global!AA7 -> 2018-01-31 | AB6: =Global!AB7 -> 2018-02-28 | AC6: =Global!AC7 -> 2018-03-31 | AD6: =Global!AD7 -> 2018-04-30 | AE6: =Global!AE7 -> 2018-05-31 | AF6: =Global!AF7 -> 2018-06-30 | AG6: =Global!AG7 -> 2018-07-31 | AH6: =Global!AH7 -> 2018-08-31 | AI6: =Global!AI7 -> 2018-09-30 | AJ6: =Global!AJ7 -> 2018-10-31 | AK6: =Global!AK7 -> 2018-11-30 | AL6: =Global!AL7 -> 2018-12-31 | AM6: =Global!AM7 -> 2019-01-31 | AN6: =Global!AN7 -> 2019-02-28 | AO6: =Global!AO7 -> 2019-03-31
D7: Calendar Year | T7: =YEAR(T6) -> 2017 | U7: 2017 | V7: 2017 | W7: 2017 | X7: 2017 | Y7: 2017 | Z7: 2017 | AA7: =YEAR(AA6) -> 2018 | AB7: 2018 | AC7: 2018 | AD7: 2018 | AE7: 2018 | AF7: 2018 | AG7: 2018 | AH7: 2018 | AI7: 2018 | AJ7: 2018 | AK7: 2018 | AL7: 2018 | AM7: 2019 | AN7: =YEAR(AN6) -> 2019 | AO7: =YEAR(AO6) -> 2019
D8: Month Number | T8: =Global!T9 -> 1 | U8: =Global!U9 -> 2 | V8: =Global!V9 -> 3 | W8: =Global!W9 -> 4 | X8: =Global!X9 -> 5 | Y8: =Global!Y9 -> 6 | Z8: =Global!Z9 -> 7 | AA8: =Global!AA9 -> 8 | AB8: =Global!AB9 -> 9 | AC8: =Global!AC9 -> 10 | AD8: =Global!AD9 -> 11 | AE8: =Global!AE9 -> 12 | AF8: =Global!AF9 -> 13 | AG8: =Global!AG9 -> 14 | AH8: =Global!AH9 -> 15 | AI8: =Global!AI9 -> 16 | AJ8: =Global!AJ9 -> 17 | AK8: =Global!AK9 -> 18 | AL8: =Global!AL9 -> 19 | AM8: =Global!AM9 -> 20 | AN8: =Global!AN9 -> 21 | AO8: =Global!AO9 -> 22
D9: Days in Period | R9: =Global!R10 -> 30 | S9: =Global!S10 -> 31 | T9: =Global!T10 -> 30 | U9: =Global!U10 -> 31 | V9: =Global!V10 -> 31 | W9: =Global!W10 -> 30 | X9: =Global!X10 -> 31 | Y9: =Global!Y10 -> 30 | Z9: =Global!Z10 -> 31 | AA9: =Global!AA10 -> 31 | AB9: =Global!AB10 -> 28 | AC9: =Global!AC10 -> 31 | AD9: =Global!AD10 -> 30 | AE9: =Global!AE10 -> 31 | AF9: =Global!AF10 -> 30 | AG9: =Global!AG10 -> 31 | AH9: =Global!AH10 -> 31 | AI9: =Global!AI10 -> 30 | AJ9: =Global!AJ10 -> 31 | AK9: =Global!AK10 -> 30 | AL9: =Global!AL10 -> 31 | AM9: =Global!AM10 -> 31 | AN9: =Global!AN10 -> 28 | AO9: =Global!AO10 -> 31
D10: Year to Go flag | N10: 1 | P10: =Global!P11 -> 18 | T10: =Global!T11 -> 1 | U10: =Global!U11 -> 1 | V10: =Global!V11 -> 1 | W10: =Global!W11 -> 1 | X10: =Global!X11 -> 1 | Y10: =Global!Y11 -> 1 | Z10: =Global!Z11 -> 1 | AA10: =Global!AA11 -> 1 | AB10: =Global!AB11 -> 1 | AC10: =Global!AC11 -> 1 | AD10: =Global!AD11 -> 1 | AE10: =Global!AE11 -> 1 | AF10: =Global!AF11 -> 1 | AG10: =Global!AG11 -> 1 | AH10: =Global!AH11 -> 1 | AI10: =Global!AI11 -> 1 | AJ10: =Global!AJ11 -> 1 | AK10: =Global!AK11 -> 1 | AL10: =Global!AL11 -> 0 | AM10: =Global!AM11 -> 0 | AN10: =Global!AN11 -> 0 | AO10: =Global!AO11 -> 0
Q11: updated | T11: =T6 -> 2017-06-30 | U11: 2017-07-31 | V11: 2017-08-31 | W11: 2017-09-30 | X11: 2017-10-31 | Y11: 2017-11-30 | Z11: 2017-12-31 | AA11: 2018-01-31 | AB11: 2018-02-28 | AC11: 2018-03-31 | AD11: 2018-04-30 | AE11: 2018-05-31 | AF11: 2018-06-30 | AG11: 2018-07-31 | AH11: 2018-08-31 | AI11: 2018-09-30 | AJ11: 2018-10-31 | AK11: 2018-11-30 | AL11: 2018-12-31 | AM11: 2019-01-31 | AN11: =AN6 -> 2019-02-28 | AO11: =AO6 -> 2019-03-31
F14: GLOBAL
F16: STATUS / DATA SOURCE | J16: Weighted average annual FX rate for revenue. Also used in this simplified model to translate costs. In practice, USD purchases have a different time profile, & therefore weighted average conversion rate, to sales.
J17: We have adjusted the USD cost inputs to correct for this difference (so reported NZD values reconcile to the actual F17 milk price calculation.)
F20: FX
F22: Weighted average annual FX rate | R22: 0.7073886873 | S22: 0.7073886873 | T22: 0.7073886873 | U22: 0.7073886873 | V22: 0.7073886873 | W22: 0.7073886873 | X22: 0.7073886873 | Y22: 0.7073886873 | Z22: 0.7073886873 | AA22: 0.7073886873 | AB22: 0.7073886873 | AC22: 0.7073886873 | AD22: 0.7073886873 | AE22: 0.7073886873 | AF22: 0.7073886873 | AG22: 0.7073886873 | AH22: 0.7073886873 | AI22: 0.7073886873 | AJ22: 0.7073886873 | AK22: 0.7073886873 | AL22: 0.7073886873 | AM22: 0.7073886873 | AN22: 0.7073886873
F24: MILK SUPPLY
F26: STATUS / DATA SOURCE | J26: The minor difference between 'milk paid for' and 'milk collected' reflects circumstances where Fonterra is unable to collect and process milk (eg due to adverse weather events) but is contractually obliged to pay for it.
J27: The calculation of the aggregate amount available to pay for milk is based on milk actually collected and therefore available for processing. The average milk price per kgMS is calculated based on all milk paid for by Fonterra.
F30: KGMS | O30: YTD | P30: YTG
F31: Milk Paid For | J31: 000 kgMS | N31: =SUM(T31:AE31) -> 1505076.353 | O31: =SUMIF($T$10:$AE$10,1,T31:AE31) -> 1505076.353 | P31: =N31-O31 -> 0 | T31: 11765.5608 | U31: 17237.2123 | V31: 93392.226 | W31: 171133.2002 | X31: 208846.5865 | Y31: 199087.2903 | Z31: 176107.7639 | AA31: 158270.4222 | AB31: 135337.3659 | AC31: 142626.7951 | AD31: 120391.7255 | AE31: 70880.2044
F32: Milk Supply collected | J32: 000 kgMS | N32: =SUM(T32:AE32) -> 1505072.807 | T32: 11765.5608 | U32: 17236.4789 | V32: 93392.226 | W32: 171133.2002 | X32: 208846.5865 | Y32: 199087.2903 | Z32: 176107.7639 | AA32: 158270.4222 | AB32: 135334.5532 | AC32: 142626.7951 | AD32: 120391.7255 | AE32: 70880.2044
F33: Monthly distribution | J33: % | N33: =SUM(T33:AE33) -> 1 | T33: =T32/$N$32 -> 0.007817270198 | U33: =U32/$N$32 -> 0.01145225588 | V33: 0.06205163336 | W33: 0.1137042669 | X33: 0.1387617832 | Y33: 0.1322775147 | Z33: 0.117009465 | AA33: 0.105157984 | AB33: 0.08991894118 | AC33: 0.09476405024 | AD33: 0.07999063231 | AE33: 0.04709420306
F36: PRODUCTION
F38: STATUS / DATA SOURCE | J38: Milk composition shown below is weighted average composition by quarter. In practice monthly average composition is used. The detail of the loss and composition assumptions reflects information that is confidential
J39: to Fonterra and is therefore not disclosed. We have left the relevant logic intact but have hardcoded the results of the production volume calculations on the Calculations tab.
F40: National average composition
F41: Fat | J41: % w/w | T41: 0.04756441987 | U41: 0.04756441987 | V41: 0.04756441987 | W41: 0.04592639582 | X41: 0.04592639582 | Y41: 0.04592639582 | Z41: 0.0480573896 | AA41: 0.0480573896 | AB41: 0.0480573896 | AC41: 0.05494661317 | AD41: 0.05494661317 | AE41: 0.05494661317
F42: Protein | J42: % w/w | T42: 0.03753584021 | U42: 0.03753584021 | V42: 0.03753584021 | W42: 0.03602088408 | X42: 0.03602088408 | Y42: 0.03602088408 | Z42: 0.03667523987 | AA42: 0.03667523987 | AB42: 0.03667523987 | AC42: 0.04253434242 | AD42: 0.04253434242 | AE42: 0.04253434242
F43: Lactose + Minerals | J43: % w/w | T43: 0.05444568301 | U43: 0.05444568301 | V43: 0.05444568301 | W43: 0.05458651526 | X43: 0.05458651526 | Y43: 0.05458651526 | Z43: 0.05344974264 | AA43: 0.05344974264 | AB43: 0.05344974264 | AC43: 0.05197998752 | AD43: 0.05197998752 | AE43: 0.05197998752
F45: Milk Composition Input Parameters
F46: Cream Fat Content | J46: % | N46: 0.42
F47: Skimmilk Fat Content | J47: % | N47: 0.0008
F48: Wholemilk Density | J48: % | N48: 1.032
F50: Lactose Standardising Inputs
F51: Lactose losses - WMP | J51: %
F52: Lactose losses - SMP | J52: %
F53: Lactose losses - BMP | J53: %
F54: Lactose content of lactose powder | J54: % | N54: 0.95
F56: Composition Target | L56: Fat | M56: Protein | N56: Moisture
F57: Butter | J57: %w/w
F58: AMF | J58: %w/w
F59: SMP | J59: %w/w
F60: BMP | J60: %w/w
F61: WMP | J61: %w/w
F63: Value Component Usage | L63: Fat | M63: Protein
F64: Butter | J64: kg/mt
F65: AMF | J65: kg/mt
F66: SMP | J66: kg/mt
F67: BMP | J67: kg/mt
F68: WMP | J68: kg/mt
F70: Product mix
F71: Annual average ratio of WMP MT to WMP + SMP | J71: % | N71: =SUMPRODUCT($T$33:$AE$33,T71:AE71) -> 0.7617148597 | T71: 0.7617148597 | U71: 0.7617148597 | V71: 0.7617148597 | W71: 0.7617148597 | X71: 0.7617148597 | Y71: 0.7617148597 | Z71: 0.7617148597 | AA71: 0.7617148597 | AB71: 0.7617148597 | AC71: 0.7617148597 | AD71: 0.7617148597 | AE71: 0.7617148597
F72: Annual average ratio of Butter MT to Butter + AMF | J72: % | N72: =SUMPRODUCT($T$33:$AE$33,T72:AE72) -> 0.656207773 | T72: 0.656207773 | U72: 0.656207773 | V72: 0.656207773 | W72: 0.656207773 | X72: 0.656207773 | Y72: 0.656207773 | Z72: 0.656207773 | AA72: 0.656207773 | AB72: 0.656207773 | AC72: 0.656207773 | AD72: 0.656207773 | AE72: 0.656207773
F74: Fat : Protein Valued Component Ratio | N74: 0.8943
F77: REVENUE
F79: STATUS / DATA SOURCE | J79: Prices and sales phasings entered as 3 month averages, consistent with the F17 Milk Price Statement.
J80: Downgrade adjustments are normally calculated separately but have been included here in average prices.
J81: Lactose prices to model are for calculated prices of lactose in month of use, under the assumption that lactose has been imported in prior months and stored for a period prior to usage.
E83: 1. Base Commodity Prices
F84: Full Year Commodity Prices - To Model
F85: Butter | J85: USD | N85: =SUM(T85:AO85)/COUNTIF(T85:AO85,"<>0") -> 5598.551204 | T85: 0 | U85: 0 | V85: 5848.356929 | W85: 5848.356929 | X85: 5848.356929 | Y85: 5886.159665 | Z85: 5886.159665 | AA85: 5886.159665 | AB85: 5303.381643 | AC85: 5303.381643 | AD85: 5303.381643 | AE85: 5461.007265 | AF85: 5461.007265 | AG85: 5461.007265 | AH85: 5493.850517 | AI85: 5493.850517 | AJ85: 5493.850517 | AK85: 0 | AL85: 0 | AM85: 0 | AN85: 0 | AO85: 0
F86: AMF | J86: USD | N86: =SUM(T86:AO86)/COUNTIF(T86:AO86,"<>0") -> 6474.464228 | T86: 0 | U86: 0 | V86: 6573.94064 | W86: 6573.94064 | X86: 6573.94064 | Y86: 6643.59379 | Z86: 6643.59379 | AA86: 6643.59379 | AB86: 6636.536008 | AC86: 6636.536008 | AD86: 6636.536008 | AE86: 6265.817716 | AF86: 6265.817716 | AG86: 6265.817716 | AH86: 6252.432987 | AI86: 6252.432987 | AJ86: 6252.432987 | AK86: 0 | AL86: 0 | AM86: 0 | AN86: 0 | AO86: 0
F87: SMP | J87: USD | N87: =SUM(T87:AO87)/COUNTIF(T87:AO87,"<>0") -> 1998.967048 | T87: 0 | U87: 0 | V87: 2080.442069 | W87: 2080.442069 | X87: 2080.442069 | Y87: 1971.019363 | Z87: 1971.019363 | AA87: 1971.019363 | AB87: 1859.074422 | AC87: 1859.074422 | AD87: 1859.074422 | AE87: 2006.314932 | AF87: 2006.314932 | AG87: 2006.314932 | AH87: 2077.984453 | AI87: 2077.984453 | AJ87: 2077.984453 | AK87: 0 | AL87: 0 | AM87: 0 | AN87: 0 | AO87: 0
F88: BMP | J88: USD | N88: =SUM(T88:AO88)/COUNTIF(T88:AO88,"<>0") -> 2068.500867 | T88: 0 | U88: 0 | V88: 2186.077403 | W88: 2186.077403 | X88: 2186.077403 | Y88: 1995.508313 | Z88: 1995.508313 | AA88: 1995.508313 | AB88: 2007.034026 | AC88: 2007.034026 | AD88: 2007.034026 | AE88: 2113.11349 | AF88: 2113.11349 | AG88: 2113.11349 | AH88: 2040.771102 | AI88: 2040.771102 | AJ88: 2040.771102 | AK88: 0 | AL88: 0 | AM88: 0 | AN88: 0 | AO88: 0
F89: WMP | J89: USD | N89: =SUM(T89:AO89)/COUNTIF(T89:AO89,"<>0") -> 3129.03262 | T89: 0 | U89: 0 | V89: 3172.018286 | W89: 3172.018286 | X89: 3172.018286 | Y89: 3058.414142 | Z89: 3058.414142 | AA89: 3058.414142 | AB89: 2937.475436 | AC89: 2937.475436 | AD89: 2937.475436 | AE89: 3244.018868 | AF89: 3244.018868 | AG89: 3244.018868 | AH89: 3233.23637 | AI89: 3233.23637 | AJ89: 3233.23637 | AK89: 0 | AL89: 0 | AM89: 0 | AN89: 0 | AO89: 0
F91: Lactose
F92: Fonterra Price (including CIF) | J92: USD | M92: 1
F93: Competitor Price (including CIF) | J93: USD | M93: 2 | N93: =SUMPRODUCT($T$93:$AE$93,Calculations!$T$216:$AE$216)/SUM(Calculations!$T$216:$AE$216) -> 908.1 | T93: 908.1 | U93: 908.1 | V93: 908.1 | W93: 908.1 | X93: 908.1 | Y93: 908.1 | Z93: 908.1 | AA93: 908.1 | AB93: 908.1 | AC93: 908.1 | AD93: 908.1 | AE93: 908.1
F94: Adjustment for difference in average FX | J94: USD | N94: 2.19
F95: Lactose | J95: USD | M95: =IF(N92<N93,1,2) -> 1 | N95: =CHOOSE($M$95,N$92,N$93) -> 0 | T95: =T93+$N$94 -> 910.29 | U95: 910.29 | V95: 910.29 | W95: 910.29 | X95: 910.29 | Y95: 910.29 | Z95: 910.29 | AA95: 910.29 | AB95: 910.29 | AC95: 910.29 | AD95: 910.29 | AE95: 910.29
E97: 2. Sales Phasing
F98: To Model: Selected Full Year Percentage Sales Phasings Adjusted to Align to YTD Percentage Phasings
F99: Butter | J99: % | N99: =SUM(T99:AO99) -> 1 | T99: 0 | U99: 0 | V99: 0 | W99: 0.03401841476 | X99: 0.03401841476 | Y99: 0.09944820549 | Z99: 0.09944820549 | AA99: 0.09944820549 | AB99: 0.08865043269 | AC99: 0.08865043269 | AD99: 0.08865043269 | AE99: 0.09375375106 | AF99: 0.09375375106 | AG99: 0.09375375106 | AH99: 0.02880200092 | AI99: 0.02880200092 | AJ99: 0.02880200092 | AK99: 0 | AL99: 0 | AM99: 0 | AN99: 0 | AO99: 0
F100: AMF | J100: % | N100: =SUM(T100:AO100) -> 1 | T100: 0 | U100: 0 | V100: 0 | W100: 0.05669120437 | X100: 0.05669120437 | Y100: 0.07558910891 | Z100: 0.07558910891 | AA100: 0.07558910891 | AB100: 0.07930428189 | AC100: 0.07930428189 | AD100: 0.07930428189 | AE100: 0.1287703204 | AF100: 0.1287703204 | AG100: 0.1287703204 | AH100: 0.01187548591 | AI100: 0.01187548591 | AJ100: 0.01187548591 | AK100: 0 | AL100: 0 | AM100: 0 | AN100: 0 | AO100: 0
F101: SMP | J101: % | N101: =SUM(T101:AO101) -> 1 | T101: 0 | U101: 0 | V101: 0 | W101: 0.06984854845 | X101: 0.06984854845 | Y101: 0.1311499342 | Z101: 0.1311499342 | AA101: 0.1311499342 | AB101: 0.08441288415 | AC101: 0.08441288415 | AD101: 0.08441288415 | AE101: 0.06024431373 | AF101: 0.06024431373 | AG101: 0.06024431373 | AH101: 0.01096050227 | AI101: 0.01096050227 | AJ101: 0.01096050227 | AK101: 0 | AL101: 0 | AM101: 0 | AN101: 0 | AO101: 0
F102: BMP | J102: % | N102: =SUM(T102:AO102) -> 1 | T102: 0 | U102: 0 | V102: 0 | W102: 0.07997007368 | X102: 0.07997007368 | Y102: 0.104312421 | Z102: 0.104312421 | AA102: 0.104312421 | AB102: 0.08901857371 | AC102: 0.08901857371 | AD102: 0.08901857371 | AE102: 0.07591549237 | AF102: 0.07591549237 | AG102: 0.07591549237 | AH102: 0.0107734638 | AI102: 0.0107734638 | AJ102: 0.0107734638 | AK102: 0 | AL102: 0 | AM102: 0 | AN102: 0 | AO102: 0
F103: WMP | J103: % | N103: =SUM(T103:AO103) -> 1 | T103: 0 | U103: 0 | V103: 0 | W103: 0.05848512987 | X103: 0.05848512987 | Y103: 0.1174060543 | Z103: 0.1174060543 | AA103: 0.1174060543 | AB103: 0.08553418409 | AC103: 0.08553418409 | AD103: 0.08553418409 | AE103: 0.08043087609 | AF103: 0.08043087609 | AG103: 0.08043087609 | AH103: 0.01097213224 | AI103: 0.01097213224 | AJ103: 0.01097213224 | AK103: 0 | AL103: 0 | AM103: 0 | AN103: 0 | AO103: 0
E105: 3. Edible, Stockfood and Placement Spec Downgrade
L107: Butter | M107: AMF | N107: SMP | O107: BMP | P107: WMP
F108: Placement Specs Downgrade Adjustment | J108: % of Loss in Price x % of Production
F109: Edible Downgrade Downgrade Adjustment | J109: % of Loss in Price x % of Production
F110: Stockfood Downgrade Downgrade Adjustment | J110: % of Loss in Price x % of Production
E112: 4. Trader's Commission
F114: USD fixed costs | J114: USD 000s
F115: NZD fixed costs | J115: NZD 000s | N115: 105728.9007
F116: Annual production sold on GDT | J116: %
F117: Sales support cost across all volume | J117: USD / MT
F119: GDT fees schedule thresholds
F120: Base level threshold (upper limit) | J120: MT | N120: 0
F121: 2nd level threshold (upper limit) | J121: MT | N121: 50000
F122: 3rd level threshold (upper limit) | J122: MT | N122: 250000
F124: Base level threshold | J124: USD / MT | N124: 0
F125: 2nd level threshold | J125: USD / MT | N125: 30
F126: 3rd level threshold | J126: USD / MT | N126: 20
F127: Commission costs beyond 3rd level threshold | J127: USD / MT | N127: 5
F129: Fixed commission phasing | J129: % | N129: =SUM(V129:AJ129) -> 1 | V129: 0.08333333333 | W129: 0.08333333333 | X129: 0.08333333333 | Y129: 0.08333333333 | Z129: 0.08333333333 | AA129: 0.08333333333 | AB129: 0.08333333333 | AC129: 0.08333333333 | AD129: 0.08333333333 | AE129: 0.08333333333 | AF129: 0.08333333333 | AG129: 0.08333333333
F132: COLLECTION
F134: STATUS / DATA SOURCE
F137: By Product Diversion (Transport Cost) | J137: NZD '000
F138: Farm Milk Collection | J138: NZD '000 | N138: 338586.3996
F139: Total | J139: NZD '000 | N139: =SUM(N137:N138) -> 338586.3996
F141: Phasing | J141: NZD '000 | N141: =SUM(Q141:AO141) -> 1 | T141: 0.04133948466 | U141: 0.04624914536 | V141: 0.06282986389 | W141: 0.1024957554 | X141: 0.1336531502 | Y141: 0.1259140978 | Z141: 0.1101401768 | AA141: 0.1014414357 | AB141: 0.0767290354 | AC141: 0.07488876682 | AD141: 0.06680260318 | AE141: 0.0575164849
F143: OPEX
F145: STATUS / DATA SOURCE | J145: NOTE: (a) weighted average unit costs across all RCPs, given F17 actual product mix (b) average unit costs grossed up for weighted average rework volumes.
F149: Variable Costs
L150: Butter | M150: AMF | N150: SMP | O150: BMP | P150: WMP
F151: Production | J151: MT | L151: =Calculations!$N$185 -> 258455.2489 | M151: =Calculations!$N$186 -> 135502.2132 | N151: =Calculations!$N$187 -> 577307.2831 | O151: =Calculations!$N$188 -> 59135.98496 | P151: =Calculations!$N$189 -> 1855567.198
F152: Rework | J152: MT
F153: Total Manufacturer | J153: MT
F154: Average Revenue per MT | J154: NZD 000s | L154: =Calculations!N353 -> 7881.268747 | M154: =Calculations!N354 -> 9152.171381 | N154: =Calculations!N355 -> 2781.855141 | O154: =Calculations!N356 -> 2908.320534 | P154: =Calculations!N357 -> 4369.887295
F155: Weights | J155: % | L155: =L151/SUM($L$151:$P$151) -> 0.08955582852 | M155: =M151/SUM($L$151:$P$151) -> 0.0469520856 | N155: =N151/SUM($L$151:$P$151) -> 0.2000393966 | O155: =O151/SUM($L$151:$P$151) -> 0.02049086699 | P155: =P151/SUM($L$151:$P$151) -> 0.6429618223
L156: Butter | M156: AMF | N156: SMP | O156: BMP | P156: WMP
F157: Rework - downgrade adjustment | J157: % of Production
F158: Packaging costs | J158: NZD / MT | L158: 157.1240737 | M158: 157.1240737 | N158: 157.1240737 | O158: 157.1240737 | P158: 157.1240737
F159: Energy (Exclusive of ETS Costs) | J159: NZD / MT
F160: Water, cleaning / CIP, consumables, effluent, lab, carbon | J160: NZD / MT
F161: Cleaning & CIP | J161: NZD / MT
F162: Consumables | J162: NZD / MT
F163: Effluent | J163: NZD / MT
F164: Laboratory | J164: NZD / MT
F165: Carbon Credit Requirement | J165: MT CO2e / MT
F167: Fixed Manufacturing Costs
F168: Wages & ERE | J168: NZD 000s
F169: Repairs & Maintenance | J169: NZD 000s
F170: Energy | J170: NZD 000s
F171: Water (Fixed) | J171: NZD 000s
F172: Cleaning & CIP (Fixed) | J172: NZD 000s
F173: Consumables (Fixed) | J173: NZD 000s
F174: Effluent (Fixed) | J174: NZD 000s
F175: Laboratory (Fixed) | J175: NZD 000s
F176: Total | J176: NZD 000s | N176: =SUM(N168:N170) -> 0
F178: Site Overheads
F179: Staff Costs | J179: NZD 000s
F180: Other | J180: NZD 000s | N180: 373200
F181: Total | J181: NZD 000s | N181: =N180 -> 373200
F183: Fixed Opex - Phasing | J183: % | N183: =SUM(T183:AE183) -> 1 | T183: 0.1 | U183: 0.095 | V183: 0.085 | W183: 0.08 | X183: 0.08 | Y183: 0.08 | Z183: 0.08 | AA183: 0.08 | AB183: 0.07 | AC183: 0.08 | AD183: 0.08 | AE183: 0.09
F185: Lactose CIF costs per MT | J185: USD
F187: NZUS Surrender Ratio | J187: %
F188: NZUSSPOT Index | J188: NZD / MT CO2e
F190: SUPPLY CHAIN
F192: STATUS / DATA SOURCE
F195: Inland Freight Costs per MT
F196: Butter | J196: NZD / MT
F197: Other (Excl Lactose) | J197: NZD / MT
F198: Lactose | J198: NZD / MT
F200: Variable Supply Chain Costs
F201: Kotahi Fees | J201: USD / MT
F202: Complaints | J202: NZD / MT | N202: 79.70243384
F203: Supply chain admin etc (excl depn & amortisation) | J203: NZD / MT
F204: Pallets & Recycling | J204: NZD / MT
F205: Port Costs | J205: NZD / MT
F206: Dry Storage Costs | J206: NZD / MT
F207: Cool Storage Costs (Butter) per month | J207: NZD / MT
F208: Cool Storage Costs (Inbound) | J208: NZD / MT
F209: Cool Storage Costs (Outbound) | J209: NZD / MT
F210: Cool Storage Write-off Costs | J210: NZD / MT
F212: Fixed Supply Chain Costs
F213: Group Supply Chain Overheads | J213: NZD '000
F215: Supply Chain - Phasing | J215: % | N215: =SUM(T215:AO215) -> 1 | T215: 0.07695353482 | U215: 0.06080168379 | V215: 0.07477710625 | W215: 0.08379381469 | X215: 0.08673651303 | Y215: 0.09083598335 | Z215: 0.08574060333 | AA215: 0.09658340316 | AB215: 0.0834235151 | AC215: 0.09403069183 | AD215: 0.08158029806 | AE215: 0.08474285258
F217: ADMINISTRATION
F219: STATUS / DATA SOURCE
F222: NZ Manufacturing Overhead | J222: NZD '000
F223: Corporate Overhead | J223: NZD '000
F224: Fms Overheads | J224: NZD '000
F225: Shareholder Relations | J225: NZD '000
F226: Admin costs to model | J226: NZD '000 | N226: 252403.4218
F228: Admin - Phasing | J228: % | N228: =SUM(T228:AO228) -> 1 | T228: 0.115 | U228: 0.12 | V228: 0.105 | W228: 0.095 | X228: 0.105 | Y228: 0.08 | Z228: 0.08 | AA228: 0.08 | AB228: 0.08 | AC228: 0.06 | AD228: 0.06 | AE228: 0.02
F230: FIXED ASSETS
F232: STATUS / DATA SOURCE | J232: Fonterra's actual accounting and tax depreciation for collection assets are used in the calculation. Bundled here into (a) other depreciation and (b) as an adjustment to tilted annuity depreciation : tax depreciation ratio.
F236: Capital Charge | J236: NZD '000 | N236: 374465
F237: Net Depreciation | J237: NZD '000 | N237: 262249
F238: Accounting Depreciation - collection assets | J238: NZD '000
F239: Tax Depreciation - collection assets | J239: NZD '000
F241: INCOME TAX
F243: STATUS / DATA SOURCE | J243: Tax depn as % of accounting depn ratio actually set at 130% for F17 for assets other than collection assets. Adjusted here to generate correct average ratio when collection depreciation is included.
F247: Company Tax Rate | J247: % | N247: 0.28
F248: Tax depn as % of accounting depn | J248: % | N248: 1.15041
F251: WORKING CAPITAL
F253: STATUS / DATA SOURCE | J253: Debtor days reset to weighted average across 5 RCPs. In practice debtor days are calculated by reference to sales included in the Milk Price calcuatlion for each RCP.
J254: Creditor days 'other' normally set separately to lactose (which is paid for prior to month of utilisation, when cost is recognised in the model) and other. Have been (a) set equal here and (b) used as balancing adjustment to align simplified capital charge to actual.
F256: Creditor days - Other | J256: Days | N256: -11
F257: Creditor days - Lactose | J257: Days | N257: =N256 -> -11
F258: Debtor Days
F259: Butter | J259: Days | N259: 22.8592829
F260: AMF | J260: Days | N260: 22.8592829
F261: SMP | J261: Days | N261: 22.8592829
F262: BMP | J262: Days | N262: 22.8592829
F263: WMP | J263: Days | N263: 22.8592829
F265: Supplier Payables - Advance Rate Schedule
F266: Advance rate | N266: 6.7456 | T266: 4.211409018 | U266: 4.211409018 | V266: 4.361409018 | W266: 4.361409018 | X266: 4.363246654 | Y266: 4.374596035 | Z266: 4.389233486 | AA266: 4.47132641 | AB266: 4.688568442 | AC266: 4.881652022 | AD266: 5.067450471 | AE266: 5.242126256 | AF266: 5.354553118 | AG266: 5.554553118 | AH266: 6.054553118 | AI266: 6.054553118 | AJ266: =MilkPrice -> 6.745628631
F267: YTD advance rate / YTG % MP | J267: % | T267: =T266 -> 4.211409018 | U267: =U266 -> 4.211409018 | V267: 4.361409018 | W267: 4.361409018 | X267: 4.363246654 | Y267: 4.374596035 | Z267: 4.389233486 | AA267: 4.47132641 | AB267: 4.688568442 | AC267: 4.881652022 | AD267: 5.067450471 | AE267: 5.242126256 | AF267: 5.354553118 | AG267: 5.554553118 | AH267: 6.054553118 | AI267: 6.054553118 | AJ267: =AJ266 -> 6.745628631
F269: Working Capital - incremental cash costs | J269: NZD '000 | N269: 2418.927
F270: Working Capital - incremental cash costs phasing | J270: % | N270: =SUM(T270:AJ270) -> 1.000227008 | T270: 0 | U270: 0 | V270: 0 | W270: 0.12 | X270: 0.12 | Y270: 0.1 | Z270: 0.08 | AA270: 0.08 | AB270: 0.08 | AC270: 0.08 | AD270: 0.08 | AE270: 0.08 | AF270: 0.08 | AG270: 0.07 | AH270: 0.02 | AI270: 0.01 | AJ270: 0.0002270080676
F271: Working Capital - incremental cash costs (to model) | J271: NZD '000 | T271: =T270*$N$269 -> 0 | U271: =U270*$N$269 -> 0 | V271: 0 | W271: 290.27124 | X271: 290.27124 | Y271: 241.8927 | Z271: 193.51416 | AA271: 193.51416 | AB271: 193.51416 | AC271: 193.51416 | AD271: 193.51416 | AE271: 193.51416 | AF271: 193.51416 | AG271: 169.32489 | AH271: 48.37854 | AI271: 24.18927 | AJ271: 0.5491159439

Sheet Calculations
F5: Overall error check | J5: =IF(COUNTA(B:B)=COUNTIF(B:B,"Okay"),"Okay","Error") -> Okay | N5: Annual | T5: Monthly
J9: Units | K9: Cross Reference | N9: =Global!O7 -> 2018-05-31 | R9: =Global!R7 -> 2017-04-30 | S9: =Global!S7 -> 2017-05-31 | T9: =Global!T7 -> 2017-06-30 | U9: =Global!U7 -> 2017-07-31 | V9: =Global!V7 -> 2017-08-31 | W9: =Global!W7 -> 2017-09-30 | X9: =Global!X7 -> 2017-10-31 | Y9: =Global!Y7 -> 2017-11-30 | Z9: =Global!Z7 -> 2017-12-31 | AA9: =Global!AA7 -> 2018-01-31 | AB9: =Global!AB7 -> 2018-02-28 | AC9: =Global!AC7 -> 2018-03-31 | AD9: =Global!AD7 -> 2018-04-30 | AE9: =Global!AE7 -> 2018-05-31 | AF9: =Global!AF7 -> 2018-06-30 | AG9: =Global!AG7 -> 2018-07-31 | AH9: =Global!AH7 -> 2018-08-31 | AI9: =Global!AI7 -> 2018-09-30 | AJ9: =Global!AJ7 -> 2018-10-31 | AK9: =Global!AK7 -> 2018-11-30 | AL9: =Global!AL7 -> 2018-12-31 | AM9: =Global!AM7 -> 2019-01-31 | AN9: =Global!AN7 -> 2019-02-28 | AO9: =Global!AO7 -> 2019-03-31 | AP9: =Global!AP7 -> 2019-04-30 | AQ9: =Global!AQ7 -> 2019-05-31
D10: Calendar Year | T10: =YEAR(T9) -> 2017 | U10: =YEAR(U9) -> 2017 | V10: 2017 | W10: 2017 | X10: 2017 | Y10: 2017 | Z10: 2017 | AA10: 2018 | AB10: 2018 | AC10: 2018 | AD10: 2018 | AE10: 2018 | AF10: 2018 | AG10: 2018 | AH10: 2018 | AI10: 2018 | AJ10: 2018 | AK10: 2018 | AL10: 2018 | AM10: =YEAR(AM9) -> 2019 | AN10: =YEAR(AN9) -> 2019 | AO10: =YEAR(AO9) -> 2019 | AP10: =YEAR(AP9) -> 2019
D11: Month Number | T11: 1 | U11: =T11+1 -> 2 | V11: =U11+1 -> 3 | W11: =V11+1 -> 4 | X11: 5 | Y11: 6 | Z11: 7 | AA11: 8 | AB11: 9 | AC11: 10 | AD11: 11 | AE11: 12 | AF11: 13 | AG11: 14 | AH11: 15 | AI11: 16 | AJ11: 17 | AK11: 18 | AL11: 19 | AM11: =AL11+1 -> 20 | AN11: =AM11+1 -> 21 | AO11: =AN11+1 -> 22 | AP11: =AO11+1 -> 23
D12: Days in Period | R12: =Global!R10 -> 30 | S12: =Global!S10 -> 31 | T12: =Global!T10 -> 30 | U12: =U9-T9 -> 31 | V12: =V9-U9 -> 31 | W12: 30 | X12: 31 | Y12: 30 | Z12: 31 | AA12: 31 | AB12: 28 | AC12: 31 | AD12: 30 | AE12: 31 | AF12: 30 | AG12: 31 | AH12: 31 | AI12: 30 | AJ12: 31 | AK12: 30 | AL12: 31 | AM12: 31 | AN12: 28 | AO12: 31 | AP12: 30
D13: Year to Go flag | N13: 1 | P13: =Global!P11 -> 18 | T13: =Global!T11 -> 1 | U13: =Global!U11 -> 1 | V13: =Global!V11 -> 1 | W13: =Global!W11 -> 1 | X13: =Global!X11 -> 1 | Y13: =Global!Y11 -> 1 | Z13: =Global!Z11 -> 1 | AA13: =Global!AA11 -> 1 | AB13: =Global!AB11 -> 1 | AC13: =Global!AC11 -> 1 | AD13: =Global!AD11 -> 1 | AE13: =Global!AE11 -> 1 | AF13: =Global!AF11 -> 1 | AG13: =Global!AG11 -> 1 | AH13: =Global!AH11 -> 1 | AI13: =Global!AI11 -> 1 | AJ13: =Global!AJ11 -> 1 | AK13: =Global!AK11 -> 1 | AL13: =Global!AL11 -> 0 | AM13: =Global!AM11 -> 0 | AN13: =Global!AN11 -> 0 | AO13: =Global!AO11 -> 0
D14: PRODUCTION
D16: COMMENT | F16: See comments below. Production volumes to model have been hardcoded to align to actual volumes. Detail of loss assumptions & specification offsets, which is confidential to Fonterra, is required to
F17: flow milk supply through yield logic. Logic has however been retained in the model, and we have disclosed overall valued component usages by RCP (in cells O59:P63).
D20: DATA INPUT
F21: Milk Collected | J21: ='Data Input'!J32 -> 000 kgMS | N21: ='Data Input'!N32 -> 1505072.807 | T21: ='Data Input'!T32 -> 11765.5608 | U21: ='Data Input'!U32 -> 17236.4789 | V21: ='Data Input'!V32 -> 93392.226 | W21: ='Data Input'!W32 -> 171133.2002 | X21: ='Data Input'!X32 -> 208846.5865 | Y21: ='Data Input'!Y32 -> 199087.2903 | Z21: ='Data Input'!Z32 -> 176107.7639 | AA21: ='Data Input'!AA32 -> 158270.4222 | AB21: ='Data Input'!AB32 -> 135334.5532 | AC21: ='Data Input'!AC32 -> 142626.7951 | AD21: ='Data Input'!AD32 -> 120391.7255 | AE21: ='Data Input'!AE32 -> 70880.2044
F22: Milk Supply - Phasing | J22: ='Data Input'!J33 -> % | N22: =SUM(T22:AE22) -> 1 | T22: ='Data Input'!T33 -> 0.007817270198 | U22: ='Data Input'!U33 -> 0.01145225588 | V22: ='Data Input'!V33 -> 0.06205163336 | W22: ='Data Input'!W33 -> 0.1137042669 | X22: ='Data Input'!X33 -> 0.1387617832 | Y22: ='Data Input'!Y33 -> 0.1322775147 | Z22: ='Data Input'!Z33 -> 0.117009465 | AA22: ='Data Input'!AA33 -> 0.105157984 | AB22: ='Data Input'!AB33 -> 0.08991894118 | AC22: ='Data Input'!AC33 -> 0.09476405024 | AD22: ='Data Input'!AD33 -> 0.07999063231 | AE22: ='Data Input'!AE33 -> 0.04709420306
F24: ='Data Input'!F40 -> National average composition
F25: ='Data Input'!F41 -> Fat | J25: ='Data Input'!J41 -> % w/w | T25: ='Data Input'!T41 -> 0.04756441987 | U25: ='Data Input'!U41 -> 0.04756441987 | V25: ='Data Input'!V41 -> 0.04756441987 | W25: ='Data Input'!W41 -> 0.04592639582 | X25: ='Data Input'!X41 -> 0.04592639582 | Y25: ='Data Input'!Y41 -> 0.04592639582 | Z25: ='Data Input'!Z41 -> 0.0480573896 | AA25: ='Data Input'!AA41 -> 0.0480573896 | AB25: ='Data Input'!AB41 -> 0.0480573896 | AC25: ='Data Input'!AC41 -> 0.05494661317 | AD25: ='Data Input'!AD41 -> 0.05494661317 | AE25: ='Data Input'!AE41 -> 0.05494661317
F26: ='Data Input'!F42 -> Protein | J26: ='Data Input'!J42 -> % w/w | T26: ='Data Input'!T42 -> 0.03753584021 | U26: ='Data Input'!U42 -> 0.03753584021 | V26: ='Data Input'!V42 -> 0.03753584021 | W26: ='Data Input'!W42 -> 0.03602088408 | X26: ='Data Input'!X42 -> 0.03602088408 | Y26: ='Data Input'!Y42 -> 0.03602088408 | Z26: ='Data Input'!Z42 -> 0.03667523987 | AA26: ='Data Input'!AA42 -> 0.03667523987 | AB26: ='Data Input'!AB42 -> 0.03667523987 | AC26: ='Data Input'!AC42 -> 0.04253434242 | AD26: ='Data Input'!AD42 -> 0.04253434242 | AE26: ='Data Input'!AE42 -> 0.04253434242
F27: ='Data Input'!F43 -> Lactose + Minerals | J27: ='Data Input'!J43 -> % w/w | T27: ='Data Input'!T43 -> 0.05444568301 | U27: ='Data Input'!U43 -> 0.05444568301 | V27: ='Data Input'!V43 -> 0.05444568301 | W27: ='Data Input'!W43 -> 0.05458651526 | X27: ='Data Input'!X43 -> 0.05458651526 | Y27: ='Data Input'!Y43 -> 0.05458651526 | Z27: ='Data Input'!Z43 -> 0.05344974264 | AA27: ='Data Input'!AA43 -> 0.05344974264 | AB27: ='Data Input'!AB43 -> 0.05344974264 | AC27: ='Data Input'!AC43 -> 0.05197998752 | AD27: ='Data Input'!AD43 -> 0.05197998752 | AE27: ='Data Input'!AE43 -> 0.05197998752
F29: ='Data Input'!F70 -> Product mix
F30: ='Data Input'!F71 -> Annual average ratio of WMP MT to WMP + SMP | J30: ='Data Input'!J71 -> % | T30: ='Data Input'!T71 -> 0.7617148597 | U30: ='Data Input'!U71 -> 0.7617148597 | V30: ='Data Input'!V71 -> 0.7617148597 | W30: ='Data Input'!W71 -> 0.7617148597 | X30: ='Data Input'!X71 -> 0.7617148597 | Y30: ='Data Input'!Y71 -> 0.7617148597 | Z30: ='Data Input'!Z71 -> 0.7617148597 | AA30: ='Data Input'!AA71 -> 0.7617148597 | AB30: ='Data Input'!AB71 -> 0.7617148597 | AC30: ='Data Input'!AC71 -> 0.7617148597 | AD30: ='Data Input'!AD71 -> 0.7617148597 | AE30: ='Data Input'!AE71 -> 0.7617148597
F31: ='Data Input'!F72 -> Annual average ratio of Butter MT to Butter + AMF | J31: ='Data Input'!J72 -> % | T31: ='Data Input'!T72 -> 0.656207773 | U31: ='Data Input'!U72 -> 0.656207773 | V31: ='Data Input'!V72 -> 0.656207773 | W31: ='Data Input'!W72 -> 0.656207773 | X31: ='Data Input'!X72 -> 0.656207773 | Y31: ='Data Input'!Y72 -> 0.656207773 | Z31: ='Data Input'!Z72 -> 0.656207773 | AA31: ='Data Input'!AA72 -> 0.656207773 | AB31: ='Data Input'!AB72 -> 0.656207773 | AC31: ='Data Input'!AC72 -> 0.656207773 | AD31: ='Data Input'!AD72 -> 0.656207773 | AE31: ='Data Input'!AE72 -> 0.656207773
F33: ='Data Input'!F45 -> Milk Composition Input Parameters
F34: ='Data Input'!F46 -> Cream Fat Content | J34: ='Data Input'!J46 -> % | N34: ='Data Input'!N46 -> 0.42
F35: ='Data Input'!F47 -> Skimmilk Fat Content | J35: ='Data Input'!J47 -> % | N35: ='Data Input'!N47 -> 0.0008
F36: ='Data Input'!F48 -> Wholemilk Density | J36: ='Data Input'!J48 -> % | N36: ='Data Input'!N48 -> 1.032
F38: ='Data Input'!F50 -> Lactose Standardising Inputs
F39: ='Data Input'!F51 -> Lactose losses - WMP | J39: ='Data Input'!J51 -> % | N39: ='Data Input'!N51 -> 0
F40: ='Data Input'!F52 -> Lactose losses - SMP | J40: ='Data Input'!J52 -> % | N40: ='Data Input'!N52 -> 0
F41: ='Data Input'!F53 -> Lactose losses - BMP | J41: ='Data Input'!J53 -> % | N41: ='Data Input'!N53 -> 0
F42: ='Data Input'!F54 -> Lactose content of lactose powder | J42: ='Data Input'!J54 -> % | N42: ='Data Input'!N54 -> 0.95
F44: ='Data Input'!F56 -> Composition Target | L44: ='Data Input'!L56 -> Fat | M44: ='Data Input'!M56 -> Protein | N44: ='Data Input'!N56 -> Moisture
F45: ='Data Input'!F57 -> Butter | J45: ='Data Input'!J57 -> %w/w | L45: ='Data Input'!L57 -> 0 | M45: ='Data Input'!M57 -> 0 | N45: ='Data Input'!N57 -> 0
F46: ='Data Input'!F58 -> AMF | J46: ='Data Input'!J58 -> %w/w | L46: ='Data Input'!L58 -> 0 | M46: ='Data Input'!M58 -> 0 | N46: ='Data Input'!N58 -> 0
F47: ='Data Input'!F59 -> SMP | J47: ='Data Input'!J59 -> %w/w | L47: ='Data Input'!L59 -> 0 | M47: ='Data Input'!M59 -> 0 | N47: ='Data Input'!N59 -> 0
F48: ='Data Input'!F60 -> BMP | J48: ='Data Input'!J60 -> %w/w | L48: ='Data Input'!L60 -> 0 | M48: ='Data Input'!M60 -> 0 | N48: ='Data Input'!N60 -> 0
F49: ='Data Input'!F61 -> WMP | J49: ='Data Input'!J61 -> %w/w | L49: ='Data Input'!L61 -> 0 | M49: ='Data Input'!M61 -> 0 | N49: ='Data Input'!N61 -> 0
F51: ='Data Input'!F63 -> Value Component Usage | L51: ='Data Input'!L63 -> Fat | M51: ='Data Input'!M63 -> Protein
F52: ='Data Input'!F64 -> Butter | J52: ='Data Input'!J64 -> kg/mt | L52: ='Data Input'!L64 -> 0 | M52: ='Data Input'!M64 -> 0
F53: ='Data Input'!F65 -> AMF | J53: ='Data Input'!J65 -> kg/mt | L53: ='Data Input'!L65 -> 0 | M53: ='Data Input'!M65 -> 0
F54: ='Data Input'!F66 -> SMP | J54: ='Data Input'!J66 -> kg/mt | L54: ='Data Input'!L66 -> 0 | M54: ='Data Input'!M66 -> 0
F55: ='Data Input'!F67 -> BMP | J55: ='Data Input'!J67 -> kg/mt | L55: ='Data Input'!L67 -> 0 | M55: ='Data Input'!M67 -> 0
F56: ='Data Input'!F68 -> WMP | J56: ='Data Input'!J68 -> kg/mt | L56: ='Data Input'!L68 -> 0 | M56: ='Data Input'!M68 -> 0
O57: Hardcoded for use in inventory calculations
D58: CALCULATIONS | F58: Valued Component Usage | L58: Fat | M58: Protein | O58: Fat | P58: Protein
D59: Logic retained, but key input cells not populated. | F59: Butter | J59: % | L59: =OFFSET($L$51,MATCH($F59,$F$52:$F$56,0),)/1000 -> 0 | M59: =OFFSET($M$51,MATCH($F59,$F$52:$F$56,0),)/1000 -> 0 | O59: 0.83158 | P59: 0.00535
F60: AMF | J60: % | L60: =OFFSET($L$51,MATCH($F60,$F$52:$F$56,0),)/1000 -> 0 | M60: =OFFSET($M$51,MATCH($F60,$F$52:$F$56,0),)/1000 -> 0 | O60: 1.00196 | P60: 0.0008
F61: SMP | J61: % | L61: =OFFSET($L$51,MATCH($F61,$F$52:$F$56,0),)/1000 -> 0 | M61: =OFFSET($M$51,MATCH($F61,$F$52:$F$56,0),)/1000 -> 0 | O61: 0.009666276978 | P61: 0.32772752
F62: BMP | J62: % | L62: =OFFSET($L$51,MATCH($F62,$F$52:$F$56,0),)/1000 -> 0 | M62: =OFFSET($M$51,MATCH($F62,$F$52:$F$56,0),)/1000 -> 0 | O62: 0.08046071876 | P62: 0.3038065022
F63: WMP | J63: % | L63: =OFFSET($L$51,MATCH($F63,$F$52:$F$56,0),)/1000 -> 0 | M63: =OFFSET($M$51,MATCH($F63,$F$52:$F$56,0),)/1000 -> 0 | O63: 0.262194459 | P63: 0.2419013992
F65: Lactose Requirements per MT
F66: SMP | J66: % | N66: =SUMPRODUCT(T66:AE66,T187:AE187)/N187 -> 1.052631579 | T66: =T$90/1000 -> 1.052631579 | U66: =U$90/1000 -> 1.052631579 | V66: 1.052631579 | W66: 1.052631579 | X66: 1.052631579 | Y66: 1.052631579 | Z66: 1.052631579 | AA66: 1.052631579 | AB66: 1.052631579 | AC66: 1.052631579 | AD66: 1.052631579 | AE66: 1.052631579
F67: BMP | J67: % | N67: =SUMPRODUCT(T67:AE67,T188:AE188)/N188 -> 1.052631579 | T67: =T$92/1000 -> 1.052631579 | U67: =U$92/1000 -> 1.052631579 | V67: 1.052631579 | W67: 1.052631579 | X67: 1.052631579 | Y67: 1.052631579 | Z67: 1.052631579 | AA67: 1.052631579 | AB67: 1.052631579 | AC67: 1.052631579 | AD67: 1.052631579 | AE67: 1.052631579
F68: WMP | J68: % | N68: =SUMPRODUCT(T68:AE68,T189:AE189)/N189 -> 1.052631579 | T68: =T$108/1000 -> 1.052631579 | U68: =U$108/1000 -> 1.052631579 | V68: 1.052631579 | W68: 1.052631579 | X68: 1.052631579 | Y68: 1.052631579 | Z68: 1.052631579 | AA68: 1.052631579 | AB68: 1.052631579 | AC68: 1.052631579 | AD68: 1.052631579 | AE68: 1.052631579
F70: Wholemilk Composition Parameters
F71: Fat | J71: kg Fat / m3 wholemilk | T71: =$N$36*T25*1000 -> 49.08648131 | U71: 49.08648131 | V71: 49.08648131 | W71: 47.39604049 | X71: 47.39604049 | Y71: 47.39604049 | Z71: 49.59522606 | AA71: 49.59522606 | AB71: 49.59522606 | AC71: 56.7049048 | AD71: 56.7049048 | AE71: 56.7049048
F72: Protein | J72: kg Protein / m3 wholemilk | T72: =$N$36*T26*1000 -> 38.73698709 | U72: 38.73698709 | V72: 38.73698709 | W72: 37.17355237 | X72: 37.17355237 | Y72: 37.17355237 | Z72: 37.84884755 | AA72: 37.84884755 | AB72: 37.84884755 | AC72: 43.89544137 | AD72: 43.89544137 | AE72: 43.89544137
F73: Raw Milk Protein : SNF Ratio | J73: % | T73: =T26/SUM(T26:T27) -> 0.4080802198 | U73: 0.4080802198 | V73: 0.4080802198 | W73: 0.397549034 | X73: 0.397549034 | Y73: 0.397549034 | Z73: 0.4069375533 | AA73: 0.4069375533 | AB73: 0.4069375533 | AC73: 0.4500306191 | AD73: 0.4500306191 | AE73: 0.4500306191
F74: Cream Protein | J74: % | T74: =(1-$N$34)/(1-T25)*T26 -> 0.02285801557 | U74: 0.02285801557 | V74: 0.02285801557 | W74: 0.02189779979 | X74: 0.02189779979 | Y74: 0.02189779979 | Z74: 0.02234550581 | AA74: 0.02234550581 | AB74: 0.02234550581 | AC74: 0.02610425924 | AD74: 0.02610425924 | AE74: 0.02610425924
F76: SMP
F77: Excess Cream
F78: kg cream | J78: kg /m3 wholemilk | T78: =IFERROR((T$72*$L$54-T$71*$M$54)/(T$74*$L$54-$N$34*$M$54),0) -> 0 | U78: =IFERROR((U$72*$L$54-U$71*$M$54)/(U$74*$L$54-$N$34*$M$54),0) -> 0 | V78: 0 | W78: 0 | X78: 0 | Y78: 0 | Z78: 0 | AA78: 0 | AB78: 0 | AC78: 0 | AD78: 0 | AE78: 0
F79: Fat | J79: kg /m3 wholemilk | T79: =T78*$N$34 -> 0 | U79: =U78*$N$34 -> 0 | V79: 0 | W79: 0 | X79: 0 | Y79: 0 | Z79: 0 | AA79: 0 | AB79: 0 | AC79: 0 | AD79: 0 | AE79: 0
F80: Protein | J80: kg /m3 wholemilk | T80: =T78*T74 -> 0 | U80: 0 | V80: 0 | W80: 0 | X80: 0 | Y80: 0 | Z80: 0 | AA80: 0 | AB80: 0 | AC80: 0 | AD80: 0 | AE80: 0
F82: SMP | J82: kg /m3 wholemilk | T82: =IFERROR((T71-T78*$N$34)/$L$54*1000,0) -> 0 | U82: =IFERROR((U71-U78*$N$34)/$L$54*1000,0) -> 0 | V82: 0 | W82: 0 | X82: 0 | Y82: 0 | Z82: 0 | AA82: 0 | AB82: 0 | AC82: 0 | AD82: 0 | AE82: 0
F83: Butter | J83: kg /m3 wholemilk | T83: =IFERROR((T79*$M$55-T80*$L$55)*1000/($L$52*$M$55-$M$52*$L$55),0) -> 0 | U83: =IFERROR((U79*$M$55-U80*$L$55)*1000/($L$52*$M$55-$M$52*$L$55),0) -> 0 | V83: 0 | W83: 0 | X83: 0 | Y83: 0 | Z83: 0 | AA83: 0 | AB83: 0 | AC83: 0 | AD83: 0 | AE83: 0
F84: BMP | J84: kg /m3 wholemilk | T84: =IFERROR((T80-T83*$M$52/1000)/($M$55/1000),0) -> 0 | U84: =IFERROR((U80-U83*$M$52/1000)/($M$55/1000),0) -> 0 | V84: 0 | W84: 0 | X84: 0 | Y84: 0 | Z84: 0 | AA84: 0 | AB84: 0 | AC84: 0 | AD84: 0 | AE84: 0
F85: AMF | J85: kg /m3 wholemilk | T85: =IFERROR((T79*$M$55-T80*$L$55)*1000/($L$53*$M$55-$M$53*$L$55),0) -> 0 | U85: =IFERROR((U79*$M$55-U80*$L$55)*1000/($L$53*$M$55-$M$53*$L$55),0) -> 0 | V85: 0 | W85: 0 | X85: 0 | Y85: 0 | Z85: 0 | AA85: 0 | AB85: 0 | AC85: 0 | AD85: 0 | AE85: 0
F86: BMP | J86: kg /m3 wholemilk | T86: =IFERROR((T80-T85*$M$53/1000)/($M$55/1000),0) -> 0 | U86: =IFERROR((U80-U85*$M$53/1000)/($M$55/1000),0) -> 0 | V86: 0 | W86: 0 | X86: 0 | Y86: 0 | Z86: 0 | AA86: 0 | AB86: 0 | AC86: 0 | AD86: 0 | AE86: 0
F88: Lactose Standardising
F89: Primary product (excl Losses) | J89: kg/mt | T89: =(1-$L$47-$N$47-$M$47/T73)*1000 -> 1000 | U89: =(1-$L$47-$N$47-$M$47/U73)*1000 -> 1000 | V89: 1000 | W89: 1000 | X89: 1000 | Y89: 1000 | Z89: 1000 | AA89: 1000 | AB89: 1000 | AC89: 1000 | AD89: 1000 | AE89: 1000
F90: Primary product (incl Losses) | J90: kg/mt | T90: =T89/(1-$N$40)/$N$42 -> 1052.631579 | U90: =U89/(1-$N$40)/$N$42 -> 1052.631579 | V90: 1052.631579 | W90: 1052.631579 | X90: 1052.631579 | Y90: 1052.631579 | Z90: 1052.631579 | AA90: 1052.631579 | AB90: 1052.631579 | AC90: 1052.631579 | AD90: 1052.631579 | AE90: 1052.631579
F91: BMP (excl Losses) | J91: kg/mt | T91: =(1-$L$48-$N$48-$M$48/T73)*1000 -> 1000 | U91: 1000 | V91: 1000 | W91: 1000 | X91: 1000 | Y91: 1000 | Z91: 1000 | AA91: 1000 | AB91: 1000 | AC91: 1000 | AD91: 1000 | AE91: 1000
F92: BMP (incl Losses and Moisture) | J92: kg/mt | T92: =T91/(1-$N$41)/$N$42 -> 1052.631579 | U92: =U91/(1-$N$41)/$N$42 -> 1052.631579 | V92: 1052.631579 | W92: 1052.631579 | X92: 1052.631579 | Y92: 1052.631579 | Z92: 1052.631579 | AA92: 1052.631579 | AB92: 1052.631579 | AC92: 1052.631579 | AD92: 1052.631579 | AE92: 1052.631579
F94: WMP
F95: Excess Cream
F96: kg cream | J96: kg /m3 wholemilk | T96: =IFERROR((T$72*$L$56-T$71*$M$56)/(T$74*$L$56-$N$34*$M$56),0) -> 0 | U96: =IFERROR((U$72*$L$56-U$71*$M$56)/(U$74*$L$56-$N$34*$M$56),0) -> 0 | V96: 0 | W96: 0 | X96: 0 | Y96: 0 | Z96: 0 | AA96: 0 | AB96: 0 | AC96: 0 | AD96: 0 | AE96: 0
F97: Fat | J97: kg /m3 wholemilk | T97: =T96*$N$34 -> 0 | U97: =U96*$N$34 -> 0 | V97: 0 | W97: 0 | X97: 0 | Y97: 0 | Z97: 0 | AA97: 0 | AB97: 0 | AC97: 0 | AD97: 0 | AE97: 0
F98: Protein | J98: kg /m3 wholemilk | T98: =T96*T74 -> 0 | U98: 0 | V98: 0 | W98: 0 | X98: 0 | Y98: 0 | Z98: 0 | AA98: 0 | AB98: 0 | AC98: 0 | AD98: 0 | AE98: 0
F100: WMP | J100: kg /m3 wholemilk | T100: =IFERROR((T71-T96*$N$34)/$L$56*1000,0) -> 0 | U100: =IFERROR((U71-U96*$N$34)/$L$56*1000,0) -> 0 | V100: 0 | W100: 0 | X100: 0 | Y100: 0 | Z100: 0 | AA100: 0 | AB100: 0 | AC100: 0 | AD100: 0 | AE100: 0
F101: Butter | J101: kg /m3 wholemilk | T101: =IFERROR((T97*$M$55-T98*$L$55)*1000/($L$52*$M$55-$M$52*$L$55),0) -> 0 | U101: =IFERROR((U97*$M$55-U98*$L$55)*1000/($L$52*$M$55-$M$52*$L$55),0) -> 0 | V101: 0 | W101: 0 | X101: 0 | Y101: 0 | Z101: 0 | AA101: 0 | AB101: 0 | AC101: 0 | AD101: 0 | AE101: 0
F102: BMP | J102: kg /m3 wholemilk | T102: =IFERROR((T98-T101*$M$52/1000)/($M$55/1000),0) -> 0 | U102: =IFERROR((U98-U101*$M$52/1000)/($M$55/1000),0) -> 0 | V102: 0 | W102: 0 | X102: 0 | Y102: 0 | Z102: 0 | AA102: 0 | AB102: 0 | AC102: 0 | AD102: 0 | AE102: 0
F103: AMF | J103: kg /m3 wholemilk | T103: =IFERROR((T97*$M$55-T98*$L$55)*1000/($L$53*$M$55-$M$53*$L$55),0) -> 0 | U103: =IFERROR((U97*$M$55-U98*$L$55)*1000/($L$53*$M$55-$M$53*$L$55),0) -> 0 | V103: 0 | W103: 0 | X103: 0 | Y103: 0 | Z103: 0 | AA103: 0 | AB103: 0 | AC103: 0 | AD103: 0 | AE103: 0
F104: BMP | J104: kg /m3 wholemilk | T104: =IFERROR((T98-T103*$M$53/1000)/($M$55/1000),0) -> 0 | U104: =IFERROR((U98-U103*$M$53/1000)/($M$55/1000),0) -> 0 | V104: 0 | W104: 0 | X104: 0 | Y104: 0 | Z104: 0 | AA104: 0 | AB104: 0 | AC104: 0 | AD104: 0 | AE104: 0
F106: Lactose Standardising
F107: Primary product (excl Losses) | J107: kg/mt | T107: =(1-$L$49-$N$49-$M$49/T73)*1000 -> 1000 | U107: =(1-$L$49-$N$49-$M$49/U73)*1000 -> 1000 | V107: 1000 | W107: 1000 | X107: 1000 | Y107: 1000 | Z107: 1000 | AA107: 1000 | AB107: 1000 | AC107: 1000 | AD107: 1000 | AE107: 1000
F108: Primary product (incl Losses) | J108: kg/mt | T108: =T107/(1-$N$39)/$N$42 -> 1052.631579 | U108: =U107/(1-$N$39)/$N$42 -> 1052.631579 | V108: 1052.631579 | W108: 1052.631579 | X108: 1052.631579 | Y108: 1052.631579 | Z108: 1052.631579 | AA108: 1052.631579 | AB108: 1052.631579 | AC108: 1052.631579 | AD108: 1052.631579 | AE108: 1052.631579
F109: BMP (excl Losses) | J109: kg/mt | T109: =(1-$L$48-$N$48-$M$48/T73)*1000 -> 1000 | U109: 1000 | V109: 1000 | W109: 1000 | X109: 1000 | Y109: 1000 | Z109: 1000 | AA109: 1000 | AB109: 1000 | AC109: 1000 | AD109: 1000 | AE109: 1000
F110: BMP (incl Losses and Moisture) | J110: kg/mt | T110: =T109/(1-$N$41)/$N$42 -> 1052.631579 | U110: 1052.631579 | V110: 1052.631579 | W110: 1052.631579 | X110: 1052.631579 | Y110: 1052.631579 | Z110: 1052.631579 | AA110: 1052.631579 | AB110: 1052.631579 | AC110: 1052.631579 | AD110: 1052.631579 | AE110: 1052.631579
F112: Monthly National Average Yields
F113: SMP | J113: % | N113: =SUMPRODUCT(T113:AE113,$T$21:$AE$21)/$N$21 -> 0 | T113: =T82/SUM(T$71:T$72) -> 0 | U113: =U82/SUM(U$71:U$72) -> 0 | V113: 0 | W113: 0 | X113: 0 | Y113: 0 | Z113: 0 | AA113: 0 | AB113: 0 | AC113: 0 | AD113: 0 | AE113: 0
F114: SMP Butter | J114: % | N114: =SUMPRODUCT(T114:AE114,$T$21:$AE$21)/$N$21 -> 0 | T114: =T83/SUM(T$71:T$72) -> 0 | U114: 0 | V114: 0 | W114: 0 | X114: 0 | Y114: 0 | Z114: 0 | AA114: 0 | AB114: 0 | AC114: 0 | AD114: 0 | AE114: 0
F115: SMP Butter BMP | J115: % | N115: 0 | T115: =T84/SUM(T$71:T$72) -> 0 | U115: 0 | V115: 0 | W115: 0 | X115: 0 | Y115: 0 | Z115: 0 | AA115: 0 | AB115: 0 | AC115: 0 | AD115: 0 | AE115: 0
F116: SMP AMF | J116: % | N116: 0 | T116: =T85/SUM(T$71:T$72) -> 0 | U116: 0 | V116: 0 | W116: 0 | X116: 0 | Y116: 0 | Z116: 0 | AA116: 0 | AB116: 0 | AC116: 0 | AD116: 0 | AE116: 0
F117: SMP AMF BMP | J117: % | N117: 0 | T117: =T86/SUM(T$71:T$72) -> 0 | U117: 0 | V117: 0 | W117: 0 | X117: 0 | Y117: 0 | Z117: 0 | AA117: 0 | AB117: 0 | AC117: 0 | AD117: 0 | AE117: 0
F119: WMP | J119: % | N119: 0 | T119: =T100/SUM(T$71:T$72) -> 0 | U119: 0 | V119: 0 | W119: 0 | X119: 0 | Y119: 0 | Z119: 0 | AA119: 0 | AB119: 0 | AC119: 0 | AD119: 0 | AE119: 0
F120: WMP Butter | J120: % | N120: 0 | T120: =T101/SUM(T$71:T$72) -> 0 | U120: 0 | V120: 0 | W120: 0 | X120: 0 | Y120: 0 | Z120: 0 | AA120: 0 | AB120: 0 | AC120: 0 | AD120: 0 | AE120: 0
F121: WMP Butter BMP | J121: % | N121: 0 | T121: =T102/SUM(T$71:T$72) -> 0 | U121: 0 | V121: 0 | W121: 0 | X121: 0 | Y121: 0 | Z121: 0 | AA121: 0 | AB121: 0 | AC121: 0 | AD121: 0 | AE121: 0
F122: WMP AMF | J122: % | N122: 0 | T122: =T103/SUM(T$71:T$72) -> 0 | U122: 0 | V122: 0 | W122: 0 | X122: 0 | Y122: 0 | Z122: 0 | AA122: 0 | AB122: 0 | AC122: 0 | AD122: 0 | AE122: 0
F123: WMP AMF BMP | J123: % | N123: 0 | T123: =T104/SUM(T$71:T$72) -> 0 | U123: 0 | V123: 0 | W123: 0 | X123: 0 | Y123: 0 | Z123: 0 | AA123: 0 | AB123: 0 | AC123: 0 | AD123: 0 | AE123: 0
F125: Calculated Mix to Model
F126: % of milksolids allocated to WMP | J126: % | N126: =SUMPRODUCT(T126:AE126,'Data Input'!$T$33:$AE$33) -> 0 | T126: =IFERROR(T30/(T30+(1-T30)*(T119/T113)),0) -> 0 | U126: 0 | V126: 0 | W126: 0 | X126: 0 | Y126: 0 | Z126: 0 | AA126: 0 | AB126: 0 | AC126: 0 | AD126: 0 | AE126: 0
F127: % of milkfat allocated to Butter - SMP | J127: % | N127: =SUMPRODUCT(T127:AE127,'Data Input'!$T$33:$AE$33) -> 0 | T127: =IFERROR(T31/(T31+(1-T31)*(T114/T116)),0) -> 0 | U127: 0 | V127: 0 | W127: 0 | X127: 0 | Y127: 0 | Z127: 0 | AA127: 0 | AB127: 0 | AC127: 0 | AD127: 0 | AE127: 0
F128: % of milkfat allocated to Butter - WMP | J128: % | N128: =SUMPRODUCT(T128:AE128,'Data Input'!$T$33:$AE$33) -> 0 | T128: =IFERROR(T31/(T31+(1-T31)*(T120/T122)),0) -> 0 | U128: 0 | V128: 0 | W128: 0 | X128: 0 | Y128: 0 | Z128: 0 | AA128: 0 | AB128: 0 | AC128: 0 | AD128: 0 | AE128: 0
F130: Product Weights
F131: SMP | J131: % | N131: =1-N126 -> 1 | T131: =1-T126 -> 1 | U131: 1 | V131: 1 | W131: 1 | X131: 1 | Y131: 1 | Z131: 1 | AA131: 1 | AB131: 1 | AC131: 1 | AD131: 1 | AE131: 1
F132: SMP Butter | J132: % | N132: =N131*N127 -> 0 | T132: =T131*T127 -> 0 | U132: 0 | V132: 0 | W132: 0 | X132: 0 | Y132: 0 | Z132: 0 | AA132: 0 | AB132: 0 | AC132: 0 | AD132: 0 | AE132: 0
F133: SMP Butter BMP | J133: % | N133: =N132 -> 0 | T133: =T132 -> 0 | U133: =U132 -> 0 | V133: 0 | W133: 0 | X133: 0 | Y133: 0 | Z133: 0 | AA133: 0 | AB133: 0 | AC133: 0 | AD133: 0 | AE133: 0
F134: SMP AMF | J134: % | N134: =N131*(1-N127) -> 1 | T134: =T131*(1-T127) -> 1 | U134: 1 | V134: 1 | W134: 1 | X134: 1 | Y134: 1 | Z134: 1 | AA134: 1 | AB134: 1 | AC134: 1 | AD134: 1 | AE134: 1
F135: SMP AMF BMP | J135: % | N135: =N134 -> 1 | T135: =T134 -> 1 | U135: =U134 -> 1 | V135: 1 | W135: 1 | X135: 1 | Y135: 1 | Z135: 1 | AA135: 1 | AB135: 1 | AC135: 1 | AD135: 1 | AE135: 1
F137: WMP | J137: % | N137: =N126 -> 0 | T137: =T126 -> 0 | U137: 0 | V137: 0 | W137: 0 | X137: 0 | Y137: 0 | Z137: 0 | AA137: 0 | AB137: 0 | AC137: 0 | AD137: 0 | AE137: 0
F138: WMP Butter | J138: % | N138: =N137*N128 -> 0 | T138: =T137*T128 -> 0 | U138: 0 | V138: 0 | W138: 0 | X138: 0 | Y138: 0 | Z138: 0 | AA138: 0 | AB138: 0 | AC138: 0 | AD138: 0 | AE138: 0
F139: WMP Butter BMP | J139: % | N139: =N138 -> 0 | T139: =T138 -> 0 | U139: =U138 -> 0 | V139: 0 | W139: 0 | X139: 0 | Y139: 0 | Z139: 0 | AA139: 0 | AB139: 0 | AC139: 0 | AD139: 0 | AE139: 0
F140: WMP AMF | J140: % | N140: =N137*(1-N128) -> 0 | T140: =T137*(1-T128) -> 0 | U140: 0 | V140: 0 | W140: 0 | X140: 0 | Y140: 0 | Z140: 0 | AA140: 0 | AB140: 0 | AC140: 0 | AD140: 0 | AE140: 0
F141: WMP AMF BMP | J141: % | N141: =N140 -> 0 | T141: =T140 -> 0 | U141: =U140 -> 0 | V141: 0 | W141: 0 | X141: 0 | Y141: 0 | Z141: 0 | AA141: 0 | AB141: 0 | AC141: 0 | AD141: 0 | AE141: 0
F142: Calculated Yields
F143: Butter | N143: =SUMPRODUCT(T143:AE143,$T$21:$AE$21)/$N$21 -> 0 | T143: =T132*T114+T138*T120 -> 0 | U143: 0 | V143: 0 | W143: 0 | X143: 0 | Y143: 0 | Z143: 0 | AA143: 0 | AB143: 0 | AC143: 0 | AD143: 0 | AE143: 0
F144: AMF | N144: =SUMPRODUCT(T144:AE144,$T$21:$AE$21)/$N$21 -> 0 | T144: =T134*T116+T140*T122 -> 0 | U144: 0 | V144: 0 | W144: 0 | X144: 0 | Y144: 0 | Z144: 0 | AA144: 0 | AB144: 0 | AC144: 0 | AD144: 0 | AE144: 0
F145: SMP | N145: =SUMPRODUCT(T145:AE145,$T$21:$AE$21)/$N$21 -> 0 | T145: =T131*T113 -> 0 | U145: 0 | V145: 0 | W145: 0 | X145: 0 | Y145: 0 | Z145: 0 | AA145: 0 | AB145: 0 | AC145: 0 | AD145: 0 | AE145: 0
F146: BMP | N146: =SUMPRODUCT(T146:AE146,$T$21:$AE$21)/$N$21 -> 0 | T146: =T133*T115+T139*T121+T135*T117+T141*T123 -> 0 | U146: 0 | V146: 0 | W146: 0 | X146: 0 | Y146: 0 | Z146: 0 | AA146: 0 | AB146: 0 | AC146: 0 | AD146: 0 | AE146: 0
F147: WMP | N147: =SUMPRODUCT(T147:AE147,$T$21:$AE$21)/$N$21 -> 0 | T147: =T137*T119 -> 0 | U147: 0 | V147: 0 | W147: 0 | X147: 0 | Y147: 0 | Z147: 0 | AA147: 0 | AB147: 0 | AC147: 0 | AD147: 0 | AE147: 0
F148: Total | N148: =SUM(N143:N147) -> 0 | T148: =SUM(T143:T147) -> 0 | U148: 0 | V148: 0 | W148: 0 | X148: 0 | Y148: 0 | Z148: 0 | AA148: 0 | AB148: 0 | AC148: 0 | AD148: 0 | AE148: 0
D150: Actual yield calculations | F150: Product Mix to Model
F151: Butter | J151: MT | N151: =SUM(T151:AE151) -> 0 | T151: =T143*T$21 -> 0 | U151: =U143*U$21 -> 0 | V151: 0 | W151: 0 | X151: 0 | Y151: 0 | Z151: 0 | AA151: 0 | AB151: 0 | AC151: 0 | AD151: 0 | AE151: 0
F152: AMF | J152: MT | N152: =SUM(T152:AE152) -> 0 | T152: =T144*T$21 -> 0 | U152: 0 | V152: 0 | W152: 0 | X152: 0 | Y152: 0 | Z152: 0 | AA152: 0 | AB152: 0 | AC152: 0 | AD152: 0 | AE152: 0
F153: SMP | J153: MT | N153: =SUM(T153:AE153) -> 0 | T153: =T145*T$21 -> 0 | U153: =U145*U$21 -> 0 | V153: 0 | W153: 0 | X153: 0 | Y153: 0 | Z153: 0 | AA153: 0 | AB153: 0 | AC153: 0 | AD153: 0 | AE153: 0
F154: BMP | J154: MT | N154: =SUM(T154:AE154) -> 0 | T154: 0 | U154: 0 | V154: 0 | W154: =W146*W$21 -> 0 | X154: 0 | Y154: 0 | Z154: 0 | AA154: 0 | AB154: 0 | AC154: 0 | AD154: 0 | AE154: 0
F155: WMP | J155: MT | N155: =SUM(T155:AE155) -> 0 | T155: =T147*T$21 -> 0 | U155: 0 | V155: 0 | W155: 0 | X155: 0 | Y155: 0 | Z155: 0 | AA155: 0 | AB155: 0 | AC155: 0 | AD155: 0 | AE155: 0
F156: Total | J156: MT | N156: =SUM(N151:N155) -> 0 | T156: =SUM(T151:T155) -> 0 | U156: =SUM(U151:U155) -> 0 | V156: =SUM(V151:V155) -> 0 | W156: =SUM(W151:W155) -> 0 | X156: 0 | Y156: 0 | Z156: 0 | AA156: 0 | AB156: 0 | AC156: 0 | AD156: 0 | AE156: 0
F158: Fat Usage
F159: Butter | J159: 000 kgMS | N159: =SUM(T159:AE159) -> 0 | T159: =T151*$L59 -> 0 | U159: 0 | V159: 0 | W159: 0 | X159: 0 | Y159: 0 | Z159: 0 | AA159: 0 | AB159: 0 | AC159: 0 | AD159: 0 | AE159: 0
F160: AMF | J160: 000 kgMS | N160: =SUM(T160:AE160) -> 0 | T160: 0 | U160: 0 | V160: 0 | W160: 0 | X160: 0 | Y160: 0 | Z160: 0 | AA160: 0 | AB160: 0 | AC160: 0 | AD160: 0 | AE160: 0
F161: SMP | J161: 000 kgMS | N161: =SUM(T161:AE161) -> 0 | T161: 0 | U161: 0 | V161: 0 | W161: 0 | X161: 0 | Y161: 0 | Z161: 0 | AA161: 0 | AB161: 0 | AC161: 0 | AD161: 0 | AE161: 0
F162: BMP | J162: 000 kgMS | N162: =SUM(T162:AE162) -> 0 | T162: 0 | U162: 0 | V162: 0 | W162: 0 | X162: 0 | Y162: 0 | Z162: 0 | AA162: 0 | AB162: 0 | AC162: 0 | AD162: 0 | AE162: 0
F163: WMP | J163: 000 kgMS | N163: =SUM(T163:AE163) -> 0 | T163: 0 | U163: 0 | V163: 0 | W163: 0 | X163: 0 | Y163: 0 | Z163: 0 | AA163: 0 | AB163: 0 | AC163: 0 | AD163: 0 | AE163: 0
F164: Total | J164: 000 kgMS | N164: =SUM(N159:N163) -> 0 | T164: =SUM(T159:T163) -> 0 | U164: 0 | V164: 0 | W164: 0 | X164: 0 | Y164: 0 | Z164: 0 | AA164: 0 | AB164: 0 | AC164: 0 | AD164: 0 | AE164: 0
F166: Protein Usage
F167: Butter | J167: 000 kgMS | N167: =SUM(T167:AE167) -> 0 | T167: =T151*$M59 -> 0 | U167: 0 | V167: 0 | W167: 0 | X167: 0 | Y167: 0 | Z167: 0 | AA167: 0 | AB167: 0 | AC167: 0 | AD167: 0 | AE167: 0
F168: AMF | J168: 000 kgMS | N168: =SUM(T168:AE168) -> 0 | T168: 0 | U168: 0 | V168: 0 | W168: 0 | X168: 0 | Y168: 0 | Z168: 0 | AA168: 0 | AB168: 0 | AC168: 0 | AD168: 0 | AE168: 0
F169: SMP | J169: 000 kgMS | N169: =SUM(T169:AE169) -> 0 | T169: 0 | U169: 0 | V169: 0 | W169: 0 | X169: 0 | Y169: 0 | Z169: 0 | AA169: 0 | AB169: 0 | AC169: 0 | AD169: 0 | AE169: 0
F170: BMP | J170: 000 kgMS | N170: =SUM(T170:AE170) -> 0 | T170: 0 | U170: 0 | V170: 0 | W170: 0 | X170: 0 | Y170: 0 | Z170: 0 | AA170: 0 | AB170: 0 | AC170: 0 | AD170: 0 | AE170: 0
F171: WMP | J171: 000 kgMS | N171: =SUM(T171:AE171) -> 0 | T171: 0 | U171: 0 | V171: 0 | W171: 0 | X171: 0 | Y171: 0 | Z171: 0 | AA171: 0 | AB171: 0 | AC171: 0 | AD171: 0 | AE171: 0
F172: Total | J172: 000 kgMS | N172: =SUM(N167:N171) -> 0 | T172: =SUM(T167:T171) -> 0 | U172: 0 | V172: 0 | W172: 0 | X172: 0 | Y172: 0 | Z172: 0 | AA172: 0 | AB172: 0 | AC172: 0 | AD172: 0 | AE172: 0
F174: Milk Composition
F175: Fat | J175: MT | N175: =IF(ISERROR(N164/SUM(N164,N172)),"N/A",N164/SUM(N164,N172)) -> N/A | T175: =IF(ISERROR(T164/SUM(T164,T172)),"N/A",T164/SUM(T164,T172)) -> N/A | U175: =IF(ISERROR(U164/SUM(U164,U172)),"N/A",U164/SUM(U164,U172)) -> N/A | V175: N/A | W175: N/A | X175: N/A | Y175: N/A | Z175: N/A | AA175: N/A | AB175: N/A | AC175: N/A | AD175: N/A | AE175: N/A
F176: Protein | J176: MT | N176: =IF(ISERROR(N172/SUM(N164,N172)),"N/A",N172/SUM(N164,N172)) -> N/A | T176: =IF(ISERROR(T172/SUM(T164,T172)),"N/A",T172/SUM(T164,T172)) -> N/A | U176: =IF(ISERROR(U172/SUM(U164,U172)),"N/A",U172/SUM(U164,U172)) -> N/A | V176: N/A | W176: N/A | X176: N/A | Y176: N/A | Z176: N/A | AA176: N/A | AB176: N/A | AC176: N/A | AD176: N/A | AE176: N/A
F178: Required Lactose - Calculated
F179: SMP | J179: MT | N179: =SUM(T179:AE179) -> 0 | T179: =T66*T153 -> 0 | U179: 0 | V179: 0 | W179: 0 | X179: 0 | Y179: 0 | Z179: 0 | AA179: 0 | AB179: 0 | AC179: 0 | AD179: 0 | AE179: 0
F180: BMP | J180: MT | N180: =SUM(T180:AE180) -> 0 | T180: 0 | U180: 0 | V180: 0 | W180: 0 | X180: 0 | Y180: 0 | Z180: 0 | AA180: 0 | AB180: 0 | AC180: 0 | AD180: 0 | AE180: 0
F181: WMP | J181: MT | N181: =SUM(T181:AE181) -> 0 | T181: 0 | U181: 0 | V181: 0 | W181: 0 | X181: 0 | Y181: 0 | Z181: 0 | AA181: 0 | AB181: 0 | AC181: 0 | AD181: 0 | AE181: 0
F182: Total | J182: MT | N182: =SUM(T182:AE182) -> 0 | T182: =SUM(T179:T181) -> 0 | U182: =SUM(U179:U181) -> 0 | V182: 0 | W182: 0 | X182: 0 | Y182: 0 | Z182: 0 | AA182: 0 | AB182: 0 | AC182: 0 | AD182: 0 | AE182: 0
D184: Hard coded outputs from actual yield calculations | F184: Product Mix to Model
F185: Butter | J185: MT | N185: =SUM(T185:AE185) -> 258455.2489 | T185: 31.04157949 | U185: 612.7102632 | V185: 14374.88355 | W185: 32492.82545 | X185: 34381.00045 | Y185: 33817.48035 | Z185: 32453.74352 | AA185: 33394.20419 | AB185: 29853.7756 | AC185: 20083.53719 | AD185: 17682.28461 | AE185: 9277.762168
F186: AMF | J186: MT | N186: =SUM(T186:AE186) -> 135502.2132 | T186: 3885.164089 | U186: 3606.526298 | V186: 7678.385663 | W186: 14987.90624 | X186: 17763.78928 | Y186: 16846.14647 | Z186: 16008.21602 | AA186: 14876.39371 | AB186: 11383.48531 | AC186: 8522.862865 | AD186: 10192.0495 | AE186: 9751.287788
F187: SMP | J187: MT | N187: =SUM(T187:AE187) -> 577307.2831 | T187: 7715.709076 | U187: 7533.483389 | V187: 32546.72897 | W187: 71603.1806 | X187: 78023.34046 | Y187: 78591.20581 | Z187: 73413.07369 | AA187: 71083.20768 | AB187: 59111.72588 | AC187: 31131.92676 | AD187: 37437.10088 | AE187: 29116.59992
F188: BMP | J188: MT | N188: =SUM(T188:AE188) -> 59135.98496 | T188: 720.5337203 | U188: 747.8706931 | V188: 3265.89032 | W188: 6664.659446 | X188: 7395.192571 | Y188: 7226.375383 | Z188: 6845.695262 | AA188: 6910.178952 | AB188: 6113.771798 | AC188: 4633.884944 | AD188: 4973.658931 | AE188: 3638.272944
F189: WMP | J189: MT | N189: =SUM(T189:AE189) -> 1855567.198 | T189: 9846.508509 | U189: 20389.11859 | V189: 121853.4861 | W189: 202719.8322 | X189: 264023.1121 | Y189: 247172.7115 | Z189: 209274.01 | AA189: 176089.4645 | AB189: 152036.3163 | AC189: 208268.9702 | AD189: 160347.3833 | AE189: 83546.28519
F190: Total | J190: MT | N190: =SUM(N185:N189) -> 2885967.929 | T190: =SUM(T185:T189) -> 22198.95697 | U190: =SUM(U185:U189) -> 32889.70923 | V190: 179719.3746 | W190: 328468.404 | X190: 401586.4348 | Y190: 383653.9195 | Z190: 337994.7385 | AA190: 302353.449 | AB190: 258499.0748 | AC190: 272641.182 | AD190: 230632.4772 | AE190: 135330.208
F192: Fat Usage
F193: Butter | J193: 000 kgMS | N193: =SUM(T193:AE193) -> 214926.2159 | T193: 25.81355668 | U193: 509.5176006 | V193: 11953.86566 | W193: 27020.38379 | X193: 28590.55235 | Y193: 28121.94031 | Z193: 26987.88404 | AA193: 27769.95232 | AB193: 24825.80271 | AC193: 16701.06786 | AD193: 14704.23424 | AE193: 7715.201463
F194: AMF | J194: 000 kgMS | N194: =SUM(T194:AE194) -> 135767.7976 | T194: 3892.779011 | U194: 3613.595089 | V194: 7693.435299 | W194: 15017.28253 | X194: 17798.60631 | Y194: 16879.16492 | Z194: 16039.59212 | AA194: 14905.55144 | AB194: 11405.79694 | AC194: 8539.567676 | AD194: 10212.02591 | AE194: 9770.400313
F195: SMP | J195: 000 kgMS | N195: =SUM(T195:AE195) -> 5580.4121 | T195: 74.58218101 | U195: 72.82073705 | V195: 314.6056969 | W195: 692.1361762 | X195: 754.1952196 | Y195: 759.6843634 | Z195: 709.6311041 | AA195: 687.109974 | AB195: 571.390315 | AC195: 300.9298269 | AD195: 361.8773864 | AE195: 281.4491195
F196: BMP | J196: 000 kgMS | N196: =SUM(T196:AE196) -> 4758.123855 | T196: 57.97466103 | U196: 60.17421351 | V196: 262.7758826 | W196: 536.2432893 | X196: 595.0225097 | Y196: 581.4393574 | Z196: 550.8095612 | AA196: 555.9979653 | AB196: 491.9184732 | AC196: 372.8457133 | AD196: 400.1841725 | AE196: 292.7380561
F197: WMP | J197: 000 kgMS | N197: =SUM(T197:AE197) -> 486519.4377 | T197: 2581.699971 | U197: 5345.913916 | V197: 31949.30886 | W197: 53152.01673 | X197: 69225.39703 | Y197: 64807.31536 | Z197: 54870.48583 | AA197: 46169.68187 | AB197: 39863.07968 | AC197: 54606.96997 | AD197: 42042.1954 | AE197: 21905.37304
F198: Total | J198: 000 kgMS | N198: =SUM(N193:N197) -> 847551.9871 | T198: =SUM(T193:T197) -> 6632.849381 | U198: =SUM(U193:U197) -> 9602.021557 | V198: =SUM(V193:V197) -> 52173.9914 | W198: =SUM(W193:W197) -> 96418.06252 | X198: =SUM(X193:X197) -> 116963.7734 | Y198: =SUM(Y193:Y197) -> 111149.5443 | Z198: =SUM(Z193:Z197) -> 99158.40265 | AA198: =SUM(AA193:AA197) -> 90088.29358 | AB198: =SUM(AB193:AB197) -> 77157.98813 | AC198: =SUM(AC193:AC197) -> 80521.38105 | AD198: =SUM(AD193:AD197) -> 67720.51711 | AE198: =SUM(AE193:AE197) -> 39965.162
F200: Protein Usage
F201: Butter | J201: 000 kgMS | N201: =SUM(T201:AE201) -> 1382.735582 | T201: 0.1660724503 | U201: 3.277999908 | V201: 76.90562697 | W201: 173.8366162 | X201: 183.9383524 | Y201: 180.9235199 | Z201: 173.6275279 | AA201: 178.6589924 | AB201: 159.7176995 | AC201: 107.446924 | AD201: 94.60022268 | AE201: 49.6360276
F202: AMF | J202: 000 kgMS | N202: =SUM(T202:AE202) -> 108.4017706 | T202: 3.108131272 | U202: 2.885221038 | V202: 6.142708531 | W202: 11.99032499 | X202: 14.21103143 | Y202: 13.47691718 | Z202: 12.80657282 | AA202: 11.90111497 | AB202: 9.106788251 | AC202: 6.818290292 | AD202: 8.153639596 | AE202: 7.801030231
F203: SMP | J203: 000 kgMS | N203: =SUM(T203:AE203) -> 189199.4842 | T203: 2528.6502 | U203: 2468.929828 | V203: 10666.45877 | W203: 23466.3328 | X203: 25570.39587 | Y203: 25756.50097 | Z203: 24059.48458 | AA203: 23295.92337 | AB203: 19372.53933 | AC203: 10202.78915 | AD203: 12269.16823 | AE203: 9542.311082
F204: BMP | J204: 000 kgMS | N204: =SUM(T204:AE204) -> 17965.89675 | T204: 218.9028293 | U204: 227.2079794 | V204: 992.1987147 | W204: 2024.766874 | X204: 2246.707588 | Y204: 2195.419829 | Z204: 2079.766732 | AA204: 2099.357297 | AB204: 1857.403625 | AC204: 1407.804376 | AD204: 1511.029923 | AE204: 1105.330977
F205: WMP | J205: 000 kgMS | N205: =SUM(T205:AE205) -> 448864.3016 | T205: 2381.884186 | U205: 4932.156315 | V205: 29476.52879 | W205: 49038.21106 | X205: 63867.56024 | Y205: 59791.42476 | Z205: 50623.67584 | AA205: 42596.28785 | AB205: 36777.79763 | AC205: 50380.55531 | AD205: 38788.25637 | AE205: 20209.96329
F206: Total | J206: 000 kgMS | N206: =SUM(N201:N205) -> 657520.8199 | T206: =SUM(T201:T205) -> 5132.711419 | U206: =SUM(U201:U205) -> 7634.457343 | V206: =SUM(V201:V205) -> 41218.2346 | W206: =SUM(W201:W205) -> 74715.13768 | X206: =SUM(X201:X205) -> 91882.81308 | Y206: =SUM(Y201:Y205) -> 87937.746 | Z206: =SUM(Z201:Z205) -> 76949.36125 | AA206: =SUM(AA201:AA205) -> 68182.12862 | AB206: =SUM(AB201:AB205) -> 58176.56507 | AC206: =SUM(AC201:AC205) -> 62105.41405 | AD206: =SUM(AD201:AD205) -> 52671.20839 | AE206: =SUM(AE201:AE205) -> 30915.0424
F208: Milk Composition
F209: Fat | J209: % | N209: =IF(ISERROR(N198/SUM(N198,N206)),"N/A",N198/SUM(N198,N206)) -> 0.5631302241 | T209: 0.5637512307 | U209: 0.5570755844 | V209: 0.5586545436 | W209: 0.5634094518 | X209: 0.5600463737 | Y209: 0.5582955302 | Z209: 0.5630552592 | AA209: 0.5692048604 | AB209: 0.5701277782 | AC209: 0.5645599832 | AD209: 0.5625014247 | AE209: 0.563840953
F210: Protein | J210: % | N210: =IF(ISERROR(N206/SUM(N198,N206)),"N/A",N206/SUM(N198,N206)) -> 0.4368697759 | T210: 0.4362487693 | U210: 0.4429244156 | V210: 0.4413454564 | W210: 0.4365905482 | X210: 0.4399536263 | Y210: 0.4417044698 | Z210: 0.4369447408 | AA210: 0.4307951396 | AB210: 0.4298722218 | AC210: 0.4354400168 | AD210: 0.4374985753 | AE210: 0.436159047
F212: Required Lactose - Calculated
F213: SMP | J213: MT | N213: =SUM(T213:AE213) -> 0
F214: BMP | J214: MT | N214: =SUM(T214:AE214) -> 0
F215: WMP | J215: MT | N215: =SUM(T215:AE215) -> 0
F216: Total | J216: MT | N216: =SUM(T216:AE216) -> 342440.0326 | T216: 2946.098511 | U216: 4229.672808 | V216: 19626.31779 | W216: 30867.98841 | X216: 39114.81777 | Y216: 38889.86561 | Z216: 33789.69249 | AA216: 33265.72124 | AB216: 32318.12903 | AC216: 41671.82463 | AD216: 40500.322 | AE216: 25219.58227
D218: COMPONENT MILK PRICE
D221: COMMENT
F225: Milk Price | J225: NZD | N225: =IF(ISERROR(N1251),2,N1251) -> 6.745628631 | T225: =$N225 -> 6.745628631 | U225: 6.745628631 | V225: 6.745628631 | W225: 6.745628631 | X225: 6.745628631 | Y225: 6.745628631 | Z225: 6.745628631 | AA225: 6.745628631 | AB225: 6.745628631 | AC225: 6.745628631 | AD225: 6.745628631 | AE225: 6.745628631 | AF225: 6.745628631 | AG225: 6.745628631 | AH225: 6.745628631 | AI225: 6.745628631 | AJ225: 6.745628631 | AK225: 6.745628631 | AL225: 6.745628631 | AM225: 6.745628631 | AN225: 6.745628631 | AO225: 6.745628631
F227: kgMS into production
F228: Total | J228: 000 kgMS | K228: ="Row "&ROW(K$21) -> Row 21 | N228: =SUM(T228:AE228) -> 1505072.807 | T228: =T21 -> 11765.5608 | U228: 17236.4789 | V228: 93392.226 | W228: 171133.2002 | X228: 208846.5865 | Y228: 199087.2903 | Z228: 176107.7639 | AA228: 158270.4222 | AB228: 135334.5532 | AC228: 142626.7951 | AD228: 120391.7255 | AE228: 70880.2044
F229: Fat | J229: 000 kgMS | N229: =SUM(T229:AE229) -> 847551.9871 | T229: =T198 -> 6632.849381 | U229: =U198 -> 9602.021557 | V229: 52173.9914 | W229: 96418.06252 | X229: 116963.7734 | Y229: 111149.5443 | Z229: 99158.40265 | AA229: 90088.29358 | AB229: 77157.98813 | AC229: 80521.38105 | AD229: 67720.51711 | AE229: 39965.162
F230: Protein | J230: 000 kgMS | N230: =SUM(T230:AE230) -> 657520.8199 | T230: =T206 -> 5132.711419 | U230: =U206 -> 7634.457343 | V230: 41218.2346 | W230: 74715.13768 | X230: 91882.81308 | Y230: 87937.746 | Z230: 76949.36125 | AA230: 68182.12862 | AB230: 58176.56507 | AC230: 62105.41405 | AD230: 52671.20839 | AE230: 30915.0424
F231: Total | J231: 000 kgMS | N231: =N229+N230 -> 1505072.807 | T231: =T230+T229 -> 11765.5608 | U231: 17236.4789 | V231: 93392.226 | W231: 171133.2002 | X231: 208846.5865 | Y231: 199087.2903 | Z231: 176107.7639 | AA231: 158270.4222 | AB231: 135334.5532 | AC231: 142626.7951 | AD231: 120391.7255 | AE231: 70880.2044
F232: Protein : Fat ratio | J232: % | N232: =N230/N229 -> 0.7757881875 | T232: =T230/T229 -> 0.7738320478 | U232: =U230/U229 -> 0.7950885444 | V232: 0.7900149768 | W232: 0.7749081005 | X232: 0.7855664228 | Y232: 0.7911660506 | Z232: 0.776024615 | AA232: 0.75683672 | AB232: 0.7539927684 | AC232: 0.7712909695 | AD232: 0.7777732751 | AE232: 0.7735497834
F233: Valued Component Ratio | J233: % | N233: ='Data Input'!N74 -> 0.8943 | T233: =$N233 -> 0.8943 | U233: =$N233 -> 0.8943 | V233: 0.8943 | W233: 0.8943 | X233: 0.8943 | Y233: 0.8943 | Z233: 0.8943 | AA233: 0.8943 | AB233: 0.8943 | AC233: 0.8943 | AD233: 0.8943 | AE233: 0.8943
F235: Fat Price | J235: NZD | N235: =(1+N232)/(1+1/N233*N232)*N225 -> 6.41442036 | T235: =$N235 -> 6.41442036 | U235: =$N235 -> 6.41442036 | V235: 6.41442036 | W235: 6.41442036 | X235: 6.41442036 | Y235: 6.41442036 | Z235: 6.41442036 | AA235: 6.41442036 | AB235: 6.41442036 | AC235: 6.41442036 | AD235: =$N235 -> 6.41442036 | AE235: 6.41442036 | AF235: 6.41442036 | AG235: 6.41442036 | AH235: 6.41442036 | AI235: 6.41442036 | AJ235: 6.41442036 | AK235: 6.41442036 | AL235: 6.41442036 | AM235: 6.41442036 | AN235: 6.41442036 | AO235: 6.41442036
F236: Protein Price | J236: NZD | N236: =(1+N232)/(N232+N233)*N225 -> 7.172559946 | T236: =$N236 -> 7.172559946 | U236: 7.172559946 | V236: 7.172559946 | W236: 7.172559946 | X236: 7.172559946 | Y236: 7.172559946 | Z236: 7.172559946 | AA236: 7.172559946 | AB236: 7.172559946 | AC236: 7.172559946 | AD236: 7.172559946 | AE236: 7.172559946 | AF236: 7.172559946 | AG236: 7.172559946 | AH236: 7.172559946 | AI236: 7.172559946 | AJ236: 7.172559946 | AK236: 7.172559946 | AL236: 7.172559946 | AM236: 7.172559946 | AN236: 7.172559946 | AO236: 7.172559946
D238: Conversion of Average FX Cash Conversion Rates to Corresponding ACRs for Transaction Months
D240: COMMENT | F240: This section converts average USD : NZD cash conversion rates into:
F241: 1. Average FX conversion rates by month of sale, given the receivables days assumption.
F242: 2. Average FX conversion rates by month in which a USD-denominated cost is incurred, given the Trade Creditors days assumption.
D244: DATA INPUT
F245: Average Conversion Rate to model - Cash | J245: USD : NZD | R245: ='Data Input'!R22 -> 0.7073886873 | S245: ='Data Input'!S22 -> 0.7073886873 | T245: ='Data Input'!T22 -> 0.7073886873 | U245: ='Data Input'!U22 -> 0.7073886873 | V245: ='Data Input'!V22 -> 0.7073886873 | W245: ='Data Input'!W22 -> 0.7073886873 | X245: ='Data Input'!X22 -> 0.7073886873 | Y245: ='Data Input'!Y22 -> 0.7073886873 | Z245: ='Data Input'!Z22 -> 0.7073886873 | AA245: ='Data Input'!AA22 -> 0.7073886873 | AB245: ='Data Input'!AB22 -> 0.7073886873 | AC245: ='Data Input'!AC22 -> 0.7073886873 | AD245: ='Data Input'!AD22 -> 0.7073886873 | AE245: ='Data Input'!AE22 -> 0.7073886873 | AF245: ='Data Input'!AF22 -> 0.7073886873 | AG245: ='Data Input'!AG22 -> 0.7073886873 | AH245: ='Data Input'!AH22 -> 0.7073886873 | AI245: ='Data Input'!AI22 -> 0.7073886873 | AJ245: ='Data Input'!AJ22 -> 0.7073886873 | AK245: ='Data Input'!AK22 -> 0.7073886873 | AL245: ='Data Input'!AL22 -> 0.7073886873 | AM245: ='Data Input'!AM22 -> 0.7073886873 | AN245: ='Data Input'!AN22 -> 0.7073886873 | AO245: =AN245 -> 0.7073886873
F247: Timing of Receipts in respect of sales
F248: Received in month of sale | J248: % | K248: ="Row "&ROW(F897) -> Row 897 | T248: =T897 -> 0.2380239032 | U248: =U897 -> 0.2626037773 | V248: 0.2626037773 | W248: 0.2380239032 | X248: 0.2626037773 | Y248: 0.2380239032 | Z248: 0.2626037773 | AA248: 0.2626037773 | AB248: 0.1835970392 | AC248: 0.2626037773 | AD248: 0.2380239032 | AE248: 0.2626037773 | AF248: 0.2380239032 | AG248: 0.2626037773 | AH248: 0.2626037773 | AI248: 0.2380239032 | AJ248: 0.2626037773 | AK248: 0.2380239032 | AL248: 0.2626037773 | AM248: =AM897/SUM(AM$897:AM$899) -> 0.2626037773 | AN248: =AN897/SUM(AN$897:AN$898) -> 0.1835970392 | AO248: 1
F249: Received in 1 month's time | J249: % | K249: ="Row "&ROW(F898) -> Row 898 | T249: =T898 -> 0.7619760968 | U249: =U898 -> 0.7373962227 | V249: 0.7373962227 | W249: 0.7619760968 | X249: 0.7373962227 | Y249: 0.7619760968 | Z249: 0.7373962227 | AA249: 0.7373962227 | AB249: 0.8164029608 | AC249: 0.7373962227 | AD249: 0.7619760968 | AE249: 0.7373962227 | AF249: 0.7619760968 | AG249: 0.7373962227 | AH249: 0.7373962227 | AI249: 0.7619760968 | AJ249: 0.7373962227 | AK249: 0.7619760968 | AL249: 0.7373962227 | AM249: =AM898/SUM(AM$897:AM$899) -> 0.7373962227 | AN249: =AN898/SUM(AN$897:AN$898) -> 0.8164029608
F250: Received in 2 month's time | J250: % | K250: ="Row "&ROW(F899) -> Row 899 | T250: =T899 -> 0 | U250: =U899 -> 0 | V250: 0 | W250: 0 | X250: 0 | Y250: 0 | Z250: 0 | AA250: 0 | AB250: 0 | AC250: 0 | AD250: 0 | AE250: 0 | AF250: 0 | AG250: 0 | AH250: 0 | AI250: 0 | AJ250: 0 | AK250: 0 | AL250: 0 | AM250: =AM899/SUM(AM$897:AM$899) -> 0
F251: Received in 3 month's time | J251: % | K251: ="Row "&ROW(F900) -> Row 900 | T251: =T900 -> 0 | U251: =U900 -> 0 | V251: 0 | W251: 0 | X251: 0 | Y251: 0 | Z251: 0 | AA251: 0 | AB251: 0 | AC251: 0 | AD251: 0 | AE251: 0 | AF251: 0 | AG251: 0 | AH251: 0 | AI251: 0 | AJ251: 0 | AK251: 0 | AL251: 0
... 830 more rows

Sheet Summary
J3: 1
S4: MONTHLY
I5: Period Number | O5: 1 | P5: 1 | Q5: 1 | R5: =IF(Q5=12,1,Q5+1) -> 2 | S5: 3 | T5: 4 | U5: 5 | V5: 6 | W5: 7 | X5: 8 | Y5: 9 | Z5: 10 | AA5: 11 | AB5: 12 | AC5: 1 | AD5: 2 | AE5: 3 | AF5: 4 | AG5: 5 | AH5: 6 | AI5: 7 | AJ5: 8
O6: =Global!R36 -> 2017-04-30 | P6: =Global!S36 -> 2017-05-31 | Q6: =Global!T36 -> 2017-06-30 | R6: =Global!U36 -> 2017-07-31 | S6: =Global!V36 -> 2017-08-31 | T6: =Global!W36 -> 2017-09-30 | U6: =Global!X36 -> 2017-10-31 | V6: =Global!Y36 -> 2017-11-30 | W6: =Global!Z36 -> 2017-12-31 | X6: =Global!AA36 -> 2018-01-31 | Y6: =Global!AB36 -> 2018-02-28 | Z6: =Global!AC36 -> 2018-03-31 | AA6: =Global!AD36 -> 2018-04-30 | AB6: =Global!AE36 -> 2018-05-31 | AC6: =Global!AF36 -> 2018-06-30 | AD6: =Global!AG36 -> 2018-07-31 | AE6: =Global!AH36 -> 2018-08-31 | AF6: =Global!AI36 -> 2018-09-30 | AG6: =Global!AJ36 -> 2018-10-31 | AH6: =Global!AK36 -> 2018-11-30 | AI6: =Global!AL36 -> 2018-12-31 | AJ6: =Global!AM36 -> 2019-01-31
I7: Period | O7: 1 | P7: 1 | Q7: 1 | R7: =Q7+1 -> 2 | S7: 3 | T7: 4 | U7: 5 | V7: 6 | W7: 7 | X7: 8 | Y7: 9 | Z7: 10 | AA7: 11 | AB7: 12 | AC7: 13 | AD7: 14 | AE7: 15 | AF7: 16 | AG7: 17 | AH7: 18 | AI7: 19 | AJ7: 20
I9: Financial Year | L9: =Global!O7 -> 2018-05-31 | O9: =Global!R36 -> 2017-04-30 | P9: =Global!S36 -> 2017-05-31 | Q9: =Global!T36 -> 2017-06-30 | R9: =Global!U36 -> 2017-07-31 | S9: =Global!V36 -> 2017-08-31 | T9: =Global!W36 -> 2017-09-30 | U9: =Global!X36 -> 2017-10-31 | V9: =Global!Y36 -> 2017-11-30 | W9: =Global!Z36 -> 2017-12-31 | X9: =Global!AA36 -> 2018-01-31 | Y9: =Global!AB36 -> 2018-02-28 | Z9: =Global!AC36 -> 2018-03-31 | AA9: =Global!AD36 -> 2018-04-30 | AB9: =Global!AE36 -> 2018-05-31 | AC9: =Global!AF36 -> 2018-06-30 | AD9: =Global!AG36 -> 2018-07-31 | AE9: =Global!AH36 -> 2018-08-31 | AF9: =Global!AI36 -> 2018-09-30 | AG9: =Global!AJ36 -> 2018-10-31 | AH9: =Global!AK36 -> 2018-11-30 | AI9: =Global!AL36 -> 2018-12-31 | AJ9: =Global!AM36 -> 2019-01-31
I10: KGMS 000s
I11: Milk Supply Paid for | L11: =SUM(O11:AB11) -> 1505076.353 | O11: ='Data Input'!R31 -> 0 | P11: ='Data Input'!S31 -> 0 | Q11: ='Data Input'!T31 -> 11765.5608 | R11: ='Data Input'!U31 -> 17237.2123 | S11: ='Data Input'!V31 -> 93392.226 | T11: ='Data Input'!W31 -> 171133.2002 | U11: ='Data Input'!X31 -> 208846.5865 | V11: ='Data Input'!Y31 -> 199087.2903 | W11: ='Data Input'!Z31 -> 176107.7639 | X11: ='Data Input'!AA31 -> 158270.4222 | Y11: ='Data Input'!AB31 -> 135337.3659 | Z11: ='Data Input'!AC31 -> 142626.7951 | AA11: ='Data Input'!AD31 -> 120391.7255 | AB11: ='Data Input'!AE31 -> 70880.2044
I12: Milk Supply Collected | L12: =SUM(O12:AB12) -> 1505072.807 | O12: ='Data Input'!R32 -> 0 | P12: ='Data Input'!S32 -> 0 | Q12: ='Data Input'!T32 -> 11765.5608 | R12: ='Data Input'!U32 -> 17236.4789 | S12: ='Data Input'!V32 -> 93392.226 | T12: ='Data Input'!W32 -> 171133.2002 | U12: ='Data Input'!X32 -> 208846.5865 | V12: ='Data Input'!Y32 -> 199087.2903 | W12: ='Data Input'!Z32 -> 176107.7639 | X12: ='Data Input'!AA32 -> 158270.4222 | Y12: ='Data Input'!AB32 -> 135334.5532 | Z12: ='Data Input'!AC32 -> 142626.7951 | AA12: ='Data Input'!AD32 -> 120391.7255 | AB12: ='Data Input'!AE32 -> 70880.2044
I14: $'000
I16: NZD Revenue
I17: Sales | J17: =$J$3&I17 -> 1Sales | L17: =SUM(O17:AJ17) -> 13163685.91 | O17: =-SUMIF(Calculations!$I$15:$I$1320,$J17,Calculations!R$15:R$1320) -> 0 | P17: =-SUMIF(Calculations!$I$15:$I$1320,$J17,Calculations!S$15:S$1320) -> 0 | Q17: =-SUMIF(Calculations!$I$15:$I$1320,$J17,Calculations!T$15:T$1320) -> 0 | R17: =-SUMIF(Calculations!$I$15:$I$1320,$J17,Calculations!U$15:U$1320) -> 0 | S17: =-SUMIF(Calculations!$I$15:$I$1320,$J17,Calculations!V$15:V$1320) -> 0 | T17: =-SUMIF(Calculations!$I$15:$I$1320,$J17,Calculations!W$15:W$1320) -> 763918.1515 | U17: =-SUMIF(Calculations!$I$15:$I$1320,$J17,Calculations!X$15:X$1320) -> 763918.1515 | V17: =-SUMIF(Calculations!$I$15:$I$1320,$J17,Calculations!Y$15:Y$1320) -> 1480334.078 | W17: =-SUMIF(Calculations!$I$15:$I$1320,$J17,Calculations!Z$15:Z$1320) -> 1480334.078 | X17: =-SUMIF(Calculations!$I$15:$I$1320,$J17,Calculations!AA$15:AA$1320) -> 1480334.078 | Y17: =-SUMIF(Calculations!$I$15:$I$1320,$J17,Calculations!AB$15:AB$1320) -> 1074670.092 | Z17: =-SUMIF(Calculations!$I$15:$I$1320,$J17,Calculations!AC$15:AC$1320) -> 1074670.092 | AA17: =-SUMIF(Calculations!$I$15:$I$1320,$J17,Calculations!AD$15:AD$1320) -> 1074670.092 | AB17: =-SUMIF(Calculations!$I$15:$I$1320,$J17,Calculations!AE$15:AE$1320) -> 1138094.188 | AC17: =-SUMIF(Calculations!$I$15:$I$1320,$J17,Calculations!AF$15:AF$1320) -> 1138094.188 | AD17: =-SUMIF(Calculations!$I$15:$I$1320,$J17,Calculations!AG$15:AG$1320) -> 1138094.188 | AE17: =-SUMIF(Calculations!$I$15:$I$1320,$J17,Calculations!AH$15:AH$1320) -> 185518.1791 | AF17: =-SUMIF(Calculations!$I$15:$I$1320,$J17,Calculations!AI$15:AI$1320) -> 185518.1791 | AG17: =-SUMIF(Calculations!$I$15:$I$1320,$J17,Calculations!AJ$15:AJ$1320) -> 185518.1791 | AH17: =-SUMIF(Calculations!$I$15:$I$1320,$J17,Calculations!AK$15:AK$1320) -> 0 | AI17: =-SUMIF(Calculations!$I$15:$I$1320,$J17,Calculations!AL$15:AL$1320) -> 0 | AJ17: =-SUMIF(Calculations!$I$15:$I$1320,$J17,Calculations!AM$15:AM$1320) -> 0
I18: Downgrade expense (excl rework) | J18: =$J$3&I18 -> 1Downgrade expense (excl rework) | L18: =SUM(O18:AJ18) -> 0 | O18: =-SUMIF(Calculations!$I$15:$I$1320,$J18,Calculations!R$15:R$1320) -> 0 | P18: =-SUMIF(Calculations!$I$15:$I$1320,$J18,Calculations!S$15:S$1320) -> 0 | Q18: =-SUMIF(Calculations!$I$15:$I$1320,$J18,Calculations!T$15:T$1320) -> 0 | R18: =-SUMIF(Calculations!$I$15:$I$1320,$J18,Calculations!U$15:U$1320) -> 0 | S18: =-SUMIF(Calculations!$I$15:$I$1320,$J18,Calculations!V$15:V$1320) -> 0 | T18: =-SUMIF(Calculations!$I$15:$I$1320,$J18,Calculations!W$15:W$1320) -> 0 | U18: =-SUMIF(Calculations!$I$15:$I$1320,$J18,Calculations!X$15:X$1320) -> 0 | V18: =-SUMIF(Calculations!$I$15:$I$1320,$J18,Calculations!Y$15:Y$1320) -> 0 | W18: =-SUMIF(Calculations!$I$15:$I$1320,$J18,Calculations!Z$15:Z$1320) -> 0 | X18: =-SUMIF(Calculations!$I$15:$I$1320,$J18,Calculations!AA$15:AA$1320) -> 0 | Y18: =-SUMIF(Calculations!$I$15:$I$1320,$J18,Calculations!AB$15:AB$1320) -> 0 | Z18: =-SUMIF(Calculations!$I$15:$I$1320,$J18,Calculations!AC$15:AC$1320) -> 0 | AA18: =-SUMIF(Calculations!$I$15:$I$1320,$J18,Calculations!AD$15:AD$1320) -> 0 | AB18: =-SUMIF(Calculations!$I$15:$I$1320,$J18,Calculations!AE$15:AE$1320) -> 0 | AC18: =-SUMIF(Calculations!$I$15:$I$1320,$J18,Calculations!AF$15:AF$1320) -> 0 | AD18: =-SUMIF(Calculations!$I$15:$I$1320,$J18,Calculations!AG$15:AG$1320) -> 0 | AE18: =-SUMIF(Calculations!$I$15:$I$1320,$J18,Calculations!AH$15:AH$1320) -> 0 | AF18: =-SUMIF(Calculations!$I$15:$I$1320,$J18,Calculations!AI$15:AI$1320) -> 0 | AG18: =-SUMIF(Calculations!$I$15:$I$1320,$J18,Calculations!AJ$15:AJ$1320) -> 0 | AH18: =-SUMIF(Calculations!$I$15:$I$1320,$J18,Calculations!AK$15:AK$1320) -> 0 | AI18: =-SUMIF(Calculations!$I$15:$I$1320,$J18,Calculations!AL$15:AL$1320) -> 0 | AJ18: =-SUMIF(Calculations!$I$15:$I$1320,$J18,Calculations!AM$15:AM$1320) -> 0
I19: Net Sales | L19: =SUM(L17:L18) -> 13163685.91 | O19: =SUM(O17:O18) -> 0 | P19: =SUM(P17:P18) -> 0 | Q19: =SUM(Q17:Q18) -> 0 | R19: 0 | S19: 0 | T19: 763918.1515 | U19: 763918.1515 | V19: 1480334.078 | W19: 1480334.078 | X19: 1480334.078 | Y19: 1074670.092 | Z19: 1074670.092 | AA19: 1074670.092 | AB19: 1138094.188 | AC19: 1138094.188 | AD19: 1138094.188 | AE19: 185518.1791 | AF19: 185518.1791 | AG19: 185518.1791 | AH19: 0 | AI19: 0 | AJ19: 0
I20: Average conversion rate (Sales) | L20: =Calculations!N334/Calculations!N342 -> 0.7073886873
I21: Non-Milk Costs
I22: Commission | J22: =$J$3&I22 -> 1Commission | L22: =SUM(O22:AJ22) -> 105728.9007 | O22: =SUMIF(Calculations!$I$15:$I$1320,$J22,Calculations!R$15:R$1320) -> 0 | P22: =SUMIF(Calculations!$I$15:$I$1320,$J22,Calculations!S$15:S$1320) -> 0 | Q22: =SUMIF(Calculations!$I$15:$I$1320,$J22,Calculations!T$15:T$1320) -> 0 | R22: =SUMIF(Calculations!$I$15:$I$1320,$J22,Calculations!U$15:U$1320) -> 0 | S22: =SUMIF(Calculations!$I$15:$I$1320,$J22,Calculations!V$15:V$1320) -> 8810.741727 | T22: =SUMIF(Calculations!$I$15:$I$1320,$J22,Calculations!W$15:W$1320) -> 8810.741727 | U22: =SUMIF(Calculations!$I$15:$I$1320,$J22,Calculations!X$15:X$1320) -> 8810.741727 | V22: =SUMIF(Calculations!$I$15:$I$1320,$J22,Calculations!Y$15:Y$1320) -> 8810.741727 | W22: =SUMIF(Calculations!$I$15:$I$1320,$J22,Calculations!Z$15:Z$1320) -> 8810.741727 | X22: =SUMIF(Calculations!$I$15:$I$1320,$J22,Calculations!AA$15:AA$1320) -> 8810.741727 | Y22: =SUMIF(Calculations!$I$15:$I$1320,$J22,Calculations!AB$15:AB$1320) -> 8810.741727 | Z22: =SUMIF(Calculations!$I$15:$I$1320,$J22,Calculations!AC$15:AC$1320) -> 8810.741727 | AA22: =SUMIF(Calculations!$I$15:$I$1320,$J22,Calculations!AD$15:AD$1320) -> 8810.741727 | AB22: =SUMIF(Calculations!$I$15:$I$1320,$J22,Calculations!AE$15:AE$1320) -> 8810.741727 | AC22: =SUMIF(Calculations!$I$15:$I$1320,$J22,Calculations!AF$15:AF$1320) -> 8810.741727 | AD22: =SUMIF(Calculations!$I$15:$I$1320,$J22,Calculations!AG$15:AG$1320) -> 8810.741727 | AE22: =SUMIF(Calculations!$I$15:$I$1320,$J22,Calculations!AH$15:AH$1320) -> 0 | AF22: =SUMIF(Calculations!$I$15:$I$1320,$J22,Calculations!AI$15:AI$1320) -> 0 | AG22: =SUMIF(Calculations!$I$15:$I$1320,$J22,Calculations!AJ$15:AJ$1320) -> 0 | AH22: =SUMIF(Calculations!$I$15:$I$1320,$J22,Calculations!AK$15:AK$1320) -> 0 | AI22: =SUMIF(Calculations!$I$15:$I$1320,$J22,Calculations!AL$15:AL$1320) -> 0 | AJ22: =SUMIF(Calculations!$I$15:$I$1320,$J22,Calculations!AM$15:AM$1320) -> 0
I23: Collection Costs | J23: 1Collection Costs | L23: =SUM(O23:AJ23) -> 338586.3996 | O23: =SUMIF(Calculations!$I$15:$I$1320,$J23,Calculations!R$15:R$1320) -> 0 | P23: =SUMIF(Calculations!$I$15:$I$1320,$J23,Calculations!S$15:S$1320) -> 0 | Q23: =SUMIF(Calculations!$I$15:$I$1320,$J23,Calculations!T$15:T$1320) -> 13996.98727 | R23: =SUMIF(Calculations!$I$15:$I$1320,$J23,Calculations!U$15:U$1320) -> 15659.33161 | S23: =SUMIF(Calculations!$I$15:$I$1320,$J23,Calculations!V$15:V$1320) -> 21273.3374 | T23: =SUMIF(Calculations!$I$15:$I$1320,$J23,Calculations!W$15:W$1320) -> 34703.66878 | U23: =SUMIF(Calculations!$I$15:$I$1320,$J23,Calculations!X$15:X$1320) -> 45253.13891 | V23: =SUMIF(Calculations!$I$15:$I$1320,$J23,Calculations!Y$15:Y$1320) -> 42632.80101 | W23: =SUMIF(Calculations!$I$15:$I$1320,$J23,Calculations!Z$15:Z$1320) -> 37291.96591 | X23: =SUMIF(Calculations!$I$15:$I$1320,$J23,Calculations!AA$15:AA$1320) -> 34346.69048 | Y23: =SUMIF(Calculations!$I$15:$I$1320,$J23,Calculations!AB$15:AB$1320) -> 25979.40784 | Z23: =SUMIF(Calculations!$I$15:$I$1320,$J23,Calculations!AC$15:AC$1320) -> 25356.31793 | AA23: =SUMIF(Calculations!$I$15:$I$1320,$J23,Calculations!AD$15:AD$1320) -> 22618.45289 | AB23: =SUMIF(Calculations!$I$15:$I$1320,$J23,Calculations!AE$15:AE$1320) -> 19474.29954 | AC23: =SUMIF(Calculations!$I$15:$I$1320,$J23,Calculations!AF$15:AF$1320) -> 0 | AD23: =SUMIF(Calculations!$I$15:$I$1320,$J23,Calculations!AG$15:AG$1320) -> 0 | AE23: =SUMIF(Calculations!$I$15:$I$1320,$J23,Calculations!AH$15:AH$1320) -> 0 | AF23: =SUMIF(Calculations!$I$15:$I$1320,$J23,Calculations!AI$15:AI$1320) -> 0 | AG23: =SUMIF(Calculations!$I$15:$I$1320,$J23,Calculations!AJ$15:AJ$1320) -> 0 | AH23: =SUMIF(Calculations!$I$15:$I$1320,$J23,Calculations!AK$15:AK$1320) -> 0 | AI23: =SUMIF(Calculations!$I$15:$I$1320,$J23,Calculations!AL$15:AL$1320) -> 0 | AJ23: =SUMIF(Calculations!$I$15:$I$1320,$J23,Calculations!AM$15:AM$1320) -> 0
I24: Lactose | J24: 1Lactose | L24: =SUM(O24:AJ24) -> 440662.5987 | O24: =SUMIF(Calculations!$I$15:$I$1320,$J24,Calculations!R$15:R$1320) -> 0 | P24: =SUMIF(Calculations!$I$15:$I$1320,$J24,Calculations!S$15:S$1320) -> 0 | Q24: =SUMIF(Calculations!$I$15:$I$1320,$J24,Calculations!T$15:T$1320) -> 3791.132176 | R24: =SUMIF(Calculations!$I$15:$I$1320,$J24,Calculations!U$15:U$1320) -> 5442.875931 | S24: =SUMIF(Calculations!$I$15:$I$1320,$J24,Calculations!V$15:V$1320) -> 25255.7627 | T24: =SUMIF(Calculations!$I$15:$I$1320,$J24,Calculations!W$15:W$1320) -> 39721.89784 | U24: =SUMIF(Calculations!$I$15:$I$1320,$J24,Calculations!X$15:X$1320) -> 50334.1771 | V24: =SUMIF(Calculations!$I$15:$I$1320,$J24,Calculations!Y$15:Y$1320) -> 50044.70159 | W24: =SUMIF(Calculations!$I$15:$I$1320,$J24,Calculations!Z$15:Z$1320) -> 43481.63849 | X24: =SUMIF(Calculations!$I$15:$I$1320,$J24,Calculations!AA$15:AA$1320) -> 42807.37583 | Y24: =SUMIF(Calculations!$I$15:$I$1320,$J24,Calculations!AB$15:AB$1320) -> 41587.98437 | Z24: =SUMIF(Calculations!$I$15:$I$1320,$J24,Calculations!AC$15:AC$1320) -> 53624.61392 | AA24: =SUMIF(Calculations!$I$15:$I$1320,$J24,Calculations!AD$15:AD$1320) -> 52117.0875 | AB24: =SUMIF(Calculations!$I$15:$I$1320,$J24,Calculations!AE$15:AE$1320) -> 32453.35126 | AC24: =SUMIF(Calculations!$I$15:$I$1320,$J24,Calculations!AF$15:AF$1320) -> 0 | AD24: =SUMIF(Calculations!$I$15:$I$1320,$J24,Calculations!AG$15:AG$1320) -> 0 | AE24: =SUMIF(Calculations!$I$15:$I$1320,$J24,Calculations!AH$15:AH$1320) -> 0 | AF24: =SUMIF(Calculations!$I$15:$I$1320,$J24,Calculations!AI$15:AI$1320) -> 0 | AG24: =SUMIF(Calculations!$I$15:$I$1320,$J24,Calculations!AJ$15:AJ$1320) -> 0 | AH24: =SUMIF(Calculations!$I$15:$I$1320,$J24,Calculations!AK$15:AK$1320) -> 0 | AI24: =SUMIF(Calculations!$I$15:$I$1320,$J24,Calculations!AL$15:AL$1320) -> 0 | AJ24: =SUMIF(Calculations!$I$15:$I$1320,$J24,Calculations!AM$15:AM$1320) -> 0
I25: Operating Costs
I26: Packaging | J26: 1Packaging | L26: =SUM(O26:AJ26) -> 453455.0375 | O26: =SUMIF(Calculations!$I$15:$I$1320,$J26,Calculations!R$15:R$1320) -> 0 | P26: =SUMIF(Calculations!$I$15:$I$1320,$J26,Calculations!S$15:S$1320) -> 0 | Q26: =SUMIF(Calculations!$I$15:$I$1320,$J26,Calculations!T$15:T$1320) -> 3487.990551 | R26: =SUMIF(Calculations!$I$15:$I$1320,$J26,Calculations!U$15:U$1320) -> 5167.765096 | S26: =SUMIF(Calculations!$I$15:$I$1320,$J26,Calculations!V$15:V$1320) -> 28238.24025 | T26: =SUMIF(Calculations!$I$15:$I$1320,$J26,Calculations!W$15:W$1320) -> 51610.2937 | U26: =SUMIF(Calculations!$I$15:$I$1320,$J26,Calculations!X$15:X$1320) -> 63098.89658 | V26: =SUMIF(Calculations!$I$15:$I$1320,$J26,Calculations!Y$15:Y$1320) -> 60281.26671 | W26: =SUMIF(Calculations!$I$15:$I$1320,$J26,Calculations!Z$15:Z$1320) -> 53107.11019 | X26: =SUMIF(Calculations!$I$15:$I$1320,$J26,Calculations!AA$15:AA$1320) -> 47507.0056 | Y26: =SUMIF(Calculations!$I$15:$I$1320,$J26,Calculations!AB$15:AB$1320) -> 40616.42768 | Z26: =SUMIF(Calculations!$I$15:$I$1320,$J26,Calculations!AC$15:AC$1320) -> 42838.49317 | AA26: =SUMIF(Calculations!$I$15:$I$1320,$J26,Calculations!AD$15:AD$1320) -> 36237.91434 | AB26: =SUMIF(Calculations!$I$15:$I$1320,$J26,Calculations!AE$15:AE$1320) -> 21263.63357 | AC26: =SUMIF(Calculations!$I$15:$I$1320,$J26,Calculations!AF$15:AF$1320) -> 0 | AD26: =SUMIF(Calculations!$I$15:$I$1320,$J26,Calculations!AG$15:AG$1320) -> 0 | AE26: =SUMIF(Calculations!$I$15:$I$1320,$J26,Calculations!AH$15:AH$1320) -> 0 | AF26: =SUMIF(Calculations!$I$15:$I$1320,$J26,Calculations!AI$15:AI$1320) -> 0 | AG26: =SUMIF(Calculations!$I$15:$I$1320,$J26,Calculations!AJ$15:AJ$1320) -> 0 | AH26: =SUMIF(Calculations!$I$15:$I$1320,$J26,Calculations!AK$15:AK$1320) -> 0 | AI26: =SUMIF(Calculations!$I$15:$I$1320,$J26,Calculations!AL$15:AL$1320) -> 0 | AJ26: =SUMIF(Calculations!$I$15:$I$1320,$J26,Calculations!AM$15:AM$1320) -> 0
I27: Energy - Variable | J27: 1Energy - Variable | L27: 0 | O27: =SUMIF(Calculations!$I$15:$I$1320,$J27,Calculations!R$15:R$1320) -> 0 | P27: =SUMIF(Calculations!$I$15:$I$1320,$J27,Calculations!S$15:S$1320) -> 0 | Q27: =SUMIF(Calculations!$I$15:$I$1320,$J27,Calculations!T$15:T$1320) -> 0 | R27: =SUMIF(Calculations!$I$15:$I$1320,$J27,Calculations!U$15:U$1320) -> 0 | S27: =SUMIF(Calculations!$I$15:$I$1320,$J27,Calculations!V$15:V$1320) -> 0 | T27: =SUMIF(Calculations!$I$15:$I$1320,$J27,Calculations!W$15:W$1320) -> 0 | U27: =SUMIF(Calculations!$I$15:$I$1320,$J27,Calculations!X$15:X$1320) -> 0 | V27: =SUMIF(Calculations!$I$15:$I$1320,$J27,Calculations!Y$15:Y$1320) -> 0 | W27: =SUMIF(Calculations!$I$15:$I$1320,$J27,Calculations!Z$15:Z$1320) -> 0 | X27: =SUMIF(Calculations!$I$15:$I$1320,$J27,Calculations!AA$15:AA$1320) -> 0 | Y27: =SUMIF(Calculations!$I$15:$I$1320,$J27,Calculations!AB$15:AB$1320) -> 0 | Z27: =SUMIF(Calculations!$I$15:$I$1320,$J27,Calculations!AC$15:AC$1320) -> 0 | AA27: =SUMIF(Calculations!$I$15:$I$1320,$J27,Calculations!AD$15:AD$1320) -> 0 | AB27: =SUMIF(Calculations!$I$15:$I$1320,$J27,Calculations!AE$15:AE$1320) -> 0 | AC27: =SUMIF(Calculations!$I$15:$I$1320,$J27,Calculations!AF$15:AF$1320) -> 0 | AD27: =SUMIF(Calculations!$I$15:$I$1320,$J27,Calculations!AG$15:AG$1320) -> 0 | AE27: =SUMIF(Calculations!$I$15:$I$1320,$J27,Calculations!AH$15:AH$1320) -> 0 | AF27: =SUMIF(Calculations!$I$15:$I$1320,$J27,Calculations!AI$15:AI$1320) -> 0 | AG27: =SUMIF(Calculations!$I$15:$I$1320,$J27,Calculations!AJ$15:AJ$1320) -> 0 | AH27: =SUMIF(Calculations!$I$15:$I$1320,$J27,Calculations!AK$15:AK$1320) -> 0 | AI27: =SUMIF(Calculations!$I$15:$I$1320,$J27,Calculations!AL$15:AL$1320) -> 0 | AJ27: =SUMIF(Calculations!$I$15:$I$1320,$J27,Calculations!AM$15:AM$1320) -> 0
I28: Water | J28: 1Water | L28: 0 | O28: =SUMIF(Calculations!$I$15:$I$1320,$J28,Calculations!R$15:R$1320) -> 0 | P28: =SUMIF(Calculations!$I$15:$I$1320,$J28,Calculations!S$15:S$1320) -> 0 | Q28: =SUMIF(Calculations!$I$15:$I$1320,$J28,Calculations!T$15:T$1320) -> 0 | R28: =SUMIF(Calculations!$I$15:$I$1320,$J28,Calculations!U$15:U$1320) -> 0 | S28: =SUMIF(Calculations!$I$15:$I$1320,$J28,Calculations!V$15:V$1320) -> 0 | T28: =SUMIF(Calculations!$I$15:$I$1320,$J28,Calculations!W$15:W$1320) -> 0 | U28: =SUMIF(Calculations!$I$15:$I$1320,$J28,Calculations!X$15:X$1320) -> 0 | V28: =SUMIF(Calculations!$I$15:$I$1320,$J28,Calculations!Y$15:Y$1320) -> 0 | W28: =SUMIF(Calculations!$I$15:$I$1320,$J28,Calculations!Z$15:Z$1320) -> 0 | X28: =SUMIF(Calculations!$I$15:$I$1320,$J28,Calculations!AA$15:AA$1320) -> 0 | Y28: =SUMIF(Calculations!$I$15:$I$1320,$J28,Calculations!AB$15:AB$1320) -> 0 | Z28: =SUMIF(Calculations!$I$15:$I$1320,$J28,Calculations!AC$15:AC$1320) -> 0 | AA28: =SUMIF(Calculations!$I$15:$I$1320,$J28,Calculations!AD$15:AD$1320) -> 0 | AB28: =SUMIF(Calculations!$I$15:$I$1320,$J28,Calculations!AE$15:AE$1320) -> 0 | AC28: =SUMIF(Calculations!$I$15:$I$1320,$J28,Calculations!AF$15:AF$1320) -> 0 | AD28: =SUMIF(Calculations!$I$15:$I$1320,$J28,Calculations!AG$15:AG$1320) -> 0 | AE28: =SUMIF(Calculations!$I$15:$I$1320,$J28,Calculations!AH$15:AH$1320) -> 0 | AF28: =SUMIF(Calculations!$I$15:$I$1320,$J28,Calculations!AI$15:AI$1320) -> 0 | AG28: =SUMIF(Calculations!$I$15:$I$1320,$J28,Calculations!AJ$15:AJ$1320) -> 0 | AH28: =SUMIF(Calculations!$I$15:$I$1320,$J28,Calculations!AK$15:AK$1320) -> 0 | AI28: =SUMIF(Calculations!$I$15:$I$1320,$J28,Calculations!AL$15:AL$1320) -> 0 | AJ28: =SUMIF(Calculations!$I$15:$I$1320,$J28,Calculations!AM$15:AM$1320) -> 0
I29: Cleaning & CIP | J29: 1Cleaning & CIP | L29: 0 | O29: =SUMIF(Calculations!$I$15:$I$1320,$J29,Calculations!R$15:R$1320) -> 0 | P29: =SUMIF(Calculations!$I$15:$I$1320,$J29,Calculations!S$15:S$1320) -> 0 | Q29: =SUMIF(Calculations!$I$15:$I$1320,$J29,Calculations!T$15:T$1320) -> 0 | R29: =SUMIF(Calculations!$I$15:$I$1320,$J29,Calculations!U$15:U$1320) -> 0 | S29: =SUMIF(Calculations!$I$15:$I$1320,$J29,Calculations!V$15:V$1320) -> 0 | T29: =SUMIF(Calculations!$I$15:$I$1320,$J29,Calculations!W$15:W$1320) -> 0 | U29: =SUMIF(Calculations!$I$15:$I$1320,$J29,Calculations!X$15:X$1320) -> 0 | V29: =SUMIF(Calculations!$I$15:$I$1320,$J29,Calculations!Y$15:Y$1320) -> 0 | W29: =SUMIF(Calculations!$I$15:$I$1320,$J29,Calculations!Z$15:Z$1320) -> 0 | X29: =SUMIF(Calculations!$I$15:$I$1320,$J29,Calculations!AA$15:AA$1320) -> 0 | Y29: =SUMIF(Calculations!$I$15:$I$1320,$J29,Calculations!AB$15:AB$1320) -> 0 | Z29: =SUMIF(Calculations!$I$15:$I$1320,$J29,Calculations!AC$15:AC$1320) -> 0 | AA29: =SUMIF(Calculations!$I$15:$I$1320,$J29,Calculations!AD$15:AD$1320) -> 0 | AB29: =SUMIF(Calculations!$I$15:$I$1320,$J29,Calculations!AE$15:AE$1320) -> 0 | AC29: =SUMIF(Calculations!$I$15:$I$1320,$J29,Calculations!AF$15:AF$1320) -> 0 | AD29: =SUMIF(Calculations!$I$15:$I$1320,$J29,Calculations!AG$15:AG$1320) -> 0 | AE29: =SUMIF(Calculations!$I$15:$I$1320,$J29,Calculations!AH$15:AH$1320) -> 0 | AF29: =SUMIF(Calculations!$I$15:$I$1320,$J29,Calculations!AI$15:AI$1320) -> 0 | AG29: =SUMIF(Calculations!$I$15:$I$1320,$J29,Calculations!AJ$15:AJ$1320) -> 0 | AH29: =SUMIF(Calculations!$I$15:$I$1320,$J29,Calculations!AK$15:AK$1320) -> 0 | AI29: =SUMIF(Calculations!$I$15:$I$1320,$J29,Calculations!AL$15:AL$1320) -> 0 | AJ29: =SUMIF(Calculations!$I$15:$I$1320,$J29,Calculations!AM$15:AM$1320) -> 0
I30: Consumables | J30: 1Consumables | L30: 0 | O30: =SUMIF(Calculations!$I$15:$I$1320,$J30,Calculations!R$15:R$1320) -> 0 | P30: =SUMIF(Calculations!$I$15:$I$1320,$J30,Calculations!S$15:S$1320) -> 0 | Q30: =SUMIF(Calculations!$I$15:$I$1320,$J30,Calculations!T$15:T$1320) -> 0 | R30: =SUMIF(Calculations!$I$15:$I$1320,$J30,Calculations!U$15:U$1320) -> 0 | S30: =SUMIF(Calculations!$I$15:$I$1320,$J30,Calculations!V$15:V$1320) -> 0 | T30: =SUMIF(Calculations!$I$15:$I$1320,$J30,Calculations!W$15:W$1320) -> 0 | U30: =SUMIF(Calculations!$I$15:$I$1320,$J30,Calculations!X$15:X$1320) -> 0 | V30: =SUMIF(Calculations!$I$15:$I$1320,$J30,Calculations!Y$15:Y$1320) -> 0 | W30: =SUMIF(Calculations!$I$15:$I$1320,$J30,Calculations!Z$15:Z$1320) -> 0 | X30: =SUMIF(Calculations!$I$15:$I$1320,$J30,Calculations!AA$15:AA$1320) -> 0 | Y30: =SUMIF(Calculations!$I$15:$I$1320,$J30,Calculations!AB$15:AB$1320) -> 0 | Z30: =SUMIF(Calculations!$I$15:$I$1320,$J30,Calculations!AC$15:AC$1320) -> 0 | AA30: =SUMIF(Calculations!$I$15:$I$1320,$J30,Calculations!AD$15:AD$1320) -> 0 | AB30: =SUMIF(Calculations!$I$15:$I$1320,$J30,Calculations!AE$15:AE$1320) -> 0 | AC30: =SUMIF(Calculations!$I$15:$I$1320,$J30,Calculations!AF$15:AF$1320) -> 0 | AD30: =SUMIF(Calculations!$I$15:$I$1320,$J30,Calculations!AG$15:AG$1320) -> 0 | AE30: =SUMIF(Calculations!$I$15:$I$1320,$J30,Calculations!AH$15:AH$1320) -> 0 | AF30: =SUMIF(Calculations!$I$15:$I$1320,$J30,Calculations!AI$15:AI$1320) -> 0 | AG30: =SUMIF(Calculations!$I$15:$I$1320,$J30,Calculations!AJ$15:AJ$1320) -> 0 | AH30: =SUMIF(Calculations!$I$15:$I$1320,$J30,Calculations!AK$15:AK$1320) -> 0 | AI30: =SUMIF(Calculations!$I$15:$I$1320,$J30,Calculations!AL$15:AL$1320) -> 0 | AJ30: =SUMIF(Calculations!$I$15:$I$1320,$J30,Calculations!AM$15:AM$1320) -> 0
I31: Effluent | J31: 1Effluent | L31: 0 | O31: =SUMIF(Calculations!$I$15:$I$1320,$J31,Calculations!R$15:R$1320) -> 0 | P31: =SUMIF(Calculations!$I$15:$I$1320,$J31,Calculations!S$15:S$1320) -> 0 | Q31: =SUMIF(Calculations!$I$15:$I$1320,$J31,Calculations!T$15:T$1320) -> 0 | R31: =SUMIF(Calculations!$I$15:$I$1320,$J31,Calculations!U$15:U$1320) -> 0 | S31: =SUMIF(Calculations!$I$15:$I$1320,$J31,Calculations!V$15:V$1320) -> 0 | T31: =SUMIF(Calculations!$I$15:$I$1320,$J31,Calculations!W$15:W$1320) -> 0 | U31: =SUMIF(Calculations!$I$15:$I$1320,$J31,Calculations!X$15:X$1320) -> 0 | V31: =SUMIF(Calculations!$I$15:$I$1320,$J31,Calculations!Y$15:Y$1320) -> 0 | W31: =SUMIF(Calculations!$I$15:$I$1320,$J31,Calculations!Z$15:Z$1320) -> 0 | X31: =SUMIF(Calculations!$I$15:$I$1320,$J31,Calculations!AA$15:AA$1320) -> 0 | Y31: =SUMIF(Calculations!$I$15:$I$1320,$J31,Calculations!AB$15:AB$1320) -> 0 | Z31: =SUMIF(Calculations!$I$15:$I$1320,$J31,Calculations!AC$15:AC$1320) -> 0 | AA31: =SUMIF(Calculations!$I$15:$I$1320,$J31,Calculations!AD$15:AD$1320) -> 0 | AB31: =SUMIF(Calculations!$I$15:$I$1320,$J31,Calculations!AE$15:AE$1320) -> 0 | AC31: =SUMIF(Calculations!$I$15:$I$1320,$J31,Calculations!AF$15:AF$1320) -> 0 | AD31: =SUMIF(Calculations!$I$15:$I$1320,$J31,Calculations!AG$15:AG$1320) -> 0 | AE31: =SUMIF(Calculations!$I$15:$I$1320,$J31,Calculations!AH$15:AH$1320) -> 0 | AF31: =SUMIF(Calculations!$I$15:$I$1320,$J31,Calculations!AI$15:AI$1320) -> 0 | AG31: =SUMIF(Calculations!$I$15:$I$1320,$J31,Calculations!AJ$15:AJ$1320) -> 0 | AH31: =SUMIF(Calculations!$I$15:$I$1320,$J31,Calculations!AK$15:AK$1320) -> 0 | AI31: =SUMIF(Calculations!$I$15:$I$1320,$J31,Calculations!AL$15:AL$1320) -> 0 | AJ31: =SUMIF(Calculations!$I$15:$I$1320,$J31,Calculations!AM$15:AM$1320) -> 0
I32: Laboratory | J32: 1Laboratory | L32: 0 | O32: =SUMIF(Calculations!$I$15:$I$1320,$J32,Calculations!R$15:R$1320) -> 0 | P32: =SUMIF(Calculations!$I$15:$I$1320,$J32,Calculations!S$15:S$1320) -> 0 | Q32: =SUMIF(Calculations!$I$15:$I$1320,$J32,Calculations!T$15:T$1320) -> 0 | R32: =SUMIF(Calculations!$I$15:$I$1320,$J32,Calculations!U$15:U$1320) -> 0 | S32: =SUMIF(Calculations!$I$15:$I$1320,$J32,Calculations!V$15:V$1320) -> 0 | T32: =SUMIF(Calculations!$I$15:$I$1320,$J32,Calculations!W$15:W$1320) -> 0 | U32: =SUMIF(Calculations!$I$15:$I$1320,$J32,Calculations!X$15:X$1320) -> 0 | V32: =SUMIF(Calculations!$I$15:$I$1320,$J32,Calculations!Y$15:Y$1320) -> 0 | W32: =SUMIF(Calculations!$I$15:$I$1320,$J32,Calculations!Z$15:Z$1320) -> 0 | X32: =SUMIF(Calculations!$I$15:$I$1320,$J32,Calculations!AA$15:AA$1320) -> 0 | Y32: =SUMIF(Calculations!$I$15:$I$1320,$J32,Calculations!AB$15:AB$1320) -> 0 | Z32: =SUMIF(Calculations!$I$15:$I$1320,$J32,Calculations!AC$15:AC$1320) -> 0 | AA32: =SUMIF(Calculations!$I$15:$I$1320,$J32,Calculations!AD$15:AD$1320) -> 0 | AB32: =SUMIF(Calculations!$I$15:$I$1320,$J32,Calculations!AE$15:AE$1320) -> 0 | AC32: =SUMIF(Calculations!$I$15:$I$1320,$J32,Calculations!AF$15:AF$1320) -> 0 | AD32: =SUMIF(Calculations!$I$15:$I$1320,$J32,Calculations!AG$15:AG$1320) -> 0 | AE32: =SUMIF(Calculations!$I$15:$I$1320,$J32,Calculations!AH$15:AH$1320) -> 0 | AF32: =SUMIF(Calculations!$I$15:$I$1320,$J32,Calculations!AI$15:AI$1320) -> 0 | AG32: =SUMIF(Calculations!$I$15:$I$1320,$J32,Calculations!AJ$15:AJ$1320) -> 0 | AH32: =SUMIF(Calculations!$I$15:$I$1320,$J32,Calculations!AK$15:AK$1320) -> 0 | AI32: =SUMIF(Calculations!$I$15:$I$1320,$J32,Calculations!AL$15:AL$1320) -> 0 | AJ32: =SUMIF(Calculations!$I$15:$I$1320,$J32,Calculations!AM$15:AM$1320) -> 0
I33: Variable operating costs | L33: =SUM(L26:L32) -> 453455.0375 | O33: =SUM(O26:O32) -> 0 | P33: 0 | Q33: 3487.990551 | R33: 5167.765096 | S33: 28238.24025 | T33: 51610.2937 | U33: 63098.89658 | V33: 60281.26671 | W33: 53107.11019 | X33: 47507.0056 | Y33: 40616.42768 | Z33: 42838.49317 | AA33: 36237.91434 | AB33: 21263.63357 | AC33: 0 | AD33: 0 | AE33: 0 | AF33: 0 | AG33: 0 | AH33: 0 | AI33: 0 | AJ33: 0
I34: Wages & ERE | J34: 1Wages & ERE | L34: =SUM(O34:AJ34) -> 0 | O34: =SUMIF(Calculations!$I$15:$I$1320,$J34,Calculations!R$15:R$1320) -> 0 | P34: =SUMIF(Calculations!$I$15:$I$1320,$J34,Calculations!S$15:S$1320) -> 0 | Q34: =SUMIF(Calculations!$I$15:$I$1320,$J34,Calculations!T$15:T$1320) -> 0 | R34: =SUMIF(Calculations!$I$15:$I$1320,$J34,Calculations!U$15:U$1320) -> 0 | S34: =SUMIF(Calculations!$I$15:$I$1320,$J34,Calculations!V$15:V$1320) -> 0 | T34: =SUMIF(Calculations!$I$15:$I$1320,$J34,Calculations!W$15:W$1320) -> 0 | U34: =SUMIF(Calculations!$I$15:$I$1320,$J34,Calculations!X$15:X$1320) -> 0 | V34: =SUMIF(Calculations!$I$15:$I$1320,$J34,Calculations!Y$15:Y$1320) -> 0 | W34: =SUMIF(Calculations!$I$15:$I$1320,$J34,Calculations!Z$15:Z$1320) -> 0 | X34: =SUMIF(Calculations!$I$15:$I$1320,$J34,Calculations!AA$15:AA$1320) -> 0 | Y34: =SUMIF(Calculations!$I$15:$I$1320,$J34,Calculations!AB$15:AB$1320) -> 0 | Z34: =SUMIF(Calculations!$I$15:$I$1320,$J34,Calculations!AC$15:AC$1320) -> 0 | AA34: =SUMIF(Calculations!$I$15:$I$1320,$J34,Calculations!AD$15:AD$1320) -> 0 | AB34: =SUMIF(Calculations!$I$15:$I$1320,$J34,Calculations!AE$15:AE$1320) -> 0 | AC34: =SUMIF(Calculations!$I$15:$I$1320,$J34,Calculations!AF$15:AF$1320) -> 0 | AD34: =SUMIF(Calculations!$I$15:$I$1320,$J34,Calculations!AG$15:AG$1320) -> 0 | AE34: =SUMIF(Calculations!$I$15:$I$1320,$J34,Calculations!AH$15:AH$1320) -> 0 | AF34: =SUMIF(Calculations!$I$15:$I$1320,$J34,Calculations!AI$15:AI$1320) -> 0 | AG34: =SUMIF(Calculations!$I$15:$I$1320,$J34,Calculations!AJ$15:AJ$1320) -> 0 | AH34: =SUMIF(Calculations!$I$15:$I$1320,$J34,Calculations!AK$15:AK$1320) -> 0 | AI34: =SUMIF(Calculations!$I$15:$I$1320,$J34,Calculations!AL$15:AL$1320) -> 0 | AJ34: =SUMIF(Calculations!$I$15:$I$1320,$J34,Calculations!AM$15:AM$1320) -> 0
I35: Repairs & Maintenance | J35: 1Repairs & Maintenance | L35: =SUM(O35:AJ35) -> 0 | O35: =SUMIF(Calculations!$I$15:$I$1320,$J35,Calculations!R$15:R$1320) -> 0 | P35: =SUMIF(Calculations!$I$15:$I$1320,$J35,Calculations!S$15:S$1320) -> 0 | Q35: =SUMIF(Calculations!$I$15:$I$1320,$J35,Calculations!T$15:T$1320) -> 0 | R35: =SUMIF(Calculations!$I$15:$I$1320,$J35,Calculations!U$15:U$1320) -> 0 | S35: =SUMIF(Calculations!$I$15:$I$1320,$J35,Calculations!V$15:V$1320) -> 0 | T35: =SUMIF(Calculations!$I$15:$I$1320,$J35,Calculations!W$15:W$1320) -> 0 | U35: =SUMIF(Calculations!$I$15:$I$1320,$J35,Calculations!X$15:X$1320) -> 0 | V35: =SUMIF(Calculations!$I$15:$I$1320,$J35,Calculations!Y$15:Y$1320) -> 0 | W35: =SUMIF(Calculations!$I$15:$I$1320,$J35,Calculations!Z$15:Z$1320) -> 0 | X35: =SUMIF(Calculations!$I$15:$I$1320,$J35,Calculations!AA$15:AA$1320) -> 0 | Y35: =SUMIF(Calculations!$I$15:$I$1320,$J35,Calculations!AB$15:AB$1320) -> 0 | Z35: =SUMIF(Calculations!$I$15:$I$1320,$J35,Calculations!AC$15:AC$1320) -> 0 | AA35: =SUMIF(Calculations!$I$15:$I$1320,$J35,Calculations!AD$15:AD$1320) -> 0 | AB35: =SUMIF(Calculations!$I$15:$I$1320,$J35,Calculations!AE$15:AE$1320) -> 0 | AC35: =SUMIF(Calculations!$I$15:$I$1320,$J35,Calculations!AF$15:AF$1320) -> 0 | AD35: =SUMIF(Calculations!$I$15:$I$1320,$J35,Calculations!AG$15:AG$1320) -> 0 | AE35: =SUMIF(Calculations!$I$15:$I$1320,$J35,Calculations!AH$15:AH$1320) -> 0 | AF35: =SUMIF(Calculations!$I$15:$I$1320,$J35,Calculations!AI$15:AI$1320) -> 0 | AG35: =SUMIF(Calculations!$I$15:$I$1320,$J35,Calculations!AJ$15:AJ$1320) -> 0 | AH35: =SUMIF(Calculations!$I$15:$I$1320,$J35,Calculations!AK$15:AK$1320) -> 0 | AI35: =SUMIF(Calculations!$I$15:$I$1320,$J35,Calculations!AL$15:AL$1320) -> 0 | AJ35: =SUMIF(Calculations!$I$15:$I$1320,$J35,Calculations!AM$15:AM$1320) -> 0
I36: Energy - Fixed | J36: =$J$3&I36 -> 1Energy - Fixed | L36: =SUM(O36:AJ36) -> 0 | O36: =SUMIF(Calculations!$I$15:$I$1320,$J36,Calculations!R$15:R$1320) -> 0 | P36: =SUMIF(Calculations!$I$15:$I$1320,$J36,Calculations!S$15:S$1320) -> 0 | Q36: =SUMIF(Calculations!$I$15:$I$1320,$J36,Calculations!T$15:T$1320) -> 0 | R36: =SUMIF(Calculations!$I$15:$I$1320,$J36,Calculations!U$15:U$1320) -> 0 | S36: =SUMIF(Calculations!$I$15:$I$1320,$J36,Calculations!V$15:V$1320) -> 0 | T36: =SUMIF(Calculations!$I$15:$I$1320,$J36,Calculations!W$15:W$1320) -> 0 | U36: =SUMIF(Calculations!$I$15:$I$1320,$J36,Calculations!X$15:X$1320) -> 0 | V36: =SUMIF(Calculations!$I$15:$I$1320,$J36,Calculations!Y$15:Y$1320) -> 0 | W36: =SUMIF(Calculations!$I$15:$I$1320,$J36,Calculations!Z$15:Z$1320) -> 0 | X36: =SUMIF(Calculations!$I$15:$I$1320,$J36,Calculations!AA$15:AA$1320) -> 0 | Y36: =SUMIF(Calculations!$I$15:$I$1320,$J36,Calculations!AB$15:AB$1320) -> 0 | Z36: =SUMIF(Calculations!$I$15:$I$1320,$J36,Calculations!AC$15:AC$1320) -> 0 | AA36: =SUMIF(Calculations!$I$15:$I$1320,$J36,Calculations!AD$15:AD$1320) -> 0 | AB36: =SUMIF(Calculations!$I$15:$I$1320,$J36,Calculations!AE$15:AE$1320) -> 0 | AC36: =SUMIF(Calculations!$I$15:$I$1320,$J36,Calculations!AF$15:AF$1320) -> 0 | AD36: =SUMIF(Calculations!$I$15:$I$1320,$J36,Calculations!AG$15:AG$1320) -> 0 | AE36: =SUMIF(Calculations!$I$15:$I$1320,$J36,Calculations!AH$15:AH$1320) -> 0 | AF36: =SUMIF(Calculations!$I$15:$I$1320,$J36,Calculations!AI$15:AI$1320) -> 0 | AG36: =SUMIF(Calculations!$I$15:$I$1320,$J36,Calculations!AJ$15:AJ$1320) -> 0 | AH36: =SUMIF(Calculations!$I$15:$I$1320,$J36,Calculations!AK$15:AK$1320) -> 0 | AI36: =SUMIF(Calculations!$I$15:$I$1320,$J36,Calculations!AL$15:AL$1320) -> 0 | AJ36: =SUMIF(Calculations!$I$15:$I$1320,$J36,Calculations!AM$15:AM$1320) -> 0
I37: Site Overheads | J37: 1Site Overheads | L37: =SUM(O37:AJ37) -> 373200 | O37: =SUMIF(Calculations!$I$15:$I$1320,$J37,Calculations!R$15:R$1320) -> 0 | P37: =SUMIF(Calculations!$I$15:$I$1320,$J37,Calculations!S$15:S$1320) -> 0 | Q37: =SUMIF(Calculations!$I$15:$I$1320,$J37,Calculations!T$15:T$1320) -> 37320 | R37: =SUMIF(Calculations!$I$15:$I$1320,$J37,Calculations!U$15:U$1320) -> 35454 | S37: =SUMIF(Calculations!$I$15:$I$1320,$J37,Calculations!V$15:V$1320) -> 31722 | T37: =SUMIF(Calculations!$I$15:$I$1320,$J37,Calculations!W$15:W$1320) -> 29856 | U37: =SUMIF(Calculations!$I$15:$I$1320,$J37,Calculations!X$15:X$1320) -> 29856 | V37: =SUMIF(Calculations!$I$15:$I$1320,$J37,Calculations!Y$15:Y$1320) -> 29856 | W37: =SUMIF(Calculations!$I$15:$I$1320,$J37,Calculations!Z$15:Z$1320) -> 29856 | X37: =SUMIF(Calculations!$I$15:$I$1320,$J37,Calculations!AA$15:AA$1320) -> 29856 | Y37: =SUMIF(Calculations!$I$15:$I$1320,$J37,Calculations!AB$15:AB$1320) -> 26124 | Z37: =SUMIF(Calculations!$I$15:$I$1320,$J37,Calculations!AC$15:AC$1320) -> 29856 | AA37: =SUMIF(Calculations!$I$15:$I$1320,$J37,Calculations!AD$15:AD$1320) -> 29856 | AB37: =SUMIF(Calculations!$I$15:$I$1320,$J37,Calculations!AE$15:AE$1320) -> 33588 | AC37: =SUMIF(Calculations!$I$15:$I$1320,$J37,Calculations!AF$15:AF$1320) -> 0 | AD37: =SUMIF(Calculations!$I$15:$I$1320,$J37,Calculations!AG$15:AG$1320) -> 0 | AE37: =SUMIF(Calculations!$I$15:$I$1320,$J37,Calculations!AH$15:AH$1320) -> 0 | AF37: =SUMIF(Calculations!$I$15:$I$1320,$J37,Calculations!AI$15:AI$1320) -> 0 | AG37: =SUMIF(Calculations!$I$15:$I$1320,$J37,Calculations!AJ$15:AJ$1320) -> 0 | AH37: =SUMIF(Calculations!$I$15:$I$1320,$J37,Calculations!AK$15:AK$1320) -> 0 | AI37: =SUMIF(Calculations!$I$15:$I$1320,$J37,Calculations!AL$15:AL$1320) -> 0 | AJ37: =SUMIF(Calculations!$I$15:$I$1320,$J37,Calculations!AM$15:AM$1320) -> 0
I38: Fixed operating costs | L38: =SUM(L34:L37) -> 373200 | O38: =SUM(O34:O37) -> 0 | P38: =SUM(P34:P37) -> 0 | Q38: =SUM(Q34:Q37) -> 37320 | R38: =SUM(R34:R37) -> 35454 | S38: 31722 | T38: 29856 | U38: 29856 | V38: 29856 | W38: 29856 | X38: 29856 | Y38: 26124 | Z38: 29856 | AA38: 29856 | AB38: 33588 | AC38: 0 | AD38: 0 | AE38: 0 | AF38: 0 | AG38: 0 | AH38: 0 | AI38: 0 | AJ38: 0
I39: Operating Costs | L39: =L33+L38 -> 826655.0375 | O39: =SUM(O33,O38) -> 0 | P39: =SUM(P33,P38) -> 0 | Q39: =SUM(Q33,Q38) -> 40807.99055 | R39: =SUM(R33,R38) -> 40621.7651 | S39: 59960.24025 | T39: 81466.2937 | U39: 92954.89658 | V39: 90137.26671 | W39: 82963.11019 | X39: 77363.0056 | Y39: 66740.42768 | Z39: 72694.49317 | AA39: 66093.91434 | AB39: 54851.63357 | AC39: 0 | AD39: 0 | AE39: 0 | AF39: 0 | AG39: 0 | AH39: 0 | AI39: 0 | AJ39: 0
I40: Variable supply chain costs | J40: 1Variable supply chain costs | L40: =SUM(O40:AJ40) -> 230018.6679 | O40: =SUMIF(Calculations!$I$15:$I$1320,$J40,Calculations!R$15:R$1320) -> 0 | P40: =SUMIF(Calculations!$I$15:$I$1320,$J40,Calculations!S$15:S$1320) -> 0 | Q40: =SUMIF(Calculations!$I$15:$I$1320,$J40,Calculations!T$15:T$1320) -> 0 | R40: =SUMIF(Calculations!$I$15:$I$1320,$J40,Calculations!U$15:U$1320) -> 0 | S40: =SUMIF(Calculations!$I$15:$I$1320,$J40,Calculations!V$15:V$1320) -> 0 | T40: =SUMIF(Calculations!$I$15:$I$1320,$J40,Calculations!W$15:W$1320) -> 13553.42238 | U40: =SUMIF(Calculations!$I$15:$I$1320,$J40,Calculations!X$15:X$1320) -> 13553.42238 | V40: =SUMIF(Calculations!$I$15:$I$1320,$J40,Calculations!Y$15:Y$1320) -> 26754.72464 | W40: =SUMIF(Calculations!$I$15:$I$1320,$J40,Calculations!Z$15:Z$1320) -> 26754.72464 | X40: =SUMIF(Calculations!$I$15:$I$1320,$J40,Calculations!AA$15:AA$1320) -> 26754.72464 | Y40: =SUMIF(Calculations!$I$15:$I$1320,$J40,Calculations!AB$15:AB$1320) -> 19636.199 | Z40: =SUMIF(Calculations!$I$15:$I$1320,$J40,Calculations!AC$15:AC$1320) -> 19636.199 | AA40: =SUMIF(Calculations!$I$15:$I$1320,$J40,Calculations!AD$15:AD$1320) -> 19636.199 | AB40: =SUMIF(Calculations!$I$15:$I$1320,$J40,Calculations!AE$15:AE$1320) -> 18346.98431 | AC40: =SUMIF(Calculations!$I$15:$I$1320,$J40,Calculations!AF$15:AF$1320) -> 18346.98431 | AD40: =SUMIF(Calculations!$I$15:$I$1320,$J40,Calculations!AG$15:AG$1320) -> 18346.98431 | AE40: =SUMIF(Calculations!$I$15:$I$1320,$J40,Calculations!AH$15:AH$1320) -> 2899.366425 | AF40: =SUMIF(Calculations!$I$15:$I$1320,$J40,Calculations!AI$15:AI$1320) -> 2899.366425 | AG40: =SUMIF(Calculations!$I$15:$I$1320,$J40,Calculations!AJ$15:AJ$1320) -> 2899.366425 | AH40: =SUMIF(Calculations!$I$15:$I$1320,$J40,Calculations!AK$15:AK$1320) -> 0 | AI40: =SUMIF(Calculations!$I$15:$I$1320,$J40,Calculations!AL$15:AL$1320) -> 0 | AJ40: =SUMIF(Calculations!$I$15:$I$1320,$J40,Calculations!AM$15:AM$1320) -> 0
I41: Fixed supply chain costs | J41: 1Fixed supply chain costs | L41: =SUM(O41:AJ41) -> 0 | O41: =SUMIF(Calculations!$I$15:$I$1320,$J41,Calculations!R$15:R$1320) -> 0 | P41: =SUMIF(Calculations!$I$15:$I$1320,$J41,Calculations!S$15:S$1320) -> 0 | Q41: =SUMIF(Calculations!$I$15:$I$1320,$J41,Calculations!T$15:T$1320) -> 0 | R41: =SUMIF(Calculations!$I$15:$I$1320,$J41,Calculations!U$15:U$1320) -> 0 | S41: =SUMIF(Calculations!$I$15:$I$1320,$J41,Calculations!V$15:V$1320) -> 0 | T41: =SUMIF(Calculations!$I$15:$I$1320,$J41,Calculations!W$15:W$1320) -> 0 | U41: =SUMIF(Calculations!$I$15:$I$1320,$J41,Calculations!X$15:X$1320) -> 0 | V41: =SUMIF(Calculations!$I$15:$I$1320,$J41,Calculations!Y$15:Y$1320) -> 0 | W41: =SUMIF(Calculations!$I$15:$I$1320,$J41,Calculations!Z$15:Z$1320) -> 0 | X41: =SUMIF(Calculations!$I$15:$I$1320,$J41,Calculations!AA$15:AA$1320) -> 0 | Y41: =SUMIF(Calculations!$I$15:$I$1320,$J41,Calculations!AB$15:AB$1320) -> 0 | Z41: =SUMIF(Calculations!$I$15:$I$1320,$J41,Calculations!AC$15:AC$1320) -> 0 | AA41: =SUMIF(Calculations!$I$15:$I$1320,$J41,Calculations!AD$15:AD$1320) -> 0 | AB41: =SUMIF(Calculations!$I$15:$I$1320,$J41,Calculations!AE$15:AE$1320) -> 0 | AC41: =SUMIF(Calculations!$I$15:$I$1320,$J41,Calculations!AF$15:AF$1320) -> 0 | AD41: =SUMIF(Calculations!$I$15:$I$1320,$J41,Calculations!AG$15:AG$1320) -> 0 | AE41: =SUMIF(Calculations!$I$15:$I$1320,$J41,Calculations!AH$15:AH$1320) -> 0 | AF41: =SUMIF(Calculations!$I$15:$I$1320,$J41,Calculations!AI$15:AI$1320) -> 0 | AG41: =SUMIF(Calculations!$I$15:$I$1320,$J41,Calculations!AJ$15:AJ$1320) -> 0 | AH41: =SUMIF(Calculations!$I$15:$I$1320,$J41,Calculations!AK$15:AK$1320) -> 0 | AI41: =SUMIF(Calculations!$I$15:$I$1320,$J41,Calculations!AL$15:AL$1320) -> 0 | AJ41: =SUMIF(Calculations!$I$15:$I$1320,$J41,Calculations!AM$15:AM$1320) -> 0
I42: Supply Chain | L42: =SUM(L40:L41) -> 230018.6679 | O42: =SUM(O40:O41) -> 0 | P42: =SUM(P40:P41) -> 0 | Q42: =SUM(Q40:Q41) -> 0 | R42: 0 | S42: 0 | T42: 13553.42238 | U42: 13553.42238 | V42: 26754.72464 | W42: 26754.72464 | X42: 26754.72464 | Y42: 19636.199 | Z42: 19636.199 | AA42: 19636.199 | AB42: 18346.98431 | AC42: 18346.98431 | AD42: 18346.98431 | AE42: 2899.366425 | AF42: 2899.366425 | AG42: 2899.366425 | AH42: 0 | AI42: 0 | AJ42: 0
I43: Administration | J43: 1Administration | L43: =SUM(O43:AJ43) -> 252403.4218 | O43: =SUMIF(Calculations!$I$15:$I$1320,$J43,Calculations!R$15:R$1320) -> 0 | P43: =SUMIF(Calculations!$I$15:$I$1320,$J43,Calculations!S$15:S$1320) -> 0 | Q43: =SUMIF(Calculations!$I$15:$I$1320,$J43,Calculations!T$15:T$1320) -> 29026.3935 | R43: =SUMIF(Calculations!$I$15:$I$1320,$J43,Calculations!U$15:U$1320) -> 30288.41061 | S43: =SUMIF(Calculations!$I$15:$I$1320,$J43,Calculations!V$15:V$1320) -> 26502.35929 | T43: =SUMIF(Calculations!$I$15:$I$1320,$J43,Calculations!W$15:W$1320) -> 23978.32507 | U43: =SUMIF(Calculations!$I$15:$I$1320,$J43,Calculations!X$15:X$1320) -> 26502.35929 | V43: =SUMIF(Calculations!$I$15:$I$1320,$J43,Calculations!Y$15:Y$1320) -> 20192.27374 | W43: =SUMIF(Calculations!$I$15:$I$1320,$J43,Calculations!Z$15:Z$1320) -> 20192.27374 | X43: =SUMIF(Calculations!$I$15:$I$1320,$J43,Calculations!AA$15:AA$1320) -> 20192.27374 | Y43: =SUMIF(Calculations!$I$15:$I$1320,$J43,Calculations!AB$15:AB$1320) -> 20192.27374 | Z43: =SUMIF(Calculations!$I$15:$I$1320,$J43,Calculations!AC$15:AC$1320) -> 15144.20531 | AA43: =SUMIF(Calculations!$I$15:$I$1320,$J43,Calculations!AD$15:AD$1320) -> 15144.20531 | AB43: =SUMIF(Calculations!$I$15:$I$1320,$J43,Calculations!AE$15:AE$1320) -> 5048.068435 | AC43: =SUMIF(Calculations!$I$15:$I$1320,$J43,Calculations!AF$15:AF$1320) -> 0 | AD43: =SUMIF(Calculations!$I$15:$I$1320,$J43,Calculations!AG$15:AG$1320) -> 0 | AE43: =SUMIF(Calculations!$I$15:$I$1320,$J43,Calculations!AH$15:AH$1320) -> 0 | AF43: =SUMIF(Calculations!$I$15:$I$1320,$J43,Calculations!AI$15:AI$1320) -> 0 | AG43: =SUMIF(Calculations!$I$15:$I$1320,$J43,Calculations!AJ$15:AJ$1320) -> 0 | AH43: =SUMIF(Calculations!$I$15:$I$1320,$J43,Calculations!AK$15:AK$1320) -> 0 | AI43: =SUMIF(Calculations!$I$15:$I$1320,$J43,Calculations!AL$15:AL$1320) -> 0 | AJ43: =SUMIF(Calculations!$I$15:$I$1320,$J43,Calculations!AM$15:AM$1320) -> 0
I44: Miscellaneous costs | J44: =$J$3&I44 -> 1Miscellaneous costs | L44: =SUM(O44:AJ44) -> 0 | O44: =SUMIF(Calculations!$I$15:$I$1320,$J44,Calculations!R$15:R$1320) -> 0 | P44: =SUMIF(Calculations!$I$15:$I$1320,$J44,Calculations!S$15:S$1320) -> 0 | Q44: =SUMIF(Calculations!$I$15:$I$1320,$J44,Calculations!T$15:T$1320) -> 0 | R44: =SUMIF(Calculations!$I$15:$I$1320,$J44,Calculations!U$15:U$1320) -> 0 | S44: =SUMIF(Calculations!$I$15:$I$1320,$J44,Calculations!V$15:V$1320) -> 0 | T44: =SUMIF(Calculations!$I$15:$I$1320,$J44,Calculations!W$15:W$1320) -> 0 | U44: =SUMIF(Calculations!$I$15:$I$1320,$J44,Calculations!X$15:X$1320) -> 0 | V44: =SUMIF(Calculations!$I$15:$I$1320,$J44,Calculations!Y$15:Y$1320) -> 0 | W44: =SUMIF(Calculations!$I$15:$I$1320,$J44,Calculations!Z$15:Z$1320) -> 0 | X44: =SUMIF(Calculations!$I$15:$I$1320,$J44,Calculations!AA$15:AA$1320) -> 0 | Y44: =SUMIF(Calculations!$I$15:$I$1320,$J44,Calculations!AB$15:AB$1320) -> 0 | Z44: =SUMIF(Calculations!$I$15:$I$1320,$J44,Calculations!AC$15:AC$1320) -> 0 | AA44: =SUMIF(Calculations!$I$15:$I$1320,$J44,Calculations!AD$15:AD$1320) -> 0 | AB44: =SUMIF(Calculations!$I$15:$I$1320,$J44,Calculations!AE$15:AE$1320) -> 0 | AC44: =SUMIF(Calculations!$I$15:$I$1320,$J44,Calculations!AF$15:AF$1320) -> 0 | AD44: =SUMIF(Calculations!$I$15:$I$1320,$J44,Calculations!AG$15:AG$1320) -> 0 | AE44: =SUMIF(Calculations!$I$15:$I$1320,$J44,Calculations!AH$15:AH$1320) -> 0 | AF44: =SUMIF(Calculations!$I$15:$I$1320,$J44,Calculations!AI$15:AI$1320) -> 0 | AG44: =SUMIF(Calculations!$I$15:$I$1320,$J44,Calculations!AJ$15:AJ$1320) -> 0 | AH44: =SUMIF(Calculations!$I$15:$I$1320,$J44,Calculations!AK$15:AK$1320) -> 0 | AI44: =SUMIF(Calculations!$I$15:$I$1320,$J44,Calculations!AL$15:AL$1320) -> 0 | AJ44: =SUMIF(Calculations!$I$15:$I$1320,$J44,Calculations!AM$15:AM$1320) -> 0
I45: Depreciation Expense | J45: =$J$3&I45 -> 1Depreciation Expense | L45: =SUM(O45:AJ45) -> 262249 | O45: =SUMIF(Calculations!$I$15:$I$1320,$J45,Calculations!R$15:R$1320) -> 0 | P45: =SUMIF(Calculations!$I$15:$I$1320,$J45,Calculations!S$15:S$1320) -> 0 | Q45: =SUMIF(Calculations!$I$15:$I$1320,$J45,Calculations!T$15:T$1320) -> 0 | R45: =SUMIF(Calculations!$I$15:$I$1320,$J45,Calculations!U$15:U$1320) -> 0 | S45: =SUMIF(Calculations!$I$15:$I$1320,$J45,Calculations!V$15:V$1320) -> 0 | T45: =SUMIF(Calculations!$I$15:$I$1320,$J45,Calculations!W$15:W$1320) -> 0 | U45: =SUMIF(Calculations!$I$15:$I$1320,$J45,Calculations!X$15:X$1320) -> 0 | V45: =SUMIF(Calculations!$I$15:$I$1320,$J45,Calculations!Y$15:Y$1320) -> 0 | W45: =SUMIF(Calculations!$I$15:$I$1320,$J45,Calculations!Z$15:Z$1320) -> 0 | X45: =SUMIF(Calculations!$I$15:$I$1320,$J45,Calculations!AA$15:AA$1320) -> 0 | Y45: =SUMIF(Calculations!$I$15:$I$1320,$J45,Calculations!AB$15:AB$1320) -> 0 | Z45: =SUMIF(Calculations!$I$15:$I$1320,$J45,Calculations!AC$15:AC$1320) -> 0 | AA45: =SUMIF(Calculations!$I$15:$I$1320,$J45,Calculations!AD$15:AD$1320) -> 0 | AB45: =SUMIF(Calculations!$I$15:$I$1320,$J45,Calculations!AE$15:AE$1320) -> 262249 | AC45: =SUMIF(Calculations!$I$15:$I$1320,$J45,Calculations!AF$15:AF$1320) -> 0 | AD45: =SUMIF(Calculations!$I$15:$I$1320,$J45,Calculations!AG$15:AG$1320) -> 0 | AE45: =SUMIF(Calculations!$I$15:$I$1320,$J45,Calculations!AH$15:AH$1320) -> 0 | AF45: =SUMIF(Calculations!$I$15:$I$1320,$J45,Calculations!AI$15:AI$1320) -> 0 | AG45: =SUMIF(Calculations!$I$15:$I$1320,$J45,Calculations!AJ$15:AJ$1320) -> 0 | AH45: =SUMIF(Calculations!$I$15:$I$1320,$J45,Calculations!AK$15:AK$1320) -> 0 | AI45: =SUMIF(Calculations!$I$15:$I$1320,$J45,Calculations!AL$15:AL$1320) -> 0 | AJ45: =SUMIF(Calculations!$I$15:$I$1320,$J45,Calculations!AM$15:AM$1320) -> 0
I46: Inventory Movement | J46: =$J$3&I46 -> 1Inventory Movement | L46: =SUM(O46:AJ46) -> -1.746229827e-10 | O46: =SUMIF(Calculations!$I$15:$I$1320,$J46,Calculations!R$15:R$1320) -> 0 | P46: =SUMIF(Calculations!$I$15:$I$1320,$J46,Calculations!S$15:S$1320) -> 0 | Q46: =SUMIF(Calculations!$I$15:$I$1320,$J46,Calculations!T$15:T$1320) -> -188837.1513 | R46: =SUMIF(Calculations!$I$15:$I$1320,$J46,Calculations!U$15:U$1320) -> -230216.4721 | S46: =SUMIF(Calculations!$I$15:$I$1320,$J46,Calculations!V$15:V$1320) -> -785151.9542 | T46: =SUMIF(Calculations!$I$15:$I$1320,$J46,Calculations!W$15:W$1320) -> -469754.0613 | U46: =SUMIF(Calculations!$I$15:$I$1320,$J46,Calculations!X$15:X$1320) -> -957443.4777 | V46: =SUMIF(Calculations!$I$15:$I$1320,$J46,Calculations!Y$15:Y$1320) -> -231224.6123 | W46: =SUMIF(Calculations!$I$15:$I$1320,$J46,Calculations!Z$15:Z$1320) -> -61999.60975 | X46: =SUMIF(Calculations!$I$15:$I$1320,$J46,Calculations!AA$15:AA$1320) -> 77586.75775 | Y46: =SUMIF(Calculations!$I$15:$I$1320,$J46,Calculations!AB$15:AB$1320) -> -72443.1359 | Z46: =SUMIF(Calculations!$I$15:$I$1320,$J46,Calculations!AC$15:AC$1320) -> -126710.919 | AA46: =SUMIF(Calculations!$I$15:$I$1320,$J46,Calculations!AD$15:AD$1320) -> 40526.27637 | AB46: =SUMIF(Calculations!$I$15:$I$1320,$J46,Calculations!AE$15:AE$1320) -> 393198.1027 | AC46: =SUMIF(Calculations!$I$15:$I$1320,$J46,Calculations!AF$15:AF$1320) -> 1026718.016 | AD46: =SUMIF(Calculations!$I$15:$I$1320,$J46,Calculations!AG$15:AG$1320) -> 1052473.995 | AE46: =SUMIF(Calculations!$I$15:$I$1320,$J46,Calculations!AH$15:AH$1320) -> 177759.4154 | AF46: =SUMIF(Calculations!$I$15:$I$1320,$J46,Calculations!AI$15:AI$1320) -> 177759.4154 | AG46: =SUMIF(Calculations!$I$15:$I$1320,$J46,Calculations!AJ$15:AJ$1320) -> 177759.4154 | AH46: =SUMIF(Calculations!$I$15:$I$1320,$J46,Calculations!AK$15:AK$1320) -> 0 | AI46: =SUMIF(Calculations!$I$15:$I$1320,$J46,Calculations!AL$15:AL$1320) -> 0 | AJ46: =SUMIF(Calculations!$I$15:$I$1320,$J46,Calculations!AM$15:AM$1320) -> 0
I47: Non-Milk Expenses | L47: =SUM(L22:L24,L39,L42:L46) -> 2456304.026 | O47: =SUM(O22:O24,O39,O42:O46) -> 0 | P47: 0 | Q47: -101214.6478 | R47: -138204.0889 | S47: -643349.5129 | T47: -267519.7118 | U47: -720034.7417 | V47: 7347.897132 | W47: 157494.845 | X47: 287861.5698 | Y47: 110503.8985 | Z47: 68555.65203 | AA47: 224946.8771 | AB47: 794432.1815 | AC47: 1053875.742 | AD47: 1079631.721 | AE47: 180658.7818 | AF47: 180658.7818 | AG47: 180658.7818 | AH47: 0 | AI47: 0 | AJ47: 0
I49: Cost of Milk | J49: =$J$3&I49 -> 1Cost of Milk | L49: =SUM(O49:AJ49) -> 10152686.14 | O49: =SUMIF(Calculations!$I$15:$I$1320,$J49,Calculations!R$15:R$1320) -> 0 | P49: =SUMIF(Calculations!$I$15:$I$1320,$J49,Calculations!S$15:S$1320) -> 0 | Q49: =SUMIF(Calculations!$I$15:$I$1320,$J49,Calculations!T$15:T$1320) -> 79366.1038 | R49: =SUMIF(Calculations!$I$15:$I$1320,$J49,Calculations!U$15:U$1320) -> 116275.8328 | S49: =SUMIF(Calculations!$I$15:$I$1320,$J49,Calculations!V$15:V$1320) -> 629989.2736 | T49: =SUMIF(Calculations!$I$15:$I$1320,$J49,Calculations!W$15:W$1320) -> 1154401.015 | U49: =SUMIF(Calculations!$I$15:$I$1320,$J49,Calculations!X$15:X$1320) -> 1408801.513 | V49: =SUMIF(Calculations!$I$15:$I$1320,$J49,Calculations!Y$15:Y$1320) -> 1342968.926 | W49: =SUMIF(Calculations!$I$15:$I$1320,$J49,Calculations!Z$15:Z$1320) -> 1187957.574 | X49: =SUMIF(Calculations!$I$15:$I$1320,$J49,Calculations!AA$15:AA$1320) -> 1067633.491 | Y49: =SUMIF(Calculations!$I$15:$I$1320,$J49,Calculations!AB$15:AB$1320) -> 912935.6103 | Z49: =SUMIF(Calculations!$I$15:$I$1320,$J49,Calculations!AC$15:AC$1320) -> 962107.3926 | AA49: =SUMIF(Calculations!$I$15:$I$1320,$J49,Calculations!AD$15:AD$1320) -> 812117.8705 | AB49: =SUMIF(Calculations!$I$15:$I$1320,$J49,Calculations!AE$15:AE$1320) -> 478131.5362 | AC49: =SUMIF(Calculations!$I$15:$I$1320,$J49,Calculations!AF$15:AF$1320) -> 0 | AD49: =SUMIF(Calculations!$I$15:$I$1320,$J49,Calculations!AG$15:AG$1320) -> 0 | AE49: =SUMIF(Calculations!$I$15:$I$1320,$J49,Calculations!AH$15:AH$1320) -> 0 | AF49: =SUMIF(Calculations!$I$15:$I$1320,$J49,Calculations!AI$15:AI$1320) -> 0 | AG49: =SUMIF(Calculations!$I$15:$I$1320,$J49,Calculations!AJ$15:AJ$1320) -> 0 | AH49: =SUMIF(Calculations!$I$15:$I$1320,$J49,Calculations!AK$15:AK$1320) -> 0 | AI49: =SUMIF(Calculations!$I$15:$I$1320,$J49,Calculations!AL$15:AL$1320) -> 0 | AJ49: =SUMIF(Calculations!$I$15:$I$1320,$J49,Calculations!AM$15:AM$1320) -> 0
I51: EBIT | J51: =$J$3&I51 -> 1EBIT | L51: =L19-L47-L49 -> 554695.747 | O51: =O19-O47-O49 -> 0 | P51: 0 | Q51: 21848.54399 | R51: 21928.25604 | S51: 13360.23922 | T51: -122963.1517 | U51: 75151.3798 | V51: 130017.255 | W51: 134881.6584 | X51: 124839.0165 | Y51: 51230.58286 | Z51: 44007.04698 | AA51: 37605.34398 | AB51: -134469.5295 | AC51: 84218.44628 | AD51: 58462.46728 | AE51: 4859.397324 | AF51: 4859.397324 | AG51: 4859.397324 | AH51: 0 | AI51: 0 | AJ51: 0
I53: Tax Expense | J53: =$J$3&I53 -> 1Tax Expense | L53: =SUM(O53:AJ53) -> 144270.245 | O53: =SUMIF(Calculations!$I$15:$I$1320,$J53,Calculations!R$15:R$1320) -> 0 | P53: =SUMIF(Calculations!$I$15:$I$1320,$J53,Calculations!S$15:S$1320) -> 0 | Q53: =SUMIF(Calculations!$I$15:$I$1320,$J53,Calculations!T$15:T$1320) -> 12022.52042 | R53: =SUMIF(Calculations!$I$15:$I$1320,$J53,Calculations!U$15:U$1320) -> 12022.52042 | S53: =SUMIF(Calculations!$I$15:$I$1320,$J53,Calculations!V$15:V$1320) -> 12022.52042 | T53: =SUMIF(Calculations!$I$15:$I$1320,$J53,Calculations!W$15:W$1320) -> 12022.52042 | U53: =SUMIF(Calculations!$I$15:$I$1320,$J53,Calculations!X$15:X$1320) -> 12022.52042 | V53: =SUMIF(Calculations!$I$15:$I$1320,$J53,Calculations!Y$15:Y$1320) -> 12022.52042 | W53: =SUMIF(Calculations!$I$15:$I$1320,$J53,Calculations!Z$15:Z$1320) -> 12022.52042 | X53: =SUMIF(Calculations!$I$15:$I$1320,$J53,Calculations!AA$15:AA$1320) -> 12022.52042 | Y53: =SUMIF(Calculations!$I$15:$I$1320,$J53,Calculations!AB$15:AB$1320) -> 12022.52042 | Z53: =SUMIF(Calculations!$I$15:$I$1320,$J53,Calculations!AC$15:AC$1320) -> 12022.52042 | AA53: =SUMIF(Calculations!$I$15:$I$1320,$J53,Calculations!AD$15:AD$1320) -> 12022.52042 | AB53: =SUMIF(Calculations!$I$15:$I$1320,$J53,Calculations!AE$15:AE$1320) -> 12022.52042 | AC53: =SUMIF(Calculations!$I$15:$I$1320,$J53,Calculations!AF$15:AF$1320) -> 0 | AD53: =SUMIF(Calculations!$I$15:$I$1320,$J53,Calculations!AG$15:AG$1320) -> 0 | AE53: =SUMIF(Calculations!$I$15:$I$1320,$J53,Calculations!AH$15:AH$1320) -> 0 | AF53: =SUMIF(Calculations!$I$15:$I$1320,$J53,Calculations!AI$15:AI$1320) -> 0 | AG53: =SUMIF(Calculations!$I$15:$I$1320,$J53,Calculations!AJ$15:AJ$1320) -> 0 | AH53: =SUMIF(Calculations!$I$15:$I$1320,$J53,Calculations!AK$15:AK$1320) -> 0 | AI53: =SUMIF(Calculations!$I$15:$I$1320,$J53,Calculations!AL$15:AL$1320) -> 0 | AJ53: =SUMIF(Calculations!$I$15:$I$1320,$J53,Calculations!AM$15:AM$1320) -> 0
I55: NOPLAT | L55: =L51-L53 -> 410425.5021 | O55: =O51-O53 -> 0 | P55: =P51-P53 -> 0 | Q55: =Q51-Q53 -> 9826.023577 | R55: 9905.735627 | S55: 1337.718806 | T55: -134985.6721 | U55: 63128.85938 | V55: 117994.7346 | W55: 122859.138 | X55: 112816.496 | Y55: 39208.06245 | Z55: 31984.52656 | AA55: 25582.82357 | AB55: -146492.05 | AC55: 84218.44628 | AD55: 58462.46728 | AE55: 4859.397324 | AF55: 4859.397324 | AG55: 4859.397324 | AH55: 0 | AI55: 0 | AJ55: 0
I57: Capital Charge | J57: =$J$3&I57 -> 1Capital Charge | L57: =L67 -> 410425.502 | O57: =O67 -> 0 | P57: =P67 -> 0 | Q57: =Q67 -> 141.1176336 | R57: 571.4327048 | S57: 1314.328781 | T57: 2385.700194 | U57: 3927.049051 | V57: 5104.184786 | W57: 6633.860844 | X57: 5331.781904 | Y57: 4159.585673 | Z57: 3559.501962 | AA57: 3237.462378 | AB57: 378070.5486 | AC57: 3633.353542 | AD57: 1620.391634 | AE57: -1840.937264 | AF57: -2401.45423 | AG57: -3162.35245 | AH57: 600.8714563 | AI57: -8.582101227e-06 | AJ57: -1.030889937e-05
I59: Capital Base
I61: Capital Charge Rate | J61: =$J$3&I61 -> 1Capital Charge Rate | O61: =Global!$O$39 -> 0.004392322271 | P61: =Global!$O$39 -> 0.004392322271 | Q61: =Global!$O$39 -> 0.004392322271 | R61: =Q61 -> 0.004392322271 | S61: 0.004392322271 | T61: 0.004392322271 | U61: 0.004392322271 | V61: 0.004392322271 | W61: 0.004392322271 | X61: 0.004392322271 | Y61: 0.004392322271 | Z61: 0.004392322271 | AA61: 0.004392322271 | AB61: 0.004392322271 | AC61: 0.004392322271 | AD61: 0.004392322271 | AE61: 0.004392322271 | AF61: 0.004392322271 | AG61: 0.004392322271 | AH61: 0.004392322271 | AI61: 0.004392322271 | AJ61: 0.004392322271
I62: Capital Charge on Fixed Assets | L62: =Calculations!N1193 -> 374465 | O62: =Calculations!R1193 -> 0 | P62: =Calculations!S1193 -> 0 | Q62: =Calculations!T1193 -> 0 | R62: =Calculations!U1193 -> 0 | S62: =Calculations!V1193 -> 0 | T62: =Calculations!W1193 -> 0 | U62: =Calculations!X1193 -> 0 | V62: =Calculations!Y1193 -> 0 | W62: =Calculations!Z1193 -> 0 | X62: =Calculations!AA1193 -> 0 | Y62: =Calculations!AB1193 -> 0 | Z62: =Calculations!AC1193 -> 0 | AA62: =Calculations!AD1193 -> 0 | AB62: =Calculations!AE1193 -> 374465 | AC62: =Calculations!AF1193 -> 0 | AD62: =Calculations!AG1193 -> 0
I64: 12 Month Average | L64: =SUM(O64:AJ64)/12 -> 728950.5194 | O64: =Calculations!R1205 -> 0 | P64: =Calculations!S1205 -> 0 | Q64: =Calculations!T1205 -> 32128.25128 | R64: =Calculations!U1205 -> 130098.0824 | S64: =Calculations!V1205 -> 299233.2301 | T64: =Calculations!W1205 -> 543152.3571 | U64: =Calculations!X1205 -> 894071.2474 | V64: =Calculations!Y1205 -> 1162069.737 | W64: =Calculations!Z1205 -> 1510331.081 | X64: =Calculations!AA1205 -> 1213886.772 | Y64: =Calculations!AB1205 -> 947012.8594 | Z64: =Calculations!AC1205 -> 810391.8025 | AA64: =Calculations!AD1205 -> 737073.0512 | AB64: =Calculations!AE1205 -> 820875.2459 | AC64: =Calculations!AF1205 -> 827205.5917 | AD64: =Calculations!AG1205 -> 368914.5593 | AE64: =Calculations!AH1205 -> -419126.1819 | AF64: =Calculations!AI1205 -> -546739.0782 | AG64: =Calculations!AJ1205 -> -719972.7739 | AH64: =Calculations!AK1205 -> 136800.4032 | AI64: =Calculations!AL1205 -> -0.001618790583 | AJ64: =Calculations!AM1205 -> -0.001953886964
I65: Capital Charge on Net Working Capital | L65: =SUM(O65:AJ65) -> 38421.4272 | O65: =O61*O64 -> 0 | P65: =P61*P64 -> 0 | Q65: =Q61*Q64 -> 141.1176336 | R65: 571.4327048 | S65: 1314.328781 | T65: 2385.700194 | U65: 3927.049051 | V65: 5104.184786 | W65: 6633.860844 | X65: 5331.781904 | Y65: 4159.585673 | Z65: 3559.501962 | AA65: 3237.462378 | AB65: 3605.548624 | AC65: 3633.353543 | AD65: 1620.391635 | AE65: -1840.937263 | AF65: -2401.454229 | AG65: -3162.352449 | AH65: 600.8714576 | AI65: -7.110249927e-06 | AJ65: -8.582101227e-06
I66: Time Value of Money Adjustment | L66: =L55-L62-L65 -> -2460.925148
I67: Total Capital Charge | L67: =L65+L62+L66 -> 410425.5021 | O67: =O65+O62 -> 0 | P67: =P65+P62 -> 0 | Q67: =Q65+Q62 -> 141.1176336 | R67: 571.4327048 | S67: 1314.328781 | T67: 2385.700194 | U67: 3927.049051 | V67: 5104.184786 | W67: 6633.860844 | X67: 5331.781904 | Y67: 4159.585673 | Z67: 3559.501962 | AA67: 3237.462378 | AB67: 378070.5486 | AC67: 3633.353543 | AD67: 1620.391635 | AE67: -1840.937263 | AF67: -2401.454229 | AG67: -3162.352449 | AH67: 600.8714576 | AI67: -7.110249927e-06 | AJ67: -8.582101227e-06
I69: Per KGMS
I70: Revenue
I71: Sales | J71: =$J$3&I71 -> 1Sales | L71: =L17/L$11 -> 8.746191438
I72: Downgrade expense (excl rework) | J72: =$J$3&I72 -> 1Downgrade expense (excl rework) | L72: =L18/L$11 -> 0
I73: Net Sales | L73: =SUM(L71:L72) -> 8.746191438
I75: Non-Milk Costs
I76: Commission | J76: =$J$3&I76 -> 1Commission | L76: =L22/L$11 -> 0.07024819738
I77: Collection Costs | J77: =$J$3&I77 -> 1Collection Costs | L77: =L23/L$11 -> 0.2249629388
I78: Lactose | L78: =L24/L$11 -> 0.2927842151
I79: Operating Costs
I80: Packaging | J80: =$J$3&I80 -> 1Packaging | L80: =L26/L$11 -> 0.3012837432
I81: Energy - Variable | J81: 1Energy - Variable | L81: 0
I82: Water | J82: 1Water | L82: 0
I83: Cleaning & CIP | J83: 1Cleaning & CIP | L83: 0
I84: Consumables | J84: 1Consumables | L84: 0
I85: Effluent | J85: 1Effluent | L85: 0
I86: Laboratory | J86: 1Laboratory | L86: 0
I87: Variable operating costs | L87: 0.3012837432
I88: Wages & ERE | J88: =$J$3&I88 -> 1Wages & ERE | L88: 0
I89: Repairs & Maintenance | J89: =$J$3&I89 -> 1Repairs & Maintenance | L89: 0
I90: Energy - Fixed | J90: =$J$3&I90 -> 1Energy - Fixed | L90: 0
I91: Site Overheads | J91: =$J$3&I91 -> 1Site Overheads | L91: =L37/L$11 -> 0.2479608421
I92: Fixed operating costs | L92: 0.2479608421
I93: Operating Costs | J93: =$J$3&I93 -> 1Operating Costs | L93: 0.5492445853
I94: Variable supply chain costs | J94: 1Variable supply chain costs | L94: 0.1528285707
I95: Fixed supply chain costs | J95: 1Fixed supply chain costs | L95: 0
I96: Supply Chain | J96: 1Supply Chain | L96: 0.1528285707
I97: Administration | J97: 1Administration | L97: 0.1677014068
I98: Miscellaneous costs | J98: 1Miscellaneous costs | L98: 0
I99: Depreciation Expense | J99: 1Depreciation Expense | L99: 0.1742429874
I100: Capital Charge | J100: 1Capital Charge | L100: =L111 -> 0.2726941402
I101: Tax Expense | J101: 1Tax Expense | L101: =L53/L$11 -> 0.09585576485
I102: Total Expenses | L102: =SUM(L76:L78,L93,L96:L101) -> 2.000562807
I104: Milk Price | L104: =Calculations!$N$1251 -> 6.745628631
L105: =L104-(L73-L102) -> -6.823963616e-11
I107: Capital Base
I108: Capital Charge on Fixed Assets | L108: =L62/L$11 -> 0.2488013311
I109: Capital Charge on Net Working Capital | L109: =L65/L$11 -> 0.02552789241
I110: Time Value of Money Adjustment | L110: =L66/L$11 -> -0.001635083259
I111: Total Capital Charge | L111: =L109+L108+L110 -> 0.2726941402
I113: Cash Flows
I115: Cash From Sales | L115: =SUM(O115:AJ115) -> 13163685.91 | O115: =Calculations!R910 -> 0 | P115: =Calculations!S910 -> 0 | Q115: =Calculations!T910 -> 0 | R115: =Calculations!U910 -> 0 | S115: =Calculations!V910 -> 0 | T115: =Calculations!W910 -> 181830.7802 | U115: =Calculations!X910 -> 782695.1635 | V115: =Calculations!Y910 -> 915665.2546 | W115: =Calculations!Z910 -> 1516720.503 | X115: =Calculations!AA910 -> 1480334.078 | Y115: =Calculations!AB910 -> 1288899.004 | Z115: =Calculations!AC910 -> 1159576.27 | AA115: =Calculations!AD910 -> 1048254.836 | AB115: =Calculations!AE910 -> 1117740.754 | AC115: =Calculations!AF910 -> 1110119.976 | AD115: =Calculations!AG910 -> 1166068.4 | AE115: =Calculations!AH910 -> 887944.13 | AF115: =Calculations!AI910 -> 180958.1656 | AG115: =Calculations!AJ910 -> 190078.1926 | AH115: =Calculations!AK910 -> 136800.4045 | AI115: =Calculations!AL910 -> 0 | AJ115: =Calculations!AM910 -> 0
I117: Trade Creditors | L117: =SUM(O117:AJ117) -> -2194055.026 | O117: =Calculations!R1258 -> 0 | P117: =Calculations!S1258 -> -32128.25128 | Q117: =Calculations!T1258 -> -88143.80756 | R117: =Calculations!U1258 -> -109679.8232 | S117: =Calculations!V1258 -> -165638.0409 | T117: =Calculations!W1258 -> -212323.5642 | U117: =Calculations!X1258 -> -240643.5132 | V117: =Calculations!Y1258 -> -228981.0517 | W117: =Calculations!Z1258 -> -216222.9686 | X117: =Calculations!AA1258 -> -207533.2183 | Y117: =Calculations!AB1258 -> -180363.1233 | Z117: =Calculations!AC1258 -> -193599.3199 | AA117: =Calculations!AD1258 -> -166116.9999 | AB117: =Calculations!AE1258 -> -99625.62568 | AC117: =Calculations!AF1258 -> -26836.50562 | AD117: =Calculations!AG1258 -> -18549.92101 | AE117: =Calculations!AH1258 -> -2933.660006 | AF117: =Calculations!AI1258 -> -2865.072844 | AG117: =Calculations!AJ1258 -> -1870.558984 | AH117: =Calculations!AK1258 -> 0 | AI117: =Calculations!AL1258 -> 0 | AJ117: =Calculations!AM1258 -> 0
I118: Suppliers | L118: =SUM(O118:AJ118) -> -10152686.14 | O118: =Calculations!R1259 -> 0 | P118: =Calculations!S1259 -> 0 | Q118: =Calculations!T1259 -> 0 | R118: =Calculations!U1259 -> -49549.58886 | S118: =Calculations!V1259 -> -76943.36729 | T118: =Calculations!W1259 -> -407321.6967 | U118: =Calculations!X1259 -> -746921.2806 | V118: =Calculations!Y1259 -> -916950.8126 | W118: =Calculations!Z1259 -> -881194.0876 | X118: =Calculations!AA1259 -> -845020.3688 | Y118: =Calculations!AB1259 -> -932706.7615 | Z118: =Calculations!AC1259 -> -860673.6725 | AA118: =Calculations!AD1259 -> -940357.2074 | AB118: =Calculations!AE1259 -> -860598.443 | AC118: =Calculations!AF1259 -> -540773.9922 | AD118: =Calculations!AG1259 -> -301015.2706 | AE118: =Calculations!AH1259 -> -752538.1765 | AF118: =Calculations!AI1259 -> 0 | AG118: =Calculations!AJ1259 -> -1040121.414 | AH118: =Calculations!AK1259 -> 0 | AI118: =Calculations!AL1259 -> 0 | AJ118: =Calculations!AM1259 -> 0
I119: Tax | L119: =SUM(O119:AJ119) -> -144270.2449 | O119: =Calculations!R1260 -> 0 | P119: =Calculations!S1260 -> 0 | Q119: =Calculations!T1260 -> 0 | R119: =Calculations!U1260 -> 0 | S119: =Calculations!V1260 -> 0 | T119: =Calculations!W1260 -> -48090.08165 | U119: =Calculations!X1260 -> 0 | V119: =Calculations!Y1260 -> 0 | W119: =Calculations!Z1260 -> 0 | X119: =Calculations!AA1260 -> -48090.08165 | Y119: =Calculations!AB1260 -> 0 | Z119: =Calculations!AC1260 -> 0 | AA119: =Calculations!AD1260 -> 0 | AB119: =Calculations!AE1260 -> -48090.08165 | AC119: =Calculations!AF1260 -> 0 | AD119: =Calculations!AG1260 -> 0 | AE119: =Calculations!AH1260 -> 0 | AF119: =Calculations!AI1260 -> 0 | AG119: =Calculations!AJ1260 -> 0 | AH119: =Calculations!AK1260 -> 0 | AI119: =Calculations!AL1260 -> 0 | AJ119: =Calculations!AM1260 -> 0
I121: Operating Cash Flow | L121: =SUM(O121:AJ121) -> 672674.502 | O121: =SUM(O115,O117:O119) -> 0 | P121: =SUM(P115,P117:P119) -> -32128.25128 | Q121: =SUM(Q115,Q117:Q119) -> -88143.80756 | R121: -159229.4121 | S121: -242581.4081 | T121: -485904.5624 | U121: -204869.6303 | V121: -230266.6096 | W121: 419303.4468 | X121: 379690.409 | Y121: 175829.1194 | Z121: 105303.2777 | AA121: -58219.37121 | AB121: 109426.6041 | AC121: 542509.4785 | AD121: 846503.2084 | AE121: 132472.2934 | AF121: 178093.0928 | AG121: -851913.7801 | AH121: 136800.4045 | AI121: 0 | AJ121: 0
I123: WACC | L123: =Global!O38 -> 0.054 | O123: =O61 -> 0.004392322271 | P123: =P61 -> 0.004392322271 | Q123: =Q61 -> 0.004392322271 | R123: 0.004392322271 | S123: 0.004392322271 | T123: 0.004392322271 | U123: 0.004392322271 | V123: 0.004392322271 | W123: 0.004392322271 | X123: 0.004392322271 | Y123: 0.004392322271 | Z123: 0.004392322271 | AA123: 0.004392322271 | AB123: 0.004392322271 | AC123: 0.004392322271 | AD123: 0.004392322271 | AE123: 0.004392322271 | AF123: 0.004392322271 | AG123: 0.004392322271 | AH123: 0.004392322271 | AI123: 0.004392322271 | AJ123: 0.004392322271
I125: Discount Factor | O125: =P125*(1+O123) -> 1.004392322 | P125: =Q125*(1+P123) -> 1 | Q125: =1/(1+Q123) -> 0.9956268859 | R125: =Q125/(1+R123) -> 0.9912728958 | S125: =R125/(1+S123) -> 0.9869379463 | T125: 0.982621954 | U125: 0.9783248361 | V125: 0.9740465099 | W125: 0.9697868933 | X125: 0.9655459045 | Y125: 0.9613234621 | Z125: 0.9571194849 | AA125: 0.9529338921 | AB125: 0.9487666034 | AC125: 0.9446175388 | AD125: 0.9404866184 | AE125: 0.9363737631 | AF125: 0.9322788938 | AG125: 0.9282019317 | AH125: 0.9241427988 | AI125: 0.9201014168 | AJ125: 0.9160777083
I126: Discounted Cash Flows | L126: =SUM(O126:AJ126) -> 606421.9722 | O126: =O125*O121 -> 0 | P126: =P125*P121 -> -32128.25128 | Q126: =Q125*Q121 -> -87758.34463 | R126: =R125*R121 -> -157839.8004 | S126: =S125*S121 -> -239412.7968 | T126: -477460.4906 | U126: -200429.0475 | V126: -224290.3875 | W126: 406634.987 | X126: 366608.5194 | Y126: 169028.6577 | Z126: 100787.8189 | AA126: -55479.212 | AB126: 103820.3075 | AC126: 512463.9684 | AD126: 796124.9399 | AE126: 124043.5799 | AF126: 166032.4315 | AG126: -790748.0163 | AH126: 126423.1087 | AI126: 0 | AJ126: 0
I128: Present Value of required return
I129: Capital charge on fixed assets (discounted) | L129: =SUMPRODUCT(Q$125:AD$125,Q62:AD62) -> 355279.8861
I130: Depreciation (discounted) | L130: =SUMPRODUCT(Q$125:AD$125,Q45:AD45) -> 248813.093
I131: Net | L131: =SUM(L129:L130) -> 604092.9791
I133: Excess / (Deficit) Return | L133: =L126-L131 -> 2328.993033
I134: cents / kgms | L134: =L133/L12 -> 0.001547428817
I136: Check consistency of financials / cash flows
I137: NOPLAT | O137: =O55 -> 0 | P137: =P55 -> 0 | Q137: =Q55 -> 9826.023577 | R137: 9905.735627 | S137: 1337.718806 | T137: -134985.6721 | U137: 63128.85938 | V137: 117994.7346 | W137: 122859.138 | X137: 112816.496 | Y137: 39208.06245 | Z137: 31984.52656 | AA137: 25582.82357 | AB137: -146492.05 | AC137: 84218.44628 | AD137: 58462.46728 | AE137: 4859.397324 | AF137: 4859.397324 | AG137: 4859.397324 | AH137: 0 | AI137: 0 | AJ137: 0
I138: + depreciation | O138: =O45 -> 0 | P138: =P45 -> 0 | Q138: =Q45 -> 0 | R138: 0 | S138: 0 | T138: 0 | U138: 0 | V138: 0 | W138: 0 | X138: 0 | Y138: 0 | Z138: 0 | AA138: 0 | AB138: 262249 | AC138: 0 | AD138: 0 | AE138: 0 | AF138: 0 | AG138: 0 | AH138: 0 | AI138: 0 | AJ138: 0
I139: + change in working capital | O139: =-(P64-O64) -> 0 | P139: =-(Q64-P64) -> -32128.25128 | Q139: =-(R64-Q64) -> -97969.83114 | R139: -169135.1477 | S139: -243919.127 | T139: -350918.8903 | U139: -267998.4897 | V139: -348261.3442 | W139: 296444.3088 | X139: 266873.913 | Y139: 136621.057 | Z139: 73318.75124 | AA139: -83802.19469 | AB139: -6330.345801 | AC139: 458291.0324 | AD139: 788040.7413 | AE139: 127612.8963 | AF139: 173233.6957 | AG139: -856773.1771 | AH139: 136800.4048 | AI139: 0.0003350963816 | AJ139: -0.001953886964
I140: Operating Cash Flow | O140: =SUM(O137:O139) -> 0 | P140: =SUM(P137:P139) -> -32128.25128 | Q140: =SUM(Q137:Q139) -> -88143.80757 | R140: -159229.4121 | S140: -242581.4081 | T140: -485904.5624 | U140: -204869.6303 | V140: -230266.6096 | W140: 419303.4468 | X140: 379690.4091 | Y140: 175829.1194 | Z140: 105303.2778 | AA140: -58219.37112 | AB140: 109426.6042 | AC140: 542509.4786 | AD140: 846503.2085 | AE140: 132472.2936 | AF140: 178093.093 | AG140: -851913.7798 | AH140: 136800.4048 | AI140: 0.0003350963816 | AJ140: -0.001953886964
I141: check | L141: =IF(ROUND(SUM(O141:AJ141),3)=0,"Okay","Error") -> Okay | O141: =O121-O140 -> 0 | P141: =P121-P140 -> 0 | Q141: =Q121-Q140 -> 1.647131285e-06 | R141: =R121-R140 -> 2.416461939e-06 | S141: 1.416541636e-06 | T141: -7.375434507e-06 | U141: -1.319512376e-05 | V141: -1.99204369e-05 | W141: -2.74470076e-05 | X141: -4.178850213e-05 | Y141: -5.29748213e-05 | Z141: -6.692673196e-05 | AA141: -8.35606188e-05 | AB141: -0.0001084578689 | AC141: -0.0001334012486 | AD141: -0.0001627863385 | AE141: -0.0001982428948 | AF141: -0.0002404531406 | AG141: -0.0002360339276 | AH141: -0.0002827741846 | AI141: -0.0003350963816 | AJ141: 0.001953886964

Sheet LookupTables (hidden)
E10: Year to date month | I10: Selected
E11: =Global!K32 -> 2017-06-30 | F11: YTD_Months | I11: 18
E12: =EOMONTH(E11,1) -> 2017-07-31 | I12: =CHOOSE(YTD_Months_No,$E$11,$E$12,$E$13,$E$14,$E$15,$E$16,$E$17,$E$18,$E$19,$E$20,$E$21,$E$22,$E$23,$E$24,$E$25,$E$26,$E$27,$E$28) -> 2018-11-30
E13: =EOMONTH(E12,1) -> 2017-08-31
E14: 2017-09-30
E15: 2017-10-31
E16: 2017-11-30
E17: 2017-12-31
E18: 2018-01-31
E19: 2018-02-28
E20: 2018-03-31
E21: 2018-04-30
E22: 2018-05-31
E23: 2018-06-30
E24: 2018-07-31
E25: 2018-08-31
E26: 2018-09-30
E27: 2018-10-31
E28: 2018-11-30

Sheet nav_inputs (hidden)
B5: Full | C5: References | F5: Caption
B6: Caption | C6: Worksheet | D6: Cell | E6: Level A | F6: Level B | G6: Level C
B7: Entities | C7: Global | D7: A1 | E7: Global
B8: =E8&IF(F8="","",IF(G8=""," / "&F8," / "&F8&" / "&G8)) -> Data Input / GLOBAL | C8: Data Input | D8: ="A"&MATCH(F8,'Data Input'!$F$13:$F$716,0)+15 -> A17 | E8: Data Input | F8: ='Data Input'!F14 -> GLOBAL
B9: Data Input / MILK SUPPLY | C9: Data Input | D9: ="A"&MATCH(F9,'Data Input'!$F$13:$F$716,0)+15 -> A27 | E9: Data Input | F9: ='Data Input'!F24 -> MILK SUPPLY
B10: Data Input / PRODUCTION | C10: Data Input | D10: ="A"&MATCH(F10,'Data Input'!$F$13:$F$716,0)+15 -> A39 | E10: Data Input | F10: ='Data Input'!F36 -> PRODUCTION
B11: Data Input / REVENUE / 1. Base Commodity Prices | C11: Data Input | D11: ="A"&MATCH(G11,'Data Input'!$E$13:$E$716,0)+15 -> A86 | E11: Data Input | F11: ='Data Input'!F77 -> REVENUE | G11: ='Data Input'!E83 -> 1. Base Commodity Prices
B12: =E12&IF(F12="","",IF(G12=""," / "&F12," / "&F12&" / "&G12)) -> Data Input / REVENUE / 2. Sales Phasing | C12: Data Input | D12: ="A"&MATCH(G12,'Data Input'!$E$13:$E$716,0)+15 -> A100 | E12: Data Input | F12: =F11 -> REVENUE | G12: ='Data Input'!E97 -> 2. Sales Phasing
B13: =E13&IF(F13="","",IF(G13=""," / "&F13," / "&F13&" / "&G13)) -> Data Input / COLLECTION | C13: Data Input | D13: ="A"&MATCH(F13,'Data Input'!$F$13:$F$716,0)+15 -> A135 | E13: Data Input | F13: ='Data Input'!F132 -> COLLECTION
B14: Data Input / OPEX | C14: Data Input | D14: ="A"&MATCH(F14,'Data Input'!$F$13:$F$716,0)+15 -> A146 | E14: Data Input | F14: ='Data Input'!F143 -> OPEX
B15: Data Input / SUPPLY CHAIN | C15: Data Input | D15: ="A"&MATCH(F15,'Data Input'!$F$13:$F$716,0)+15 -> A193 | E15: Data Input | F15: ='Data Input'!F190 -> SUPPLY CHAIN
B16: Data Input / ADMINISTRATION | C16: Data Input | D16: ="A"&MATCH(F16,'Data Input'!$F$13:$F$716,0)+15 -> A220 | E16: Data Input | F16: ='Data Input'!F217 -> ADMINISTRATION
B17: Data Input / FIXED ASSETS | C17: Data Input | D17: ="A"&MATCH(F17,'Data Input'!$F$13:$F$716,0)+15 -> A233 | E17: Data Input | F17: ='Data Input'!F230 -> FIXED ASSETS
B18: Data Input / INCOME TAX | C18: Data Input | D18: ="A"&MATCH(F18,'Data Input'!$F$13:$F$716,0)+15 -> A244 | E18: Data Input | F18: ='Data Input'!F241 -> INCOME TAX
B19: Data Input / WORKING CAPITAL | C19: Data Input | D19: ="A"&MATCH(F19,'Data Input'!$F$13:$F$716,0)+15 -> A254 | E19: Data Input | F19: ='Data Input'!F251 -> WORKING CAPITAL
B20: Data Input / WORKING CAPITAL | C20: Data Input | D20: ="A"&MATCH(F20,'Data Input'!$F$13:$F$716,0)+14 -> A253 | E20: Data Input | F20: ='Data Input'!F251 -> WORKING CAPITAL
B21: Calculations / PRODUCTION | C21: Calculations | D21: ="A"&MATCH(F21,Calculations!$D$11:$D$1320,0)+13 -> A17 | E21: =C21 -> Calculations | F21: =Calculations!D14 -> PRODUCTION
B22: Calculations / COMPONENT MILK PRICE | C22: Calculations | D22: ="A"&MATCH(F22,Calculations!$D$11:$D$1320,0)+13 -> A221 | E22: Calculations | F22: =Calculations!D218 -> COMPONENT MILK PRICE
B23: Calculations / SALES REVENUE | C23: Calculations | D23: ="A"&MATCH(F23,Calculations!$D$11:$D$1320,0)+13 -> A282 | E23: Calculations | F23: =Calculations!D279 -> SALES REVENUE
B24: Calculations / COST OF MILK | C24: Calculations | D24: ="A"&MATCH(F24,Calculations!$D$11:$D$1320,0)+13 -> A507 | E24: Calculations | F24: =Calculations!D504 -> COST OF MILK
B25: Calculations / COLLECTION COSTS | C25: Calculations | D25: ="A"&MATCH(F25,Calculations!$D$11:$D$1320,0)+13 -> A523 | E25: Calculations | F25: =Calculations!D520 -> COLLECTION COSTS
B26: Calculations / OPEX | C26: Calculations | D26: ="A"&MATCH(F26,Calculations!$D$11:$D$1320,0)+13 -> A544 | E26: Calculations | F26: =Calculations!D541 -> OPEX
B27: Calculations / SUPPLY CHAIN COSTS | C27: Calculations | D27: ="A"&MATCH(F27,Calculations!$D$11:$D$1320,0)+13 -> A742 | E27: Calculations | F27: =Calculations!D739 -> SUPPLY CHAIN COSTS
B28: Calculations / ADMINISTRATION COSTS | C28: Calculations | D28: ="A"&MATCH(F28,Calculations!$D$11:$D$1320,0)+13 -> A831 | E28: Calculations | F28: =Calculations!D828 -> ADMINISTRATION COSTS
B29: Calculations / CURRENT ASSET MOVEMENTS / Receivables | C29: Calculations | D29: ="A"&MATCH(G29,Calculations!$D$11:$D$1320,0)+13 -> A869 | E29: Calculations | F29: =Calculations!D864 -> CURRENT ASSET MOVEMENTS | G29: =Calculations!D866 -> Receivables
B30: Calculations / CURRENT ASSET MOVEMENTS / INVENTORY | C30: Calculations | D30: ="A"&MATCH(G30,Calculations!$D$11:$D$1320,0)+13 -> A917 | E30: Calculations | F30: =F29 -> CURRENT ASSET MOVEMENTS | G30: =Calculations!D914 -> INVENTORY
B31: Calculations / CURRENT LIABILITY MOVEMENTS / TRADE CREDITORS | C31: Calculations | D31: ="A"&MATCH(G31,Calculations!$D$11:$D$1320,0)+13 -> A1081 | E31: Calculations | F31: =Calculations!D1076 -> CURRENT LIABILITY MOVEMENTS | G31: =Calculations!D1078 -> TRADE CREDITORS
B32: Calculations / CURRENT LIABILITY MOVEMENTS / OWING TO SUPPLIERS | C32: Calculations | D32: ="A"&MATCH(G32,Calculations!$D$11:$D$1320,0)+13 -> A1139 | E32: Calculations | F32: =F31 -> CURRENT LIABILITY MOVEMENTS | G32: =Calculations!D1136 -> OWING TO SUPPLIERS
B33: Calculations / FIXED ASSETS | C33: Calculations | D33: ="A"&MATCH(F33,Calculations!$D$11:$D$1320,0)+13 -> A1170 | E33: Calculations | F33: =Calculations!D1167 -> FIXED ASSETS
B34: Calculations / CAPITAL CHARGE | C34: Calculations | D34: ="A"&MATCH(F34,Calculations!$D$11:$D$1320,0)+13 -> A1181 | E34: Calculations | F34: =Calculations!D1178 -> CAPITAL CHARGE
B35: Calculations / MILK PRICE CALCULATION | C35: Calculations | D35: ="A"&MATCH(F35,Calculations!$D$11:$D$1320,0)+13 -> A1213 | E35: Calculations | F35: =Calculations!D1210 -> MILK PRICE CALCULATION
B36: Calculations / TAX EXPENSE | C36: Calculations | D36: ="A"&MATCH(F36,Calculations!$D$11:$D$1320,0)+13 -> A1274 | E36: Calculations | F36: =Calculations!D1271 -> TAX EXPENSE
B37: Calculations / TAX PAYMENTS | C37: Calculations | D37: ="A"&MATCH(F37,Calculations!$D$11:$D$1320,0)+13 -> A1303 | E37: Calculations | F37: =Calculations!D1300 -> TAX PAYMENTS
B38: Summary | C38: Summary | D38: A1 | E38: Summary
B40: =E40&IF(F40="","",IF(G40=""," / "&F40," / "&F40&" / "&G40)) -> 
D67: Worksheet Names
D69: Global
D70: Data Input
D71: GDT
D72: Calculations
D73: Summary
D74: LookupTables
